Workbook

Sheet Soja 1ª (hidden)
B2: Planteo Tecnico (Por Ha) | C2: Unidad de medida | D2: Mes de actualiz. | E2: Cantidades | F2: Calamuchita | G2: Capital | H2: Colón | I2: Cruz del Eje | J2: Gral. Roca | K2: Gral. San Martín | L2: Ischilin | M2: Juárez Celman | N2: Marcos Juárez | O2: Minas | P2: Pocho | Q2: Pte. R. Sáenz Peña | R2: Punilla | S2: Río Cuarto | T2: Río Primero | U2: Río Seco | V2: Río Segundo | W2: San Alberto | X2: San Javier | Y2: San Justo | Z2: Santa María | AA2: Sobremonte | AB2: Tercero Arriba | AC2: Totoral | AD2: Tulumba | AE2: Unión | AF2: PROVINCIA
B3: Rendimiento | C3: qq/ha | D3: Junio | E3: - | F3: =+'Calculadora BCCBA'!$C$6 -> 34.45954816 | G3: =+'Calculadora BCCBA'!$C$6 -> 34.45954816 | H3: =+'Calculadora BCCBA'!$C$6 -> 34.45954816 | I3: =+'Calculadora BCCBA'!$C$6 -> 34.45954816 | J3: =+'Calculadora BCCBA'!$C$6 -> 34.45954816 | K3: =+'Calculadora BCCBA'!$C$6 -> 34.45954816 | L3: =+'Calculadora BCCBA'!$C$6 -> 34.45954816 | M3: =+'Calculadora BCCBA'!$C$6 -> 34.45954816 | N3: =+'Calculadora BCCBA'!$C$6 -> 34.45954816 | O3: =+'Calculadora BCCBA'!$C$6 -> 34.45954816 | P3: =+'Calculadora BCCBA'!$C$6 -> 34.45954816 | Q3: =+'Calculadora BCCBA'!$C$6 -> 34.45954816 | R3: =+'Calculadora BCCBA'!$C$6 -> 34.45954816 | S3: =+'Calculadora BCCBA'!$C$6 -> 34.45954816 | T3: =+'Calculadora BCCBA'!$C$6 -> 34.45954816 | U3: =+'Calculadora BCCBA'!$C$6 -> 34.45954816 | V3: =+'Calculadora BCCBA'!$C$6 -> 34.45954816 | W3: =+'Calculadora BCCBA'!$C$6 -> 34.45954816 | X3: =+'Calculadora BCCBA'!$C$6 -> 34.45954816 | Y3: =+'Calculadora BCCBA'!$C$6 -> 34.45954816 | Z3: =+'Calculadora BCCBA'!$C$6 -> 34.45954816 | AA3: =+'Calculadora BCCBA'!$C$6 -> 34.45954816 | AB3: =+'Calculadora BCCBA'!$C$6 -> 34.45954816 | AC3: =+'Calculadora BCCBA'!$C$6 -> 34.45954816 | AD3: =+'Calculadora BCCBA'!$C$6 -> 34.45954816 | AE3: =+'Calculadora BCCBA'!$C$6 -> 34.45954816 | AF3: =+'Calculadora BCCBA'!$C$6 -> 34.45954816
B4: Participación Provincial | C4: Porcentaje | D4: Enero | E4: - | F4: 0.009403263139 | H4: 0.01072484214 | J4: 0.09756373133 | K4: 0.0292496672 | M4: 0.06792260706 | N4: 0.09855282987 | Q4: 0.05253680466 | S4: 0.2187381167 | T4: 0.05499185454 | U4: 0.01096542371 | V4: 0.04914319853 | Y4: 0.06947046032 | Z4: 0.03198251471 | AB4: 0.05879158659 | AC4: 0.02059860975 | AD4: 0.01341261424 | AE4: 0.1026033435 | AF4: -
B5: Pulverización terrestre | C5: Cantidad | D5: Octubre | E5: 4 | F5: =$E5 -> 4 | H5: 4 | J5: 4 | K5: 4 | M5: 4 | N5: 4 | Q5: =$E5 -> 4 | S5: 4 | T5: 4 | U5: 4 | V5: 4 | Y5: 4 | Z5: 4 | AB5: 4 | AC5: 4 | AD5: 4 | AE5: 4 | AF5: =SUMPRODUCT(F5:AE5,$F$4:$AE$4) -> 3.986605872
B6: Pulverización aerea | C6: Cantidad | D6: =D5 -> Octubre | E6: 2 | F6: 2 | H6: 2 | J6: 2 | K6: 2 | M6: 2 | N6: 2 | Q6: 2 | S6: 2 | T6: 2 | U6: 2 | V6: 2 | Y6: 2 | Z6: 2 | AB6: 2 | AC6: 2 | AD6: 2 | AE6: 2 | AF6: =SUMPRODUCT(F6:AE6,$F$4:$AE$4) -> 1.993302936
B7: Glifosato | C7: lt/ha | D7: Octubre | E7: 7 | F7: 7 | H7: 7 | J7: 7 | K7: 7 | M7: 7 | N7: 7 | Q7: 7 | S7: 7 | T7: 7 | U7: 7 | V7: 7 | Y7: 7 | Z7: 7 | AB7: 7 | AC7: 7 | AD7: 7 | AE7: 7 | AF7: =SUMPRODUCT(F7:AE7,$F$4:$AE$4) -> 6.976560276
B8: Round Up Full II | C8: lt/ha | D8: Octubre | E8: 0 | F8: 0 | H8: 0 | J8: 0 | K8: 0 | M8: 0 | N8: 0 | Q8: 0 | S8: 0 | T8: 0 | U8: 0 | V8: 0 | Y8: 0 | Z8: 0 | AB8: 0 | AC8: 0 | AD8: 0 | AE8: 0 | AF8: =+AVERAGE(F8:AE8) -> 0
B9: Texaro | C9: kg/ha | D9: Octubre | E9: 0.043 | F9: 0.043 | H9: 0.043 | J9: 0.043 | K9: 0.043 | M9: 0.043 | N9: 0.043 | Q9: 0.043 | S9: 0.043 | T9: 0.043 | U9: 0.043 | V9: 0.043 | Y9: 0.043 | Z9: 0.043 | AB9: 0.043 | AC9: 0.043 | AD9: 0.043 | AE9: 0.043 | AF9: =+AVERAGE(F9:AE9) -> 0.043
B10: Metsulfurol Metil | C10: kg/ha | D10: Octubre | E10: 0.01 | F10: 0.01 | H10: 0.01 | J10: 0.01 | K10: 0.01 | M10: 0.01 | N10: 0.01 | Q10: 0.01 | S10: 0.01 | T10: 0.01 | U10: 0.01 | V10: 0.01 | Y10: 0.01 | Z10: 0.01 | AB10: 0.01 | AC10: 0.01 | AD10: 0.01 | AE10: 0.01 | AF10: =+AVERAGE(F10:AE10) -> 0.01
B11: 2,4 D 100% | C11: lt/ha | D11: Octubre | E11: 0.5 | F11: 0.5 | G11: 0.5 | H11: 0.5 | I11: 0.5 | J11: 0.5 | K11: 0.5 | L11: 0.5 | M11: 0.5 | N11: 0.5 | O11: 0.5 | P11: 0.5 | Q11: 0.5 | R11: 0.5 | S11: =$E11 -> 0.5 | T11: 0.5 | U11: 0.5 | V11: 0.5 | Y11: 0.5 | Z11: 0.5 | AB11: 0.5 | AC11: 0.5 | AD11: 0.5 | AE11: 0.5 | AF11: =+AVERAGE(F11:AE11) -> 0.5
B12: Semilla RR | C12: kg/ha | D12: Octubre | E12: 80 | F12: =+$E12 -> 80 | G12: =+$E12 -> 80 | H12: 80 | I12: 80 | J12: 80 | K12: 80 | L12: 80 | M12: 80 | N12: 80 | O12: 80 | P12: 80 | Q12: 80 | R12: 80 | S12: 80 | T12: 80 | U12: 80 | V12: 80 | Y12: 80 | Z12: 80 | AB12: 80 | AC12: 80 | AD12: 80 | AE12: 80 | AF12: =SUMPRODUCT(F12:AE12,$F$4:$AE$4) -> 79.73211744
B13: Inoculante + Fungicida | C13: b 200 gr | D13: Octubre | E13: 1.6 | F13: =+$E13 -> 1.6 | G13: 1.6 | H13: 1.6 | I13: 1.6 | J13: 1.6 | K13: 1.6 | L13: 1.6 | M13: 1.6 | N13: 1.6 | O13: 1.6 | P13: 1.6 | Q13: 1.6 | R13: 1.6 | S13: 1.6 | T13: 1.6 | U13: 1.6 | V13: 1.6 | Y13: 1.6 | Z13: 1.6 | AB13: 1.6 | AC13: 1.6 | AD13: 1.6 | AE13: 1.6 | AF13: =+AVERAGE(F13:AE13) -> 1.6
B14: Superfosfato triple | C14: kg/ha | D14: Octubre | E14: 0 | F14: 0 | G14: 0 | H14: 0 | I14: 0 | J14: 0 | K14: 0 | L14: 0 | M14: 0 | N14: 0 | O14: 0 | P14: 0 | Q14: 0 | R14: 0 | S14: 0 | T14: 0 | U14: 0 | V14: 0 | Y14: 0 | Z14: 0 | AB14: 0 | AC14: 0 | AD14: 0 | AE14: 0 | AF14: =SUMPRODUCT(F14:AE14,$F$4:$AE$4) -> 0
B15: Fosfato Monoamónico | C15: kg/ha | D15: Octubre | E15: 0 | F15: 0 | G15: 0 | H15: 0 | I15: 0 | J15: 0 | K15: 0 | L15: 0 | M15: 0 | N15: 0 | O15: 0 | P15: 0 | Q15: 0 | R15: 0 | S15: 0 | T15: 0 | U15: 0 | V15: 0 | Y15: 0 | Z15: 0 | AB15: 0 | AC15: 0 | AD15: 0 | AE15: 0 | AF15: 0
B16: Roundup control max | C16: kg/ha | D16: Octubre | E16: 1.1 | F16: 1.1 | G16: 1.1 | H16: 1.1 | I16: 1.1 | J16: 1.1 | K16: 1.1 | L16: 1.1 | M16: 1.1 | N16: 1.1 | O16: 1.1 | P16: 1.1 | Q16: 1.1 | R16: 1.1 | S16: 1.1 | T16: 1.1 | U16: 1.1 | V16: 1.1 | Y16: 1.1 | Z16: 1.1 | AB16: 1.1 | AC16: 1.1 | AD16: 1.1 | AE16: 1.1 | AF16: =+AVERAGE(F16:AE16) -> 1.1
B17: Karate zeon 25% | C17: lt/ha | D17: Octubre | E17: 0.025 | F17: 0.025 | G17: 0.025 | H17: 0.025 | I17: 0.025 | J17: 0.025 | K17: 0.025 | L17: 0.025 | M17: 0.025 | N17: 0.025 | O17: 0.025 | P17: 0.025 | Q17: 0.025 | R17: 0.025 | S17: 0.025 | T17: 0.025 | U17: 0.025 | V17: 0.025 | Y17: 0.025 | Z17: 0.025 | AB17: 0.025 | AC17: 0.025 | AD17: 0.025 | AE17: 0.025 | AF17: =+AVERAGE(F17:AE17) -> 0.025
B18: Coragen | C18: kg/ha | D18: Octubre | E18: 0.03 | F18: 0.03 | G18: 0.03 | H18: 0.03 | I18: 0.03 | J18: 0.03 | K18: 0.03 | L18: 0.03 | M18: 0.03 | N18: 0.03 | O18: 0.03 | P18: 0.03 | Q18: 0.03 | R18: 0.03 | S18: 0.03 | T18: 0.03 | U18: 0.03 | V18: 0.03 | Y18: 0.03 | Z18: 0.03 | AB18: 0.03 | AC18: 0.03 | AD18: 0.03 | AE18: 0.03 | AF18: =+AVERAGE(F18:AE18) -> 0.03
B19: Engeo | C19: lt/ha | D19: Octubre | E19: 0.2 | F19: 0.2 | G19: 0.2 | H19: 0.2 | I19: 0.2 | J19: 0.2 | K19: 0.2 | L19: 0.2 | M19: 0.2 | N19: 0.2 | O19: 0.2 | P19: 0.2 | Q19: 0.2 | R19: 0.2 | S19: 0.2 | T19: 0.2 | U19: 0.2 | V19: 0.2 | Y19: 0.2 | Z19: 0.2 | AB19: 0.2 | AC19: 0.2 | AD19: 0.2 | AE19: 0.2 | AF19: =+AVERAGE(F19:AE19) -> 0.2
B20: Opera | C20: lt/ha | D20: Octubre | E20: 0.5 | F20: 0.5 | G20: 0.5 | H20: 0.5 | I20: 0.5 | J20: 0.5 | K20: 0.5 | L20: 0.5 | M20: 0.5 | N20: 0.5 | O20: 0.5 | P20: 0.5 | Q20: 0.5 | R20: 0.5 | S20: 0.5 | T20: 0.5 | U20: 0.5 | V20: 0.5 | Y20: 0.5 | Z20: 0.5 | AB20: 0.5 | AC20: 0.5 | AD20: 0.5 | AE20: 0.5 | AF20: =+AVERAGE(F20:AE20) -> 0.5
B21: Riego | C21: mm/ha | D21: - | E21: - | AB21: =$F$21 -> 0 | AC21: 0 | AD21: 0 | AE21: 0 | AF21: 0
B23: Costos Directos (Por Ha) | C23: =C$2 -> Unidad de medida | D23: =D$2 -> Mes de actualiz. | E23: Precio | F23: =F$2 -> Calamuchita | G23: =G$2 -> Capital | H23: Colón | I23: Cruz del Eje | J23: Gral. Roca | K23: Gral. San Martín | L23: Ischilin | M23: Juárez Celman | N23: Marcos Juárez | O23: Minas | P23: Pocho | Q23: Pte. R. Sáenz Peña | R23: Punilla | S23: Río Cuarto | T23: Río Primero | U23: Río Seco | V23: Río Segundo | W23: San Alberto | X23: San Javier | Y23: San Justo | Z23: Santa María | AA23: Sobremonte | AB23: Tercero Arriba | AC23: Totoral | AD23: Tulumba | AE23: Unión | AF23: =AF$2 -> PROVINCIA
B24: Pulverización terrestre | C24: Cantidad | D24: Octubre | E24: 4.1 | F24: =$E24*F5 -> 16.4 | H24: 16.4 | J24: 16.4 | K24: 16.4 | M24: 16.4 | N24: 16.4 | Q24: 16.4 | S24: 16.4 | T24: 16.4 | U24: 16.4 | V24: 16.4 | Y24: 16.4 | Z24: 16.4 | AB24: 16.4 | AC24: 16.4 | AD24: 16.4 | AE24: 16.4 | AF24: 16.34508407
B25: Pulverización aerea | C25: Cantidad | D25: =D24 -> Octubre | E25: 8.2 | F25: 16.4 | H25: 16.4 | J25: 16.4 | K25: 16.4 | M25: 16.4 | N25: 16.4 | Q25: =$E25*Q6 -> 16.4 | S25: 16.4 | T25: 16.4 | U25: 16.4 | V25: 16.4 | Y25: 16.4 | Z25: 16.4 | AB25: 16.4 | AC25: 16.4 | AD25: 16.4 | AE25: 16.4 | AF25: 16.34508407
B26: Glifosato | C26: lt/ha | D26: =D25 -> Octubre | E26: 3.3 | F26: 23.1 | H26: 23.1 | J26: 23.1 | K26: 23.1 | M26: 23.1 | N26: 23.1 | Q26: =$E26*Q7 -> 23.1 | S26: =$E26*S7 -> 23.1 | T26: =$E26*T7 -> 23.1 | U26: 23.1 | V26: 23.1 | Y26: 23.1 | Z26: 23.1 | AB26: 23.1 | AC26: 23.1 | AD26: 23.1 | AE26: 23.1 | AF26: 23.02264891
B27: Round Up Full II | C27: lt/ha | D27: =D26 -> Octubre | E27: 4.75 | F27: 0 | H27: 0 | J27: 0 | K27: 0 | M27: 0 | N27: 0 | Q27: 0 | S27: 0 | T27: 0 | U27: 0 | V27: 0 | Y27: 0 | Z27: 0 | AB27: 0 | AC27: 0 | AD27: 0 | AE27: 0 | AF27: 0
B28: Texaro | C28: kg/ha | D28: =D27 -> Octubre | E28: 400 | F28: 17.2 | H28: 17.2 | J28: 17.2 | K28: 17.2 | M28: 17.2 | N28: 17.2 | Q28: 17.2 | S28: 17.2 | T28: 17.2 | U28: 17.2 | V28: 17.2 | Y28: 17.2 | Z28: 17.2 | AB28: 17.2 | AC28: 17.2 | AD28: 17.2 | AE28: 17.2 | AF28: 17.2
B29: Metsulfurol Metil | C29: kg/ha | D29: =D28 -> Octubre | E29: 30 | F29: 0.3 | H29: 0.3 | J29: 0.3 | K29: 0.3 | M29: 0.3 | N29: 0.3 | Q29: 0.3 | S29: 0.3 | T29: 0.3 | U29: 0.3 | V29: 0.3 | Y29: 0.3 | Z29: 0.3 | AB29: 0.3 | AC29: 0.3 | AD29: 0.3 | AE29: 0.3 | AF29: 0.3
B30: 2,4 D 100% | C30: lt/ha | D30: Octubre | E30: 5.8 | F30: 2.9 | H30: 2.9 | J30: 2.9 | K30: 2.9 | M30: 2.9 | N30: 2.9 | Q30: 2.9 | S30: 2.9 | T30: 2.9 | U30: 2.9 | V30: 2.9 | Y30: 2.9 | Z30: 2.9 | AB30: 2.9 | AC30: 2.9 | AD30: 2.9 | AE30: 2.9 | AF30: 2.9
B31: Semilla RR | C31: kg/ha | D31: Octubre | E31: 0.62 | F31: 49.6 | H31: 49.6 | J31: 49.6 | K31: 49.6 | M31: 49.6 | N31: 49.6 | Q31: 49.6 | S31: 49.6 | T31: 49.6 | U31: 49.6 | V31: 49.6 | Y31: 49.6 | Z31: 49.6 | AB31: 49.6 | AC31: 49.6 | AD31: 49.6 | AE31: 49.6 | AF31: 49.43391281
B32: Inoculante + Fungicida | C32: b 200 gr | D32: Octubre | E32: 3.7 | F32: 5.92 | H32: 5.92 | J32: 5.92 | K32: 5.92 | M32: 5.92 | N32: 5.92 | Q32: 5.92 | S32: 5.92 | T32: 5.92 | U32: 5.92 | V32: 5.92 | Y32: 5.92 | Z32: 5.92 | AB32: 5.92 | AC32: 5.92 | AD32: 5.92 | AE32: 5.92 | AF32: 5.92
B33: Superfosfato triple | C33: kg/ha | D33: Octubre | E33: 0.45 | F33: 0 | H33: 0 | J33: 0 | K33: 0 | M33: 0 | N33: 0 | Q33: 0 | S33: 0 | T33: 0 | U33: 0 | V33: 0 | Y33: 0 | Z33: 0 | AB33: 0 | AC33: 0 | AD33: 0 | AE33: 0 | AF33: 0
B34: Fosfato Monoamónico | C34: kg/ha | D34: Octubre | E34: 0.5 | F34: 0 | H34: 0 | J34: 0 | K34: 0 | M34: 0 | N34: 0 | Q34: 0 | S34: 0 | T34: 0 | U34: 0 | V34: 0 | Y34: 0 | Z34: 0 | AB34: 0 | AC34: 0 | AD34: 0 | AE34: 0 | AF34: 0
B35: Roundup control max | C35: kg/ha | D35: Octubre | E35: 6.3 | F35: 6.93 | H35: 6.93 | J35: 6.93 | K35: 6.93 | M35: 6.93 | N35: 6.93 | Q35: 6.93 | S35: 6.93 | T35: 6.93 | U35: 6.93 | V35: 6.93 | Y35: 6.93 | Z35: 6.93 | AB35: 6.93 | AC35: 6.93 | AD35: 6.93 | AE35: =$E35*AE16 -> 6.93 | AF35: 6.93
B36: Karate zeon 25% | C36: lt/ha | D36: Octubre | E36: 49.56 | F36: 1.239 | H36: 1.239 | J36: 1.239 | K36: 1.239 | M36: 1.239 | N36: 1.239 | Q36: 1.239 | S36: 1.239 | T36: 1.239 | U36: 1.239 | V36: 1.239 | Y36: 1.239 | Z36: 1.239 | AB36: 1.239 | AC36: 1.239 | AD36: 1.239 | AE36: 1.239 | AF36: 1.239
B37: Coragen | C37: kg/ha | D37: Octubre | E37: 270 | F37: 8.1 | H37: 8.1 | J37: 8.1 | K37: 8.1 | M37: 8.1 | N37: 8.1 | Q37: 8.1 | S37: 8.1 | T37: 8.1 | U37: 8.1 | V37: 8.1 | Y37: 8.1 | Z37: 8.1 | AB37: 8.1 | AC37: 8.1 | AD37: 8.1 | AE37: 8.1 | AF37: 8.1
B38: Engeo | C38: lt/ha | D38: Octubre | E38: 47.58 | F38: 9.516 | H38: 9.516 | J38: 9.516 | K38: 9.516 | M38: 9.516 | N38: 9.516 | Q38: 9.516 | S38: 9.516 | T38: =$E38*T19 -> 9.516 | U38: 9.516 | V38: 9.516 | Y38: 9.516 | Z38: 9.516 | AB38: 9.516 | AC38: 9.516 | AD38: 9.516 | AE38: 9.516 | AF38: 9.516
B39: Opera | C39: lt/ha | D39: Octubre | E39: 24 | F39: =$E39*F20 -> 12 | H39: 12 | J39: 12 | K39: 12 | M39: 12 | N39: 12 | Q39: 12 | S39: 12 | T39: 12 | U39: 12 | V39: 12 | Y39: 12 | Z39: 12 | AB39: 12 | AC39: 12 | AD39: 12 | AE39: 12 | AF39: 12
B40: Riego | C40: =+"USD/"&LEFT(C21,2) -> USD/mm | D40: Octubre | E40: 1 | F40: 0 | H40: 0 | J40: 0 | K40: 0 | M40: 0 | N40: 0 | Q40: 0 | S40: 0 | T40: 0 | U40: 0 | V40: 0 | Y40: 0 | Z40: 0 | AB40: 0 | AC40: 0 | AD40: 0 | AE40: 0 | AF40: 0
B41: Siembra | C41: USD/Unidad | D41: Noviembre | E41: 29.9 | F41: =$E$41 -> 29.9 | H41: =$E$41 -> 29.9 | J41: 29.9 | K41: 29.9 | M41: 29.9 | N41: 29.9 | Q41: 29.9 | S41: 29.9 | T41: 29.9 | U41: 29.9 | V41: 29.9 | Y41: 29.9 | Z41: 29.9 | AB41: 29.9 | AC41: 29.9 | AD41: 29.9 | AE41: 29.9 | AF41: =$E$41 -> 29.9
B42: Cosecha | C42: $/Unidad | E42: - | F42: =+Listas!$Q$10 -> 3350.356052 | G42: =+Listas!$Q$10 -> 3350.356052 | H42: =+Listas!$Q$10 -> 3350.356052 | I42: =+Listas!$Q$10 -> 3350.356052 | J42: =+Listas!$Q$10 -> 3350.356052 | K42: =+Listas!$Q$10 -> 3350.356052 | L42: =+Listas!$Q$10 -> 3350.356052 | M42: =+Listas!$Q$10 -> 3350.356052 | N42: =+Listas!$Q$10 -> 3350.356052 | O42: =+Listas!$Q$10 -> 3350.356052 | P42: =+Listas!$Q$10 -> 3350.356052 | Q42: =+Listas!$Q$10 -> 3350.356052 | R42: =+Listas!$Q$10 -> 3350.356052 | S42: =+Listas!$Q$10 -> 3350.356052 | T42: =+Listas!$Q$10 -> 3350.356052 | U42: =+Listas!$Q$10 -> 3350.356052 | V42: =+Listas!$Q$10 -> 3350.356052 | W42: =+Listas!$Q$10 -> 3350.356052 | X42: =+Listas!$Q$10 -> 3350.356052 | Y42: =+Listas!$Q$10 -> 3350.356052 | Z42: =+Listas!$Q$10 -> 3350.356052 | AA42: =+Listas!$Q$10 -> 3350.356052 | AB42: =+Listas!$Q$10 -> 3350.356052 | AC42: =+Listas!$Q$10 -> 3350.356052 | AD42: =+Listas!$Q$10 -> 3350.356052 | AE42: =+Listas!$Q$10 -> 3350.356052 | AF42: =+Listas!$Q$10 -> 3350.356052
B43: Cosecha en USD | C43: USD/Unidad | E43: - | F43: =F42*(1+$E$89)/$E$87 -> 68.07989515 | H43: =H42*(1+$E$89)/$E$87 -> 68.07989515 | J43: =J42*(1+$E$89)/$E$87 -> 68.07989515 | K43: =K42*(1+$E$89)/$E$87 -> 68.07989515 | M43: =M42*(1+$E$89)/$E$87 -> 68.07989515 | N43: =N42*(1+$E$89)/$E$87 -> 68.07989515 | Q43: =Q42*(1+$E$89)/$E$87 -> 68.07989515 | S43: =S42*(1+$E$89)/$E$87 -> 68.07989515 | T43: =T42*(1+$E$89)/$E$87 -> 68.07989515 | U43: =U42*(1+$E$89)/$E$87 -> 68.07989515 | V43: =V42*(1+$E$89)/$E$87 -> 68.07989515 | Y43: =Y42*(1+$E$89)/$E$87 -> 68.07989515 | Z43: =Z42*(1+$E$89)/$E$87 -> 68.07989515 | AB43: =AB42*(1+$E$89)/$E$87 -> 68.07989515 | AC43: =AC42*(1+$E$89)/$E$87 -> 68.07989515 | AD43: =AD42*(1+$E$89)/$E$87 -> 68.07989515 | AE43: =AE42*(1+$E$89)/$E$87 -> 68.07989515 | AF43: =AF42*(1+$E$89)/$E$87 -> 68.07989515
B44: Costos directos | C44: USD/ha | F44: =SUM(F43,F24:F41) -> 267.5848952 | H44: 267.5848952 | J44: 267.5848952 | K44: 267.5848952 | M44: 267.5848952 | N44: 267.5848952 | Q44: 267.5848952 | S44: 267.5848952 | T44: 267.5848952 | U44: 267.5848952 | V44: 267.5848952 | Y44: 267.5848952 | Z44: 267.5848952 | AB44: 267.5848952 | AC44: 267.5848952 | AD44: 267.5848952 | AE44: 267.5848952 | AF44: =SUM(AF43,AF24:AF41) -> 267.231625
B46: Gastos Comerciales (Por Tn) | C46: =C$2 -> Unidad de medida | D46: =D$2 -> Mes de actualiz. | E46: Costo | F46: =F$2 -> Calamuchita | G46: =G$2 -> Capital | H46: Colón | I46: Cruz del Eje | J46: Gral. Roca | K46: Gral. San Martín | L46: Ischilin | M46: Juárez Celman | N46: Marcos Juárez | O46: Minas | P46: Pocho | Q46: Pte. R. Sáenz Peña | R46: Punilla | S46: Río Cuarto | T46: Río Primero | U46: Río Seco | V46: Río Segundo | W46: San Alberto | X46: San Javier | Y46: San Justo | Z46: Santa María | AA46: Sobremonte | AB46: Tercero Arriba | AC46: Totoral | AD46: Tulumba | AE46: Unión | AF46: PROVINCIA
B47: Flete Largo | C47: $/tn | D47: 2019-09-01 | E47: - | F47: 1474.884 | G47: 1470.72 | H47: 1492.848 | I47: 1585.608 | J47: 1480.752 | K47: 1062.396 | L47: 1567.296 | M47: 1126.584 | N47: 704.16 | O47: 1626.66 | P47: 1613.484 | Q47: 1263.72 | R47: 1495.608 | S47: 1434.156 | T47: 1474.308 | U47: 1617.504 | V47: 1353.696 | W47: 1569.564 | X47: 1607.436 | Y47: 1069.26 | Z47: 1472.82 | AA47: 1626.66 | AB47: 1216.548 | AC47: 1519.044 | AD47: 1524.06 | AE47: 881.076 | AF47: 1160.376
B48: Flete Corto (30Km) | C48: $/tn | D48: =D47 -> 2019-09-01 | E48: 310.764 | F48: 310.764 | H48: 310.764 | J48: 310.764 | K48: 310.764 | M48: 310.764 | N48: 310.764 | Q48: 310.764 | S48: 310.764 | T48: 310.764 | U48: 310.764 | V48: 310.764 | Y48: 310.764 | Z48: 310.764 | AB48: 310.764 | AC48: 310.764 | AD48: 310.764 | AE48: 310.764 | AF48: 310.764
B49: Flete Conjunto | C49: USD/tn | D49: - | E49: - | F49: =0.95*(1+$E$90)*(F47+F48)/$E$87 -> 28.5791643 | H49: =0.95*(1+$E$90)*(H47+H48)/$E$87 -> 28.86667679 | J49: =0.95*(1+$E$90)*(J47+J48)/$E$87 -> 28.6730812 | K49: =0.95*(1+$E$90)*(K47+K48)/$E$87 -> 21.97732433 | M49: =0.95*(1+$E$90)*(M47+M48)/$E$87 -> 23.00464853 | N49: =0.95*(1+$E$90)*(N47+N48)/$E$87 -> 16.24378363 | Q49: =0.95*(1+$E$90)*(Q47+Q48)/$E$87 -> 25.19950008 | S49: =0.95*(1+$E$90)*(S47+S48)/$E$87 -> 27.92731567 | T49: =0.95*(1+$E$90)*(T47+T48)/$E$87 -> 28.56994546 | U49: =0.95*(1+$E$90)*(U47+U48)/$E$87 -> 30.86178686 | V49: =0.95*(1+$E$90)*(V47+V48)/$E$87 -> 26.63955931 | Y49: =0.95*(1+$E$90)*(Y47+Y48)/$E$87 -> 22.08718215 | Z49: =0.95*(1+$E$90)*(Z47+Z48)/$E$87 -> 28.54613013 | AB49: =0.95*(1+$E$90)*(AB47+AB48)/$E$87 -> 24.4445157 | AC49: =0.95*(1+$E$90)*(AC47+AC48)/$E$87 -> 29.28594183 | AD49: =0.95*(1+$E$90)*(AD47+AD48)/$E$87 -> 29.36622254 | AE49: =0.95*(1+$E$90)*(AE47+AE48)/$E$87 -> 19.07531113 | AF49: =0.95*(1+$E$90)*(AF47+AF48)/$E$87 -> 23.545487
B50: Paritaria | C50: USD/tn | D50: Noviembre | E50: 4 | F50: =$E$50 -> 4 | H50: =$E$50 -> 4 | J50: 4 | K50: 4 | M50: 4 | N50: 4 | Q50: 4 | S50: 4 | T50: 4 | U50: 4 | V50: 4 | Y50: 4 | Z50: 4 | AB50: 4 | AC50: 4 | AD50: 4 | AE50: 4 | AF50: 4
B51: Secado | C51: USD/tn | D51: =D50 -> Noviembre | E51: 7.5 | F51: =+$E$51 -> 7.5 | H51: =+$E$51 -> 7.5 | J51: 7.5 | K51: 7.5 | M51: 7.5 | N51: 7.5 | Q51: 7.5 | S51: 7.5 | T51: 7.5 | U51: 7.5 | V51: 7.5 | Y51: 7.5 | Z51: 7.5 | AB51: 7.5 | AC51: 7.5 | AD51: 7.5 | AE51: 7.5 | AF51: 7.5
B52: Zarandeo | C52: USD/tn | D52: =D51 -> Noviembre | E52: 2 | F52: =+$E$52 -> 2 | H52: =+$E$52 -> 2 | J52: 2 | K52: 2 | M52: 2 | N52: 2 | Q52: 2 | S52: 2 | T52: 2 | U52: 2 | V52: 2 | Y52: 2 | Z52: 2 | AB52: 2 | AC52: 2 | AD52: 2 | AE52: 2 | AF52: 2
B53: Comisión Acopio | C53: % s. Precio Cosecha | D53: - | E53: 0.005 | F53: =$E$85*$E53 -> 1.02479375 | H53: =$E$85*$E53 -> 1.02479375 | J53: 1.02479375 | K53: 1.02479375 | M53: 1.02479375 | N53: 1.02479375 | Q53: 1.02479375 | S53: 1.02479375 | T53: 1.02479375 | U53: 1.02479375 | V53: 1.02479375 | Y53: 1.02479375 | Z53: 1.02479375 | AB53: 1.02479375 | AC53: 1.02479375 | AD53: 1.02479375 | AE53: 1.02479375 | AF53: 1.02479375
B54: Total Gastos Comerciales | C54: USD/tn | F54: =SUM(F49:F53) -> 43.10395805 | H54: =SUM(H49:H53) -> 43.39147054 | J54: =SUM(J49:J53) -> 43.19787495 | K54: =SUM(K49:K53) -> 36.50211808 | M54: =SUM(M49:M53) -> 37.52944228 | N54: =SUM(N49:N53) -> 30.76857738 | Q54: =SUM(Q49:Q53) -> 39.72429383 | S54: =SUM(S49:S53) -> 42.45210942 | T54: =SUM(T49:T53) -> 43.09473921 | U54: =SUM(U49:U53) -> 45.38658061 | V54: =SUM(V49:V53) -> 41.16435306 | Y54: =SUM(Y49:Y53) -> 36.6119759 | Z54: =SUM(Z49:Z53) -> 43.07092388 | AB54: =SUM(AB49:AB53) -> 38.96930945 | AC54: =SUM(AC49:AC53) -> 43.81073558 | AD54: =SUM(AD49:AD53) -> 43.89101629 | AE54: =SUM(AE49:AE53) -> 33.60010488 | AF54: =SUM(AF49:AF53) -> 38.07028075
B56: Costos Indirectos (Por Ha) | C56: =C$2 -> Unidad de medida | D56: Mes de actualiz. | E56: Costo | F56: =F$2 -> Calamuchita | G56: Capital | H56: Colón | I56: Cruz del Eje | J56: Gral. Roca | K56: Gral. San Martín | L56: Ischilin | M56: Juárez Celman | N56: Marcos Juárez | O56: Minas | P56: Pocho | Q56: Pte. R. Sáenz Peña | R56: Punilla | S56: Río Cuarto | T56: Río Primero | U56: Río Seco | V56: Río Segundo | W56: San Alberto | X56: San Javier | Y56: San Justo | Z56: Santa María | AA56: Sobremonte | AB56: Tercero Arriba | AC56: Totoral | AD56: Tulumba | AE56: Unión | AF56: PROVINCIA
B57: Arrendamiento en qq | C57: qq/ha | D57: Agosto | E57: - | F57: 9.1125 | H57: 9.898635343 | J57: 8.206954047 | K57: 10.00852957 | M57: 9.525559266 | N57: 16.65 | Q57: 9.1625 | S57: 8.497275653 | T57: 8.717654037 | U57: 7.542826206 | V57: 9.919322015 | Y57: 10.19259977 | Z57: 10.1375 | AB57: 9.709541525 | AC57: 8.9875 | AD57: 7.3625 | AE57: 13.3 | AF57: 9.975
B58: Arrendamiento en USD | C58: USD/ha | D58: =D57 -> Agosto | E58: =$E$85 -> 204.95875 | F58: =$E$58*F57/10 -> 186.7686609 | H58: =$E$58*H57/10 -> 202.8811927 | J58: =$E$58*J57/10 -> 168.2087043 | K58: 205.133571 | M58: 195.234672 | N58: 341.2563188 | Q58: =$E$58*Q57/10 -> 187.7934547 | S58: 174.1590996 | T58: 178.6759474 | U58: 154.5968231 | V58: 203.3051841 | Y58: 208.9062509 | Z58: 207.7769328 | AB58: 199.0055494 | AC58: 184.2066766 | AD58: 150.9008797 | AE58: =$E$58*AE57/10 -> 272.5951375 | AF58: =$E$58*AF57/10 -> 204.4463531
B59: Movilidad Campo (Campo + Adm) | C59: USD/ha | E59: 12.3 | F59: =$E59 -> 12.3 | H59: =$E59 -> 12.3 | J59: 12.3 | K59: 12.3 | M59: 12.3 | N59: 12.3 | Q59: 12.3 | S59: 12.3 | T59: 12.3 | U59: 12.3 | V59: 12.3 | Y59: 12.3 | Z59: 12.3 | AB59: 12.3 | AC59: 12.3 | AD59: 12.3 | AE59: =$E59 -> 12.3 | AF59: =$E59 -> 12.3
B60: Personal (Salarios) | C60: USD/ha | D60: Noviembre | E60: 35.06026335 | F60: =$E60 -> 35.06026335 | H60: 35.06026335 | J60: 35.06026335 | K60: 35.06026335 | M60: 35.06026335 | N60: 35.06026335 | Q60: 35.06026335 | S60: 35.06026335 | T60: 35.06026335 | U60: 35.06026335 | V60: 35.06026335 | Y60: 35.06026335 | Z60: 35.06026335 | AB60: 35.06026335 | AC60: 35.06026335 | AD60: 35.06026335 | AE60: =$E60 -> 35.06026335 | AF60: =$E60 -> 35.06026335
B61: Asesoramiento Técnico | C61: USD/ha | E61: 0.01 | F61: =$E61*F97 -> 7.062785916 | H61: =$E61*H97 -> 7.062785916 | J61: =$E61*J97 -> 7.062785916 | K61: =$E61*K97 -> 7.062785916 | M61: =$E61*M97 -> 7.062785916 | N61: =$E61*N97 -> 7.062785916 | Q61: =$E61*Q97 -> 7.062785916 | S61: =$E61*S97 -> 7.062785916 | T61: =$E61*T97 -> 7.062785916 | U61: =$E61*U97 -> 7.062785916 | V61: =$E61*V97 -> 7.062785916 | Y61: =$E61*Y97 -> 7.062785916 | Z61: =$E61*Z97 -> 7.062785916 | AB61: =$E61*AB97 -> 7.062785916 | AC61: =$E61*AC97 -> 7.062785916 | AD61: =$E61*AD97 -> 7.062785916 | AE61: =$E61*AE97 -> 7.062785916 | AF61: =$E61*AF97 -> 7.062785916
B62: Asesoramiento Contable | C62: USD/ha | E62: 6 | F62: =$E62 -> 6 | H62: =$E62 -> 6 | J62: 6 | K62: 6 | M62: 6 | N62: 6 | Q62: 6 | S62: 6 | T62: 6 | U62: 6 | V62: 6 | Y62: 6 | Z62: 6 | AB62: 6 | AC62: 6 | AD62: 6 | AE62: =$E62 -> 6 | AF62: 6
B63: Gastos de oficina/comunicaciones | C63: USD/ha | E63: 3.9 | F63: 3.9 | H63: 3.9 | J63: 3.9 | K63: 3.9 | M63: 3.9 | N63: 3.9 | Q63: 3.9 | S63: 3.9 | T63: 3.9 | U63: 3.9 | V63: 3.9 | Y63: 3.9 | Z63: 3.9 | AB63: 3.9 | AC63: 3.9 | AD63: 3.9 | AE63: 3.9 | AF63: 3.9
B64: Receta Fitosanitaria | C64: USD/ha | E64: 0 | F64: 0 | H64: 0 | J64: 0 | K64: 0 | M64: 0 | N64: 0 | Q64: 0 | S64: 0 | T64: 0 | U64: 0 | V64: 0 | Y64: 0 | Z64: 0 | AB64: 0 | AC64: 0 | AD64: 0 | AE64: 0 | AF64: 0
B65: Asesor Financiero | C65: USD/ha | E65: 0 | F65: 0 | H65: 0 | J65: 0 | K65: 0 | M65: 0 | N65: 0 | Q65: 0 | S65: 0 | T65: 0 | U65: 0 | V65: 0 | Y65: 0 | Z65: 0 | AB65: 0 | AC65: 0 | AD65: 0 | AE65: 0 | AF65: 0
B66: Seguro Climatico | C66: USD/ha | E66: 0 | F66: 0 | H66: 0 | J66: 0 | K66: 0 | M66: 0 | N66: 0 | Q66: 0 | S66: 0 | T66: 0 | U66: 0 | V66: 0 | Y66: 0 | Z66: 0 | AB66: 0 | AC66: 0 | AD66: 0 | AE66: 0 | AF66: 0
B67: Conservaciones y Mejoras | C67: USD/ha | E67: 3 | F67: 3 | H67: 3 | J67: 3 | K67: 3 | M67: 3 | N67: 3 | Q67: 3 | S67: 3 | T67: 3 | U67: 3 | V67: 3 | Y67: 3 | Z67: 3 | AB67: 3 | AC67: 3 | AD67: 3 | AE67: 3 | AF67: 3
B68: Gastos imprevistos/Otros | C68: USD/ha | E68: 0 | F68: 0 | H68: 0 | J68: 0 | K68: 0 | M68: 0 | N68: 0 | Q68: 0 | S68: 0 | T68: 0 | U68: 0 | V68: 0 | Y68: 0 | Z68: 0 | AB68: 0 | AC68: 0 | AD68: 0 | AE68: 0 | AF68: 0
B69: Total Costos Indirectos | F69: =SUM(F58:F68) -> 254.0917102 | H69: =SUM(H58:H68) -> 270.2042419 | J69: 235.5317535 | K69: 272.4566203 | M69: 262.5577213 | N69: 408.579368 | Q69: 255.116504 | S69: 241.4821489 | T69: 245.9989967 | U69: 221.9198723 | V69: 270.6282334 | Y69: 276.2293001 | Z69: 275.0999821 | AB69: 266.3285987 | AC69: 251.5297258 | AD69: 218.223929 | AE69: 339.9181868 | AF69: =SUM(AF58:AF68) -> 271.7694024
B71: Impuestos (Por Ha) | C71: =C$2 -> Unidad de medida | D71: =D$2 -> Mes de actualiz. | E71: Porcentaje | F71: =F$2 -> Calamuchita | G71: Capital | H71: Colón | I71: Cruz del Eje | J71: Gral. Roca | K71: Gral. San Martín | L71: Ischilin | M71: Juárez Celman | N71: Marcos Juárez | O71: Minas | P71: Pocho | Q71: Pte. R. Sáenz Peña | R71: Punilla | S71: Río Cuarto | T71: Río Primero | U71: Río Seco | V71: Río Segundo | W71: San Alberto | X71: San Javier | Y71: San Justo | Z71: Santa María | AA71: Sobremonte | AB71: Tercero Arriba | AC71: Totoral | AD71: Tulumba | AE71: Unión | AF71: PROVINCIA
B72: Impuesto a las ganancias | C72: % s. Resultado Positivo | D72: - | E72: 0.35 | F72: =IF(F103<0,0,$E$72*F103) -> 12.62369305 | H72: =IF(H103<0,0,$E$72*H103) -> 6.637542679 | J72: 19.00640619 | K72: 14.15834931 | M72: 16.38392448 | N72: 0 | Q72: 16.3411748 | S72: 17.82322383 | T72: 15.46726147 | U72: 21.13080133 | V72: 9.17523684 | Y72: 12.70541358 | Z72: 5.310639882 | AB72: 13.32751637 | AC72: 12.66795437 | AD72: 24.22815799 | AE72: 0 | AF72: 12.63118392
B73: Impuesto a la ganancia mínima presunta | C73: - | D73: - | E73: -
B74: Impuestos a los combustibles | C74: - | D74: - | E74: -
B75: Impuesto al cheque | C75: % s. Ingresos Totales | D75: - | E75: 0.012 | F75: =$E$75/2*(F97+F98+F99+F102)*0.4 -> 3.303574773 | H75: =$E$75/2*(H97+H98+H99+H102)*0.4 -> 3.344622661 | J75: =$E$75/2*(J97+J98+J99+J102)*0.4 -> 3.259807597 | K75: =$E$75/2*(K97+K98+K99+K102)*0.4 -> 3.293051416 | M75: =$E$75/2*(M97+M98+M99+M102)*0.4 -> 3.277790329 | N75: =$E$75/2*(N97+N98+N99+N102)*0.4 -> 3.572327957 | Q75: =$E$75/2*(Q97+Q98+Q99+Q102)*0.4 -> 3.27808347 | S75: =$E$75/2*(S97+S98+S99+S102)*0.4 -> 3.267920848 | T75: =$E$75/2*(T97+T98+T99+T102)*0.4 -> 3.284076018 | U75: =$E$75/2*(U97+U98+U99+U102)*0.4 -> 3.245240316 | V75: =$E$75/2*(V97+V98+V99+V102)*0.4 -> 3.32722133 | Y75: =$E$75/2*(Y97+Y98+Y99+Y102)*0.4 -> 3.303014404 | Z75: =$E$75/2*(Z97+Z98+Z99+Z102)*0.4 -> 3.353721423 | AB75: =$E$75/2*(AB97+AB98+AB99+AB102)*0.4 -> 3.298748556 | AC75: =$E$75/2*(AC97+AC98+AC99+AC102)*0.4 -> 3.303271267 | AD75: =$E$75/2*(AD97+AD98+AD99+AD102)*0.4 -> 3.224001299 | AE75: =$E$75/2*(AE97+AE98+AE99+AE102)*0.4 -> 3.43095868 | AF75: =$E$75/2*(AF97+AF98+AF99+AF102)*0.4 -> 3.303523407
B76: Impuesto a los sellos | C76: % s. Ingresos Totales | D76: - | E76: 0.012 | F76: =$E$76*F97 -> 8.475343099 | H76: =$E$76*H97 -> 8.475343099 | J76: =$E$76*J97 -> 8.475343099 | K76: =$E$76*K97 -> 8.475343099 | M76: =$E$76*M97 -> 8.475343099 | N76: =$E$76*N97 -> 8.475343099 | Q76: =$E$76*Q97 -> 8.475343099 | S76: =$E$76*S97 -> 8.475343099 | T76: =$E$76*T97 -> 8.475343099 | U76: =$E$76*U97 -> 8.475343099 | V76: =$E$76*V97 -> 8.475343099 | Y76: =$E$76*Y97 -> 8.475343099 | Z76: =$E$76*Z97 -> 8.475343099 | AB76: =$E$76*AB97 -> 8.475343099 | AC76: =$E$76*AC97 -> 8.475343099 | AD76: =$E$76*AD97 -> 8.475343099 | AE76: =$E$76*AE97 -> 8.475343099 | AF76: =$E$76*AF97 -> 8.475343099
B77: Impuesto inmobiliario | C77: - | D77: - | E77: -
B78: Impuesto a los automotores (rentas) | C78: - | D78: - | E78: -
B79: Impuesto a la renta financiera | C79: - | D79: - | E79: -
B80: Impuesto a utilidades y dividendos | C80: - | D80: - | E80: -
B81: IVA crédito | C81: - | D81: - | E81: -
B82: IVA Débito | C82: - | D82: - | E82: -
B83: Total impuestos | F83: =+SUM(F72:F82) -> 24.40261092 | H83: =+SUM(H72:H82) -> 18.45750844 | J83: 30.74155689 | K83: 25.92674382 | M83: 28.13705791 | N83: 12.04767106 | Q83: 28.09460137 | S83: 29.56648778 | T83: 27.22668059 | U83: 32.85138475 | V83: 20.97780127 | Y83: 24.48377108 | Z83: 17.13970441 | AB83: 25.10160802 | AC83: 24.44656874 | AD83: 35.92750238 | AE83: 11.90630178 | AF83: =+SUM(AF72:AF82) -> 24.41005043
B85: Precio soja cosecha USD/tn | D85: Noviembre | E85: ='Calculadora BCCBA'!C12-'Calculadora BCCBA'!C12*'Calculadora BCCBA'!C22-13.1 -> 204.95875
B86: Dólar siembra | D86: Noviembre | E86: 60.78
B87: Dólar Cosecha | D87: Noviembre | E87: =+'Calculadora BCCBA'!C18 -> 81.2
B88: Dólar Promedio | D88: - | E88: =+(E87+E86)/2 -> 70.99
B89: Inflación esperada hasta dato FACMA de esta campaña | D89: Septiembre | E89: 0.65
B90: Inflación esp. desde FECOTAC hasta mayo | D90: Septiembre | E90: 0.368
B91: Tasa de interes del costo de oportunidad | D91: Septiembre | E91: 0.0175
B92: Precio combustible | D92: - | E92: -
B94: RENTABILIDAD EN DÓLARES | F94: =F$2 -> Calamuchita | G94: Capital | H94: Colón | I94: Cruz del Eje | J94: Gral. Roca | K94: Gral. San Martín | L94: Ischilin | M94: Juárez Celman | N94: Marcos Juárez | O94: Minas | P94: Pocho | Q94: Pte. R. Sáenz Peña | R94: Punilla | S94: Río Cuarto | T94: Río Primero | U94: Río Seco | V94: Río Segundo | W94: San Alberto | X94: San Javier | Y94: San Justo | Z94: Santa María | AA94: Sobremonte | AB94: Tercero Arriba | AC94: Totoral | AD94: Tulumba | AE94: Unión | AF94: PROVINCIA
B95: Rendimientos Soja | D95: qq/ha | F95: =F3 -> 34.45954816 | G95: 34.45954816 | H95: 34.45954816 | I95: 34.45954816 | J95: 34.45954816 | K95: 34.45954816 | L95: 34.45954816 | M95: 34.45954816 | N95: 34.45954816 | O95: 34.45954816 | P95: 34.45954816 | Q95: 34.45954816 | R95: 34.45954816 | S95: 34.45954816 | T95: 34.45954816 | U95: 34.45954816 | V95: 34.45954816 | W95: 34.45954816 | X95: 34.45954816 | Y95: 34.45954816 | Z95: 34.45954816 | AA95: 34.45954816 | AB95: 34.45954816 | AC95: 34.45954816 | AD95: 34.45954816 | AE95: 34.45954816 | AF95: =AF3 -> 34.45954816
B96: Precio Soja | D96: USD/qq | F96: =IF(F95=0,"",$E$85) -> 204.95875 | G96: 204.95875 | H96: 204.95875 | I96: 204.95875 | J96: 204.95875 | K96: 204.95875 | L96: 204.95875 | M96: 204.95875 | N96: 204.95875 | O96: 204.95875 | P96: 204.95875 | Q96: 204.95875 | R96: 204.95875 | S96: 204.95875 | T96: 204.95875 | U96: 204.95875 | V96: 204.95875 | W96: 204.95875 | X96: 204.95875 | Y96: 204.95875 | Z96: 204.95875 | AA96: =IF(AA95=0,"",$E$85) -> 204.95875 | AB96: 204.95875 | AC96: 204.95875 | AD96: 204.95875 | AE96: 204.95875 | AF96: =IF(AF95=0,"",$E$85) -> 204.95875
B97: Ingresos Totales | D97: USD/ha | F97: =IF(F95=0,"",F96*F95/10) -> 706.2785916 | G97: =IF(G95=0,"",G96*G95/10) -> 706.2785916 | H97: 706.2785916 | I97: 706.2785916 | J97: 706.2785916 | K97: 706.2785916 | L97: 706.2785916 | M97: 706.2785916 | N97: 706.2785916 | O97: 706.2785916 | P97: 706.2785916 | Q97: 706.2785916 | R97: 706.2785916 | S97: 706.2785916 | T97: 706.2785916 | U97: 706.2785916 | V97: 706.2785916 | W97: 706.2785916 | X97: 706.2785916 | Y97: 706.2785916 | Z97: 706.2785916 | AA97: 706.2785916 | AB97: 706.2785916 | AC97: 706.2785916 | AD97: 706.2785916 | AE97: 706.2785916 | AF97: =IF(AF95=0,"",AF96*AF95/10) -> 706.2785916
B98: Costos Directos | D98: USD/ha | F98: =IF(F95=0,"",F44) -> 267.5848952 | G98: 0 | H98: 267.5848952 | I98: 0 | J98: 267.5848952 | K98: 267.5848952 | L98: 0 | M98: 267.5848952 | N98: 267.5848952 | O98: 0 | P98: 0 | Q98: 267.5848952 | R98: 0 | S98: 267.5848952 | T98: 267.5848952 | U98: 267.5848952 | V98: 267.5848952 | W98: 0 | X98: 0 | Y98: 267.5848952 | Z98: 267.5848952 | AA98: 0 | AB98: 267.5848952 | AC98: 267.5848952 | AD98: 267.5848952 | AE98: 267.5848952 | AF98: =IF(AF95=0,"",AF44) -> 267.231625
B99: Gastos Comerciales | D99: USD/ha | F99: =IF(F95=0,"",F54*F95/10) -> 148.5342918 | G99: 0 | H99: 149.5250469 | I99: 0 | J99: 148.8579252 | K99: 125.7846496 | L99: 0 | M99: 129.3247624 | N99: 106.0271274 | O99: 0 | P99: 0 | Q99: 136.8881216 | R99: 0 | S99: 146.2880509 | T99: 148.5025241 | U99: 156.400106 | V99: 141.8505007 | W99: 0 | X99: 0 | Y99: 126.1632147 | Z99: 148.4204576 | AA99: 0 | AB99: 134.2864796 | AC99: 150.9698153 | AD99: 151.246459 | AE99: 115.7844432 | AF99: =IF(AF95=0,"",AF54*AF95/10) -> 131.1884673
B100: Margen Bruto | D100: USD/ha | F100: =IF(F95=0,"",F97-F98-F99) -> 290.1594046 | G100: 706.2785916 | H100: 289.1686496 | I100: 706.2785916 | J100: 289.8357712 | K100: 312.9090468 | L100: 706.2785916 | M100: 309.3689341 | N100: 332.6665691 | O100: 706.2785916 | P100: 706.2785916 | Q100: 301.8055748 | R100: 706.2785916 | S100: 292.4056456 | T100: 290.1911723 | U100: 282.2935904 | V100: 296.8431958 | W100: 706.2785916 | X100: 706.2785916 | Y100: 312.5304818 | Z100: 290.2732389 | AA100: 706.2785916 | AB100: 304.4072169 | AC100: 287.7238812 | AD100: 287.4472375 | AE100: 322.9092532 | AF100: =IF(AF95=0,"",AF97-AF98-AF99) -> 307.8584993
B101: Rendimiento de Indiferencia | D101: USD/ha | F101: =IF(F95=0,"",(F98+F99)*10/F96) -> 20.3025822 | G101: 0 | H101: 20.35092144 | I101: 0 | J101: 20.31837237 | K101: 19.19262021 | L101: 0 | M101: 19.36534339 | N101: 18.22864467 | O101: 0 | P101: 0 | Q101: 19.734362 | R101: 0 | S101: 20.19298742 | T101: 20.30103224 | U101: 20.68635768 | V101: 19.97647799 | W101: 0 | X101: 0 | Y101: 19.21109052 | Z101: 20.29702819 | AA101: 0 | AB101: 19.60742709 | AC101: 20.42141213 | AD101: 20.43490966 | AE101: 18.70470709 | AF101: =IF(AF95=0,"",(AF98+AF99)*10/AF96) -> 19.43903797
B102: Costos Indirectos | D102: USD/ha | F102: =IF(F95=0,"",F69) -> 254.0917102 | G102: 0 | H102: 270.2042419 | I102: 0 | J102: 235.5317535 | K102: 272.4566203 | L102: 0 | M102: 262.5577213 | N102: 408.579368 | O102: 0 | P102: 0 | Q102: 255.116504 | R102: 0 | S102: 241.4821489 | T102: 245.9989967 | U102: 221.9198723 | V102: 270.6282334 | W102: 0 | X102: 0 | Y102: 276.2293001 | Z102: 275.0999821 | AA102: 0 | AB102: 266.3285987 | AC102: 251.5297258 | AD102: 218.223929 | AE102: 339.9181868 | AF102: =IF(AF95=0,"",AF69) -> 271.7694024
B103: Resultado Operativo | D103: USD/ha | F103: =IF(F95=0,"",F100-F102) -> 36.06769443 | G103: =IF(G95=0,"",G100-G102) -> 706.2785916 | H103: 18.96440765 | I103: 706.2785916 | J103: 54.30401768 | K103: 40.45242659 | L103: 706.2785916 | M103: 46.81121279 | N103: -75.91279895 | O103: 706.2785916 | P103: 706.2785916 | Q103: 46.68907087 | R103: 706.2785916 | S103: 50.92349667 | T103: 44.19217564 | U103: 60.3737181 | V103: 26.2149624 | W103: 706.2785916 | X103: 706.2785916 | Y103: 36.30118165 | Z103: 15.17325681 | AA103: 706.2785916 | AB103: 38.07861819 | AC103: 36.19415535 | AD103: 69.22330853 | AE103: -17.00893355 | AF103: =IF(AF95=0,"",AF100-AF102) -> 36.08909691
B104: Impuesto a las Ganancias | D104: USD/ha | F104: =IF(F95=0,"",F83) -> 24.40261092 | G104: 0 | H104: 18.45750844 | I104: 0 | J104: 30.74155689 | K104: 25.92674382 | L104: 0 | M104: 28.13705791 | N104: 12.04767106 | O104: 0 | P104: 0 | Q104: 28.09460137 | R104: 0 | S104: 29.56648778 | T104: 27.22668059 | U104: 32.85138475 | V104: 20.97780127 | W104: 0 | X104: 0 | Y104: 24.48377108 | Z104: 17.13970441 | AA104: 0 | AB104: 25.10160802 | AC104: 24.44656874 | AD104: 35.92750238 | AE104: 11.90630178 | AF104: =IF(AF95=0,"",AF83) -> 24.41005043
B105: Margen Neto | D105: USD/ha | F105: =IF(F95=0,"",F103-F104) -> 11.66508351 | G105: =IF(G95=0,"",G103-G104) -> 706.2785916 | H105: 0.5068992145 | I105: 706.2785916 | J105: 23.5624608 | K105: 14.52568277 | L105: 706.2785916 | M105: 18.67415489 | N105: -87.96047001 | O105: 706.2785916 | P105: 706.2785916 | Q105: 18.59446949 | R105: 706.2785916 | S105: 21.35700889 | T105: 16.96549505 | U105: 27.52233335 | V105: 5.237161131 | W105: 706.2785916 | X105: 706.2785916 | Y105: 11.81741057 | Z105: -1.966447598 | AA105: 706.2785916 | AB105: 12.97701017 | AC105: 11.74758661 | AD105: 33.29580615 | AE105: -28.91523533 | AF105: =IF(AF95=0,"",AF103-AF104) -> 11.67904649
B106: Intereses sobre el Capital Invertido | D106: USD/ha | F106: =IF(F95=0,"",F108*$E$91*6/12) -> 3.968971214 | G106: 0 | H106: 4.109955867 | I106: 0 | J106: 3.806571593 | K106: 4.129664177 | L106: 0 | M106: 4.043048811 | N106: 5.32073822 | O106: 0 | P106: 0 | Q106: 3.97793816 | R106: 0 | S106: 3.858637553 | T106: 3.898159971 | U106: 3.687467633 | V106: 4.113665792 | W106: 0 | X106: 0 | Y106: 4.162675126 | Z106: 4.152793593 | AA106: 0 | AB106: 4.076043988 | AC106: 3.946553851 | AD106: 3.655128128 | AE106: 4.719952884 | AF106: =IF(AF95=0,"",AF108*$E$91*6/12) -> 4.120559907
B107: Resultado Económico | D107: USD/ha | F107: =IF(F95=0,"",F105-F106) -> 7.696112295 | G107: 706.2785916 | H107: -3.603056652 | I107: 706.2785916 | J107: 19.7558892 | K107: 10.39601859 | L107: 706.2785916 | M107: 14.63110608 | N107: -93.28120823 | O107: 706.2785916 | P107: 706.2785916 | Q107: 14.61653134 | R107: 706.2785916 | S107: 17.49837134 | T107: 13.06733508 | U107: 23.83486572 | V107: 1.123495339 | W107: 706.2785916 | X107: 706.2785916 | Y107: 7.654735444 | Z107: -6.119241191 | AA107: 706.2785916 | AB107: 8.90096618 | AC107: 7.801032761 | AD107: 29.64067802 | AE107: -33.63518822 | AF107: =IF(AF95=0,"",AF105-AF106) -> 7.558486579
B108: Inversión Inicial | D108: USD/ha | F108: =IF(F95=0,"",F44-F43+F69) -> 453.5967102 | G108: 0 | H108: 469.7092419 | I108: 0 | J108: 435.0367535 | K108: 471.9616203 | L108: 0 | M108: 462.0627213 | N108: 608.084368 | O108: 0 | P108: 0 | Q108: 454.621504 | R108: 0 | S108: 440.9871489 | T108: 445.5039967 | U108: 421.4248723 | V108: 470.1332334 | W108: 0 | X108: 0 | Y108: 475.7343001 | Z108: 474.6049821 | AA108: 0 | AB108: 465.8335987 | AC108: 451.0347258 | AD108: 417.728929 | AE108: 539.4231868 | AF108: =IF(AF95=0,"",AF44-AF43+AF69) -> 470.9211323
B109: Rentabilidad de la Actividad | D109: % | F109: =IF(F95=0,"",F107/F108) -> 0.01696686092 | H109: -0.007670823417 | J109: 0.04541200035 | K109: 0.02202725422 | M109: 0.03166476195 | N109: -0.1534017533 | Q109: 0.0321509898 | S109: 0.03968000287 | T109: 0.02933157766 | U109: 0.05655780491 | V109: 0.002389738184 | Y109: 0.01609035851 | Z109: -0.01289333535 | AB109: 0.01910760882 | AC109: 0.01729585842 | AD109: 0.07095672807 | AE109: -0.06235399042 | AF109: =IF(AF95=0,"",AF107/AF108) -> 0.01605042981

Sheet Trigo + Soja 2ª (hidden)
B2: Planteo Tecnico (Por Ha) | C2: Unidad de medida | D2: Mes de actualiz. | E2: Cantidades | F2: Calamuchita | G2: Capital | H2: Colón | I2: Cruz del Eje | J2: Gral. Roca | K2: Gral. San Martín | L2: Ischilin | M2: Juárez Celman | N2: Marcos Juárez | O2: Minas | P2: Pocho | Q2: Pte. R. Sáenz Peña | R2: Punilla | S2: Río Cuarto | T2: Río Primero | U2: Río Seco | V2: Río Segundo | W2: San Alberto | X2: San Javier | Y2: San Justo | Z2: Santa María | AA2: Sobremonte | AB2: Tercero Arriba | AC2: Totoral | AD2: Tulumba | AE2: Unión | AF2: PROVINCIA
B3: Rendimiento | C3: qq/ha | E3: - | F3: =+'Calculadora BCCBA'!$C$5 -> 28.14 | G3: =+'Calculadora BCCBA'!$C$5 -> 28.14 | H3: =+'Calculadora BCCBA'!$C$5 -> 28.14 | I3: =+'Calculadora BCCBA'!$C$5 -> 28.14 | J3: =+'Calculadora BCCBA'!$C$5 -> 28.14 | K3: =+'Calculadora BCCBA'!$C$5 -> 28.14 | L3: =+'Calculadora BCCBA'!$C$5 -> 28.14 | M3: =+'Calculadora BCCBA'!$C$5 -> 28.14 | N3: =+'Calculadora BCCBA'!$C$5 -> 28.14 | O3: =+'Calculadora BCCBA'!$C$5 -> 28.14 | P3: =+'Calculadora BCCBA'!$C$5 -> 28.14 | Q3: =+'Calculadora BCCBA'!$C$5 -> 28.14 | R3: =+'Calculadora BCCBA'!$C$5 -> 28.14 | S3: =+'Calculadora BCCBA'!$C$5 -> 28.14 | T3: =+'Calculadora BCCBA'!$C$5 -> 28.14 | U3: =+'Calculadora BCCBA'!$C$5 -> 28.14 | V3: =+'Calculadora BCCBA'!$C$5 -> 28.14 | W3: =+'Calculadora BCCBA'!$C$5 -> 28.14 | X3: =+'Calculadora BCCBA'!$C$5 -> 28.14 | Y3: =+'Calculadora BCCBA'!$C$5 -> 28.14 | Z3: =+'Calculadora BCCBA'!$C$5 -> 28.14 | AA3: =+'Calculadora BCCBA'!$C$5 -> 28.14 | AB3: =+'Calculadora BCCBA'!$C$5 -> 28.14 | AC3: =+'Calculadora BCCBA'!$C$5 -> 28.14 | AD3: =+'Calculadora BCCBA'!$C$5 -> 28.14 | AE3: =+'Calculadora BCCBA'!$C$5 -> 28.14 | AF3: =+'Calculadora BCCBA'!$C$5 -> 28.14
B4: Participación Provincial | C4: Porcentaje | E4: - | F4: 0.003099925344 | H4: 0.007549409173 | J4: 0.09722716153 | K4: 0.07514116661 | M4: 0.06509350391 | N4: 0.1303694162 | Q4: 0.1002875044 | S4: 0.05233243037 | T4: 0.04653696647 | U4: 0.01534459927 | V4: 0.06065592376 | Y4: 0.1482281246 | Z4: 0.0010346866 | AB4: 0.02527060185 | AC4: 0.009863989951 | AD4: 0.007720713674 | AE4: 0.1527521938 | AF4: -
B5: Pulverización terrestre | C5: Cantidad | D5: Mayo | E5: 3 | F5: =$E5 -> 3 | H5: =$E5 -> 3 | J5: =$E5 -> 3 | K5: 3 | M5: =$E5 -> 3 | N5: 3 | Q5: =$E5 -> 3 | S5: =$E5 -> 3 | T5: 3 | U5: 3 | V5: 3 | Y5: =$E5 -> 3 | Z5: 3 | AB5: =$E5 -> 3 | AC5: 3 | AD5: 3 | AE5: 3 | AF5: =SUMPRODUCT(F5:AE5,$F$4:$AE$4) -> 2.995524953
B6: Fertilización | C6: Cantidad | D6: =D5 -> Mayo | E6: 1 | F6: 1 | H6: 1 | J6: 1 | K6: 1 | M6: 1 | N6: 1 | Q6: 1 | S6: 1 | T6: 1 | U6: 1 | V6: 1 | Y6: 1 | Z6: 1 | AB6: 1 | AC6: 1 | AD6: 1 | AE6: 1 | AF6: =SUMPRODUCT(F6:AE6,$F$4:$AE$4) -> 0.9985083175
B7: Pulverización aerea | C7: Cantidad | D7: =D6 -> Mayo | E7: 0 | F7: 0 | H7: 0 | J7: 0 | K7: 0 | M7: 0 | N7: 0 | Q7: 0 | S7: 0 | T7: 0 | U7: 0 | V7: 0 | Y7: 0 | Z7: 0 | AB7: 0 | AC7: 0 | AD7: 0 | AE7: 0 | AF7: =+AVERAGE(F7:AE7) -> 0
B8: Metsulfuron Metil | C8: kg/ha | D8: =D7 -> Mayo | E8: 0.006 | F8: 0.006 | H8: 0.006 | J8: 0.006 | K8: 0.006 | M8: 0.006 | N8: 0.006 | Q8: 0.006 | S8: 0.006 | T8: 0.006 | U8: 0.006 | V8: 0.006 | Y8: 0.006 | Z8: 0.006 | AB8: 0.006 | AC8: 0.006 | AD8: 0.006 | AE8: 0.006 | AF8: =+AVERAGE(F8:AE8) -> 0.006
B9: 2 4 D Ester 100% | C9: lt/ha | D9: =D8 -> Mayo | E9: 0.5 | F9: 0.5 | H9: 0.5 | J9: 0.5 | K9: 0.5 | M9: 0.5 | N9: 0.5 | Q9: 0.5 | S9: 0.5 | T9: 0.5 | U9: 0.5 | V9: 0.5 | Y9: 0.5 | Z9: 0.5 | AB9: 0.5 | AC9: 0.5 | AD9: 0.5 | AE9: 0.5 | AF9: =+AVERAGE(F9:AE9) -> 0.5
B10: Glifosato | C10: lt/ha | D10: =D9 -> Mayo | E10: 2.5 | F10: 2.5 | H10: 2.5 | J10: 2.5 | K10: 2.5 | M10: 2.5 | N10: 2.5 | Q10: 2.5 | S10: 2.5 | T10: 2.5 | U10: 2.5 | V10: 2.5 | Y10: 2.5 | Z10: 2.5 | AB10: 2.5 | AC10: 2.5 | AD10: 2.5 | AE10: 2.5 | AF10: =+AVERAGE(F10:AE10) -> 2.5
B11: Semilla | C11: kg/ha | D11: Mayo | E11: - | F11: 140 | H11: 90 | J11: 115 | K11: 100 | M11: 100 | N11: 110 | Q11: 115 | S11: 115 | T11: 97 | U11: 130 | V11: 97 | Y11: 105 | Z11: 140 | AB11: 135 | AC11: 130 | AD11: 125 | AE11: 120 | AF11: =SUMPRODUCT(F11:AE11,$F$4:$AE$4) -> 110.3004752
B12: Curasem. Chucaro | C12: kg/ha | D12: Mayo | E12: 0.21 | F12: =$E12 -> 0.21 | H12: =$E12 -> 0.21 | J12: =$E12 -> 0.21 | K12: =$E12 -> 0.21 | M12: =$E12 -> 0.21 | N12: =$E12 -> 0.21 | Q12: =$E12 -> 0.21 | S12: =$E12 -> 0.21 | T12: =$E12 -> 0.21 | U12: =$E12 -> 0.21 | V12: =$E12 -> 0.21 | Y12: =$E12 -> 0.21 | Z12: =$E12 -> 0.21 | AB12: =$E12 -> 0.21 | AC12: =$E12 -> 0.21 | AD12: =$E12 -> 0.21 | AE12: =$E12 -> 0.21 | AF12: =+AVERAGE(F12:AE12) -> 0.21
B13: Urea | C13: kg/ha | D13: Mayo | E13: - | F13: 39.54545455 | H13: 39.54545455 | J13: 89 | K13: 102.7272727 | M13: 112.7272727 | N13: 150 | Q13: 74 | S13: 81.81818182 | T13: 73.18181818 | U13: 63 | V13: 77.27272727 | Y13: 68.18181818 | Z13: 40 | AB13: 61.36363636 | AC13: 56.36363636 | AD13: 78 | AE13: 150 | AF13: =SUMPRODUCT(F13:AE13,$F$4:$AE$4) -> 100.2186223
B14: Fosfato diamónico | C14: kg/ha | D14: Mayo | E14: - | F14: 0 | H14: 80 | J14: 65 | K14: 90 | M14: 75 | N14: 75 | Q14: 60 | S14: 75 | T14: 50 | U14: 70 | V14: 55 | Y14: 85 | Z14: 80 | AB14: 55 | AC14: 60 | AD14: 60 | AE14: 55 | AF14: =SUMPRODUCT(F14:AE14,$F$4:$AE$4) -> 68.55387236
B15: Banvel | C15: lt/ha | D15: Mayo | E15: 0 | F15: =$E15 -> 0 | H15: =$E15 -> 0 | J15: =$E15 -> 0 | K15: 0 | M15: =$E15 -> 0 | N15: 0 | Q15: =$E15 -> 0 | S15: =$E15 -> 0 | T15: 0 | U15: 0 | V15: 0 | Y15: =$E15 -> 0 | Z15: 0 | AB15: =$E15 -> 0 | AC15: 0 | AD15: 0 | AE15: 0 | AF15: =+AVERAGE(F15:AE15) -> 0
B16: Tordon 24k | C16: lt/ha | D16: Mayo | E16: 0 | F16: =$E16 -> 0 | H16: =$E16 -> 0 | J16: 0 | K16: 0 | M16: 0 | N16: 0 | Q16: =$E16 -> 0 | S16: 0 | T16: 0 | U16: 0 | V16: 0 | Y16: 0 | Z16: 0 | AB16: 0 | AC16: 0 | AD16: 0 | AE16: 0 | AF16: =+AVERAGE(F16:AE16) -> 0
B17: Amistar Extra Gold | C17: lt/ha | D17: Mayo | E17: 0.4 | F17: =$E17 -> 0.4 | H17: =$E17 -> 0.4 | J17: 0.4 | K17: 0.4 | M17: 0.4 | N17: 0.4 | Q17: =$E17 -> 0.4 | S17: 0.4 | T17: 0.4 | U17: 0.4 | V17: 0.4 | Y17: 0.4 | Z17: 0.4 | AB17: 0.4 | AC17: 0.4 | AD17: 0.4 | AE17: 0.4 | AF17: =+AVERAGE(F17:AE17) -> 0.4
B18: Karate Zeon 25% | C18: lt/ha | D18: Mayo | E18: 0.025 | F18: =$E18 -> 0.025 | H18: =$E18 -> 0.025 | J18: 0.025 | K18: 0.025 | M18: 0.025 | N18: 0.025 | Q18: =$E18 -> 0.025 | S18: 0.025 | T18: 0.025 | U18: 0.025 | V18: 0.025 | Y18: 0.025 | Z18: 0.025 | AB18: 0.025 | AC18: 0.025 | AD18: 0.025 | AE18: 0.025 | AF18: =+AVERAGE(F18:AE18) -> 0.025
B19: Riego | C19: mm/ha | D19: - | E19: - | F19: 0 | H19: =+$F$19 -> 0 | J19: =+$F$19 -> 0 | K19: 0 | M19: 0 | N19: 0 | Q19: 0 | S19: 0 | T19: 0 | U19: 0 | V19: =+$F$19 -> 0 | Y19: =+$F$19 -> 0 | Z19: 0 | AB19: 0 | AC19: =+$F$19 -> 0 | AD19: =+$F$19 -> 0 | AE19: =+$F$19 -> 0 | AF19: 0
B21: Costos Directos (Por Ha) | C21: =C$2 -> Unidad de medida | D21: =D$2 -> Mes de actualiz. | E21: Precio | F21: Calamuchita | G21: Capital | H21: Colón | I21: Cruz del Eje | J21: Gral. Roca | K21: Gral. San Martín | L21: Ischilin | M21: Juárez Celman | N21: Marcos Juárez | O21: Minas | P21: Pocho | Q21: Pte. R. Sáenz Peña | R21: Punilla | S21: Río Cuarto | T21: Río Primero | U21: Río Seco | V21: Río Segundo | W21: San Alberto | X21: San Javier | Y21: San Justo | Z21: Santa María | AA21: Sobremonte | AB21: Tercero Arriba | AC21: Totoral | AD21: Tulumba | AE21: Unión | AF21: PROVINCIA
B22: Pulverización terrestre | C22: USD/Unidad | D22: Mayo | E22: 4.1 | F22: =$E22*F5 -> 12.3 | H22: =$E22*H5 -> 12.3 | J22: =$E22*J5 -> 12.3 | K22: 12.3 | M22: =$E22*M5 -> 12.3 | N22: 12.3 | Q22: =$E22*Q5 -> 12.3 | S22: =$E22*S5 -> 12.3 | T22: 12.3 | U22: 12.3 | V22: 12.3 | Y22: =$E22*Y5 -> 12.3 | Z22: 12.3 | AB22: =$E22*AB5 -> 12.3 | AC22: 12.3 | AD22: 12.3 | AE22: 12.3 | AF22: 12.28165231
B23: Fertilización | C23: USD/Unidad | D23: =D22 -> Mayo | E23: 6.83 | F23: 6.83 | H23: 6.83 | J23: 6.83 | K23: 6.83 | M23: 6.83 | N23: 6.83 | Q23: 6.83 | S23: 6.83 | T23: 6.83 | U23: 6.83 | V23: 6.83 | Y23: 6.83 | Z23: 6.83 | AB23: 6.83 | AC23: 6.83 | AD23: 6.83 | AE23: 6.83 | AF23: 6.819811809
B24: Pulverización aerea | C24: USD/Unidad | D24: =D23 -> Mayo | E24: 8.2 | F24: 0 | H24: 0 | J24: 0 | K24: 0 | M24: 0 | N24: 0 | Q24: 0 | S24: 0 | T24: 0 | U24: 0 | V24: 0 | Y24: 0 | Z24: 0 | AB24: 0 | AC24: 0 | AD24: 0 | AE24: 0 | AF24: 0
B25: Metsulfuron Metil | C25: =+"USD/"&LEFT(C8,2) -> USD/kg | D25: =D24 -> Mayo | E25: 30 | F25: 0.18 | H25: 0.18 | J25: 0.18 | K25: 0.18 | M25: 0.18 | N25: 0.18 | Q25: 0.18 | S25: 0.18 | T25: 0.18 | U25: 0.18 | V25: 0.18 | Y25: 0.18 | Z25: 0.18 | AB25: 0.18 | AC25: 0.18 | AD25: 0.18 | AE25: 0.18 | AF25: 0.18
B26: 2 4 D Ester 100% | C26: USD/lt | D26: =D25 -> Mayo | E26: 5.8 | F26: 2.9 | H26: 2.9 | J26: 2.9 | K26: 2.9 | M26: 2.9 | N26: 2.9 | Q26: 2.9 | S26: 2.9 | T26: 2.9 | U26: 2.9 | V26: 2.9 | Y26: 2.9 | Z26: 2.9 | AB26: 2.9 | AC26: 2.9 | AD26: 2.9 | AE26: 2.9 | AF26: 2.9
B27: Glifosato | C27: USD/lt | D27: =D26 -> Mayo | E27: 3.3 | F27: 8.25 | H27: 8.25 | J27: 8.25 | K27: 8.25 | M27: 8.25 | N27: 8.25 | Q27: 8.25 | S27: 8.25 | T27: 8.25 | U27: 8.25 | V27: 8.25 | Y27: 8.25 | Z27: 8.25 | AB27: 8.25 | AC27: 8.25 | AD27: 8.25 | AE27: 8.25 | AF27: 8.25
B28: Semilla | C28: USD/kg | D28: =D27 -> Mayo | E28: 0.4 | F28: 56 | H28: 36 | J28: 46 | K28: 40 | M28: 40 | N28: 44 | Q28: 46 | S28: 46 | T28: 38.8 | U28: 52 | V28: 38.8 | Y28: 42 | Z28: 56 | AB28: 54 | AC28: 52 | AD28: 50 | AE28: 48 | AF28: 44.12019006
B29: Curasem. Chucaro | C29: USD/kg | D29: Mayo | E29: 88.67 | F29: 18.6207 | H29: 18.6207 | J29: 18.6207 | K29: 18.6207 | M29: 18.6207 | N29: 18.6207 | Q29: 18.6207 | S29: 18.6207 | T29: 18.6207 | U29: 18.6207 | V29: 18.6207 | Y29: 18.6207 | Z29: 18.6207 | AB29: 18.6207 | AC29: 18.6207 | AD29: 18.6207 | AE29: 18.6207 | AF29: 18.6207
B30: Urea | C30: USD/kg | D30: Mayo | E30: 0.4 | F30: 15.81818182 | H30: 15.81818182 | J30: 35.6 | K30: 41.09090909 | M30: 45.09090909 | N30: 60 | Q30: 29.6 | S30: 32.72727273 | T30: 29.27272727 | U30: 25.2 | V30: 30.90909091 | Y30: 27.27272727 | Z30: 16 | AB30: 24.54545455 | AC30: 22.54545455 | AD30: 31.2 | AE30: 60 | AF30: 40.08744893
B31: Fosfato diamónico | C31: USD/kg | D31: Mayo | E31: 0.5 | F31: 0 | H31: 40 | J31: 32.5 | K31: 45 | M31: 37.5 | N31: 37.5 | Q31: 30 | S31: 37.5 | T31: 25 | U31: 35 | V31: 27.5 | Y31: 42.5 | Z31: 40 | AB31: 27.5 | AC31: 30 | AD31: 30 | AE31: 27.5 | AF31: 34.27693618
B32: Banvel | C32: USD/lt | D32: Mayo | E32: 10.6 | F32: 0 | H32: 0 | J32: 0 | K32: 0 | M32: 0 | N32: 0 | Q32: 0 | S32: 0 | T32: 0 | U32: 0 | V32: 0 | Y32: 0 | Z32: 0 | AB32: 0 | AC32: 0 | AD32: 0 | AE32: 0 | AF32: 0
B33: Tordon 24k | C33: USD/lt | D33: Mayo | E33: 14.5 | F33: 0 | H33: 0 | J33: 0 | K33: 0 | M33: 0 | N33: 0 | Q33: 0 | S33: 0 | T33: 0 | U33: 0 | V33: 0 | Y33: 0 | Z33: 0 | AB33: 0 | AC33: 0 | AD33: 0 | AE33: 0 | AF33: 0
B34: Amistar Extra Gold | C34: USD/lt | D34: Mayo | E34: 43.23 | F34: 17.292 | H34: 17.292 | J34: 17.292 | K34: 17.292 | M34: 17.292 | N34: 17.292 | Q34: 17.292 | S34: 17.292 | T34: 17.292 | U34: 17.292 | V34: 17.292 | Y34: 17.292 | Z34: 17.292 | AB34: 17.292 | AC34: 17.292 | AD34: 17.292 | AE34: 17.292 | AF34: 17.292
B35: Karate Zeon 5% | C35: USD/lt | D35: Mayo | E35: 49.56 | F35: 1.239 | H35: 1.239 | J35: 1.239 | K35: 1.239 | M35: 1.239 | N35: 1.239 | Q35: 1.239 | S35: 1.239 | T35: 1.239 | U35: 1.239 | V35: 1.239 | Y35: 1.239 | Z35: 1.239 | AB35: 1.239 | AC35: 1.239 | AD35: 1.239 | AE35: 1.239 | AF35: 1.239
B36: Riego | C36: =+"USD/"&LEFT(C19,2) -> USD/mm | D36: =D35 -> Mayo | E36: 1 | F36: 0 | H36: 0 | J36: 0 | K36: 0 | M36: 0 | N36: 0 | Q36: 0 | S36: 0 | T36: 0 | U36: 0 | V36: 0 | Y36: 0 | Z36: 0 | AB36: 0 | AC36: 0 | AD36: 0 | AE36: 0 | AF36: 0
B37: Siembra | C37: USD/Unidad | D37: Junio | E37: 30.07 | F37: =$E$37 -> 30.07 | H37: =$E$37 -> 30.07 | J37: =$E$37 -> 30.07 | K37: =$E$37 -> 30.07 | M37: =$E$37 -> 30.07 | N37: =$E$37 -> 30.07 | Q37: =$E$37 -> 30.07 | S37: =$E$37 -> 30.07 | T37: =$E$37 -> 30.07 | U37: =$E$37 -> 30.07 | V37: =$E$37 -> 30.07 | Y37: =$E$37 -> 30.07 | Z37: =$E$37 -> 30.07 | AB37: =$E$37 -> 30.07 | AC37: =$E$37 -> 30.07 | AD37: =$E$37 -> 30.07 | AE37: =$E$37 -> 30.07 | AF37: =$E$37 -> 30.07
B38: Cosecha | C38: $/Unidad | E38: - | F38: =+Listas!$W$10 -> 3501.04 | G38: =+Listas!$W$10 -> 3501.04 | H38: =+Listas!$W$10 -> 3501.04 | I38: =+Listas!$W$10 -> 3501.04 | J38: =+Listas!$W$10 -> 3501.04 | K38: =+Listas!$W$10 -> 3501.04 | L38: =+Listas!$W$10 -> 3501.04 | M38: =+Listas!$W$10 -> 3501.04 | N38: =+Listas!$W$10 -> 3501.04 | O38: =+Listas!$W$10 -> 3501.04 | P38: =+Listas!$W$10 -> 3501.04 | Q38: =+Listas!$W$10 -> 3501.04 | R38: =+Listas!$W$10 -> 3501.04 | S38: =+Listas!$W$10 -> 3501.04 | T38: =+Listas!$W$10 -> 3501.04 | U38: =+Listas!$W$10 -> 3501.04 | V38: =+Listas!$W$10 -> 3501.04 | W38: =+Listas!$W$10 -> 3501.04 | X38: =+Listas!$W$10 -> 3501.04 | Y38: =+Listas!$W$10 -> 3501.04 | Z38: =+Listas!$W$10 -> 3501.04 | AA38: =+Listas!$W$10 -> 3501.04 | AB38: =+Listas!$W$10 -> 3501.04 | AC38: =+Listas!$W$10 -> 3501.04 | AD38: =+Listas!$W$10 -> 3501.04 | AE38: =+Listas!$W$10 -> 3501.04 | AF38: =+Listas!$W$10 -> 3501.04
B39: Cosecha en USD | C39: USD/Unidad | E39: - | F39: =F38*(1+$E$129)/$E$124 -> 60.39995071 | H39: =H38*(1+$E$129)/$E$124 -> 60.39995071 | J39: =J38*(1+$E$129)/$E$124 -> 60.39995071 | K39: =K38*(1+$E$129)/$E$124 -> 60.39995071 | M39: =M38*(1+$E$129)/$E$124 -> 60.39995071 | N39: =N38*(1+$E$129)/$E$124 -> 60.39995071 | Q39: =Q38*(1+$E$129)/$E$124 -> 60.39995071 | S39: =S38*(1+$E$129)/$E$124 -> 60.39995071 | T39: =T38*(1+$E$129)/$E$124 -> 60.39995071 | U39: =U38*(1+$E$129)/$E$124 -> 60.39995071 | V39: =V38*(1+$E$129)/$E$124 -> 60.39995071 | Y39: =Y38*(1+$E$129)/$E$124 -> 60.39995071 | Z39: =Z38*(1+$E$129)/$E$124 -> 60.39995071 | AB39: =AB38*(1+$E$129)/$E$124 -> 60.39995071 | AC39: =AC38*(1+$E$129)/$E$124 -> 60.39995071 | AD39: =AD38*(1+$E$129)/$E$124 -> 60.39995071 | AE39: =AE38*(1+$E$129)/$E$124 -> 60.39995071 | AF39: =AF38*(1+$E$129)/$E$124 -> 60.39995071
B40: Costos directos | C40: USD/ha | F40: =SUM(F39,F22:F37) -> 229.8998325 | H40: =SUM(H39,H22:H37) -> 249.8998325 | J40: =SUM(J39,J22:J37) -> 272.1816507 | K40: =SUM(K39,K22:K37) -> 284.1725598 | M40: =SUM(M39,M22:M37) -> 280.6725598 | N40: =SUM(N39,N22:N37) -> 299.5816507 | Q40: =SUM(Q39,Q22:Q37) -> 263.6816507 | S40: =SUM(S39,S22:S37) -> 274.3089234 | T40: =SUM(T39,T22:T37) -> 251.154378 | U40: =SUM(U39,U22:U37) -> 270.2816507 | V40: =SUM(V39,V22:V37) -> 255.2907416 | Y40: =SUM(Y39,Y22:Y37) -> 269.854378 | Z40: =SUM(Z39,Z22:Z37) -> 270.0816507 | AB40: =SUM(AB39,AB22:AB37) -> 264.1271053 | AC40: =SUM(AC39,AC22:AC37) -> 262.6271053 | AD40: =SUM(AD39,AD22:AD37) -> 269.2816507 | AE40: =SUM(AE39,AE22:AE37) -> 293.5816507 | AF40: =SUM(AF39,AF22:AF37) -> 276.53769
B42: Gastos comerciales (Por tonelada) | C42: =C$2 -> Unidad de medida | D42: =D$2 -> Mes de actualiz. | E42: Costo | F42: Calamuchita | G42: Capital | H42: Colón | I42: Cruz del Eje | J42: Gral. Roca | K42: Gral. San Martín | L42: Ischilin | M42: Juárez Celman | N42: Marcos Juárez | O42: Minas | P42: Pocho | Q42: Pte. R. Sáenz Peña | R42: Punilla | S42: Río Cuarto | T42: Río Primero | U42: Río Seco | V42: Río Segundo | W42: San Alberto | X42: San Javier | Y42: San Justo | Z42: Santa María | AA42: Sobremonte | AB42: Tercero Arriba | AC42: Totoral | AD42: Tulumba | AE42: Unión | AF42: PROVINCIA
B43: Flete Largo | C43: $/tn | D43: 2019-09-01 | E43: - | F43: 1474.884 | G43: 1470.72 | H43: 1492.848 | I43: 1585.608 | J43: 1480.752 | K43: 1062.396 | L43: 1567.296 | M43: 1126.584 | N43: 704.16 | O43: 1626.66 | P43: 1613.484 | Q43: 1263.72 | R43: 1495.608 | S43: 1434.156 | T43: 1474.308 | U43: 1617.504 | V43: 1353.696 | W43: 1569.564 | X43: 1607.436 | Y43: 1069.26 | Z43: 1472.82 | AA43: 1626.66 | AB43: 1216.548 | AC43: 1519.044 | AD43: 1524.06 | AE43: 881.076 | AF43: 1160.376
B44: Flete Corto (30Km) | C44: $/tn | D44: =D43 -> 2019-09-01 | E44: 310.764 | F44: 310.764 | H44: 310.764 | I44: 310.764 | J44: 310.764 | K44: 310.764 | L44: 310.764 | M44: 310.764 | N44: 310.764 | O44: 310.764 | P44: 310.764 | Q44: 310.764 | R44: 310.764 | S44: 310.764 | T44: 310.764 | U44: 310.764 | V44: 310.764 | W44: 310.764 | X44: 310.764 | Y44: 310.764 | Z44: 310.764 | AA44: 310.764 | AB44: 310.764 | AC44: 310.764 | AD44: 310.764 | AE44: 310.764 | AF44: 310.764
B45: Flete Conjunto | C45: USD/tn | D45: - | E45: - | F45: =0.95*(1+$E$131)*(F43+F44)/$E$124 -> 29.26570351 | H45: =0.95*(1+$E$131)*(H43+H44)/$E$124 -> 29.56012274 | I45: 31.0804037 | J45: 29.36187652 | K45: 22.50527172 | L45: 30.78028096 | M45: 23.55727468 | N45: 16.63399778 | O45: 31.75322144 | P45: 31.53727468 | Q45: 25.80485176 | R45: 29.60535749 | S45: 28.59819593 | T45: 29.25626322 | U45: 31.60316007 | V45: 27.27950462 | W45: 30.81745213 | X45: 31.43815157 | Y45: 22.61776858 | Z45: 29.23187579 | AA45: 31.75322144 | AB45: 25.03173087 | AC45: 29.98945952 | AD45: 30.07166876 | AE45: 19.53354529 | AF45: 24.11110536
B46: Paritaria | C46: USD/tn | D46: Octubre | E46: 4 | F46: =$E$46 -> 4 | H46: =$E$46 -> 4 | I46: 4 | J46: 4 | K46: 4 | L46: 4 | M46: 4 | N46: 4 | O46: 4 | P46: 4 | Q46: 4 | R46: 4 | S46: 4 | T46: 4 | U46: 4 | V46: 4 | W46: 4 | X46: 4 | Y46: 4 | Z46: 4 | AA46: 4 | AB46: 4 | AC46: 4 | AD46: 4 | AE46: 4 | AF46: 4
B47: Comisión Acopio | C47: % s. Precio Cosecha | D47: - | E47: 0.005 | F47: =$E$121*$E47 -> 0.7185 | H47: =$E$121*$E47 -> 0.7185 | I47: 0.7185 | J47: 0.7185 | K47: 0.7185 | L47: 0.7185 | M47: 0.7185 | N47: 0.7185 | O47: 0.7185 | P47: 0.7185 | Q47: 0.7185 | R47: 0.7185 | S47: 0.7185 | T47: 0.7185 | U47: 0.7185 | V47: 0.7185 | W47: 0.7185 | X47: 0.7185 | Y47: 0.7185 | Z47: 0.7185 | AA47: 0.7185 | AB47: 0.7185 | AC47: 0.7185 | AD47: 0.7185 | AE47: 0.7185 | AF47: 0.7185
B48: Total Gastos Comerciales | C48: USD/tn | F48: =SUM(F45:F47) -> 33.98420351 | H48: =SUM(H45:H47) -> 34.27862274 | I48: 35.7989037 | J48: 34.08037652 | K48: 27.22377172 | L48: 35.49878096 | M48: 28.27577468 | N48: 21.35249778 | O48: 36.47172144 | P48: 36.25577468 | Q48: 30.52335176 | R48: 34.32385749 | S48: 33.31669593 | T48: 33.97476322 | U48: 36.32166007 | V48: 31.99800462 | W48: 35.53595213 | X48: 36.15665157 | Y48: 27.33626858 | Z48: 33.95037579 | AA48: 36.47172144 | AB48: 29.75023087 | AC48: 34.70795952 | AD48: 34.79016876 | AE48: 24.25204529 | AF48: =SUM(AF45:AF47) -> 28.82960536
B50: Planteo Tecnico (Por Ha) | C50: =C$2 -> Unidad de medida | D50: Mes de actualiz. | E50: Cantidades | F50: Calamuchita | G50: Capital | H50: Colón | I50: Cruz del Eje | J50: Gral. Roca | K50: Gral. San Martín | L50: Ischilin | M50: Juárez Celman | N50: Marcos Juárez | O50: Minas | P50: Pocho | Q50: Pte. R. Sáenz Peña | R50: Punilla | S50: Río Cuarto | T50: Río Primero | U50: Río Seco | V50: Río Segundo | W50: San Alberto | X50: San Javier | Y50: San Justo | Z50: Santa María | AA50: Sobremonte | AB50: Tercero Arriba | AC50: Totoral | AD50: Tulumba | AE50: Unión | AF50: =AF$2 -> PROVINCIA
B51: Rendimiento | C51: qq/ha | E51: - | F51: =+'Calculadora BCCBA'!$C$7 -> 28.55219705 | G51: =+'Calculadora BCCBA'!$C$7 -> 28.55219705 | H51: =+'Calculadora BCCBA'!$C$7 -> 28.55219705 | I51: =+'Calculadora BCCBA'!$C$7 -> 28.55219705 | J51: =+'Calculadora BCCBA'!$C$7 -> 28.55219705 | K51: =+'Calculadora BCCBA'!$C$7 -> 28.55219705 | L51: =+'Calculadora BCCBA'!$C$7 -> 28.55219705 | M51: =+'Calculadora BCCBA'!$C$7 -> 28.55219705 | N51: =+'Calculadora BCCBA'!$C$7 -> 28.55219705 | O51: =+'Calculadora BCCBA'!$C$7 -> 28.55219705 | P51: =+'Calculadora BCCBA'!$C$7 -> 28.55219705 | Q51: =+'Calculadora BCCBA'!$C$7 -> 28.55219705 | R51: =+'Calculadora BCCBA'!$C$7 -> 28.55219705 | S51: =+'Calculadora BCCBA'!$C$7 -> 28.55219705 | T51: =+'Calculadora BCCBA'!$C$7 -> 28.55219705 | U51: =+'Calculadora BCCBA'!$C$7 -> 28.55219705 | V51: =+'Calculadora BCCBA'!$C$7 -> 28.55219705 | W51: =+'Calculadora BCCBA'!$C$7 -> 28.55219705 | X51: =+'Calculadora BCCBA'!$C$7 -> 28.55219705 | Y51: =+'Calculadora BCCBA'!$C$7 -> 28.55219705 | Z51: =+'Calculadora BCCBA'!$C$7 -> 28.55219705 | AA51: =+'Calculadora BCCBA'!$C$7 -> 28.55219705 | AB51: =+'Calculadora BCCBA'!$C$7 -> 28.55219705 | AC51: =+'Calculadora BCCBA'!$C$7 -> 28.55219705 | AD51: =+'Calculadora BCCBA'!$C$7 -> 28.55219705 | AE51: =+'Calculadora BCCBA'!$C$7 -> 28.55219705 | AF51: =+'Calculadora BCCBA'!$C$7 -> 28.55219705
B52: Participación Provincial | C52: Porcentaje | E52: - | F52: 0.001742049361 | H52: 0.01186196578 | J52: 0.03350425799 | K52: 0.05303851776 | M52: 0.04699934324 | N52: 0.2012491081 | Q52: 0.05259377195 | S52: 0.1388426156 | T52: 0.0578190491 | U52: 0.007351933704 | V52: 0.08116932004 | Y52: 0.1310691353 | Z52: 0.0034817501 | AB52: 0.04969430625 | AC52: 0.02062094546 | AD52: 0.01236140206 | AE52: 0.09312873711 | AF52: -
B53: Pulverización terrestre | C53: Cantidad | D53: Noviembre | E53: 2 | F53: =$E53 -> 2 | H53: =$E53 -> 2 | J53: =$E53 -> 2 | K53: 2 | M53: =$E53 -> 2 | N53: 2 | Q53: =$E53 -> 2 | S53: =$E53 -> 2 | T53: 2 | U53: 2 | V53: 2 | Y53: =$E53 -> 2 | Z53: 2 | AB53: =$E53 -> 2 | AC53: 2 | AD53: 2 | AE53: 2 | AF53: =SUMPRODUCT(F53:AE53,$F$52:$AE$52) -> 1.993056418
B54: Pulverización aerea | C54: Cantidad | D54: =D53 -> Noviembre | E54: 2 | F54: 2 | H54: 2 | J54: 2 | K54: 2 | M54: 2 | N54: 2 | Q54: 2 | S54: 2 | T54: 2 | U54: 2 | V54: 2 | Y54: 2 | Z54: 2 | AB54: 2 | AC54: 2 | AD54: 2 | AE54: 2 | AF54: =SUMPRODUCT(F54:AE54,$F$52:$AE$52) -> 1.993056418
B55: Glifosato | C55: lt/ha | D55: =D54 -> Noviembre | E55: 2.5 | F55: 2.5 | H55: 2.5 | J55: 2.5 | K55: 2.5 | M55: 2.5 | N55: 2.5 | Q55: 2.5 | S55: 2.5 | T55: 2.5 | U55: 2.5 | V55: 2.5 | Y55: 2.5 | Z55: 2.5 | AB55: 2.5 | AC55: 2.5 | AD55: 2.5 | AE55: 2.5 | AF55: =SUMPRODUCT(F55:AE55,$F$52:$AE$52) -> 2.491320522
B56: Semilla RR | C56: kg/ha | D56: =D55 -> Noviembre | E56: 80 | F56: 80 | H56: 80 | J56: 80 | K56: 80 | M56: 80 | N56: 80 | Q56: 80 | S56: 80 | T56: 80 | U56: 80 | V56: 80 | Y56: 80 | Z56: 80 | AB56: 80 | AC56: 80 | AD56: 80 | AE56: 80 | AF56: =SUMPRODUCT(F56:AE56,$F$52:$AE$52) -> 79.72225672
B57: Inoculante + Fungicida | C57: c/50 kg | D57: =D56 -> Noviembre | E57: 1.6 | F57: 1.6 | H57: 1.6 | J57: 1.6 | K57: 1.6 | M57: 1.6 | N57: 1.6 | Q57: 1.6 | S57: 1.6 | T57: 1.6 | U57: 1.6 | V57: 1.6 | Y57: 1.6 | Z57: 1.6 | AB57: 1.6 | AC57: 1.6 | AD57: 1.6 | AE57: 1.6 | AF57: 1.6
B58: Pivot H | C58: lt/ha | D58: =D57 -> Noviembre | E58: 0 | F58: 0 | H58: 0 | J58: 0 | K58: 0 | M58: 0 | N58: 0 | Q58: 0 | S58: 0 | T58: 0 | U58: 0 | V58: 0 | Y58: 0 | Z58: 0 | AB58: 0 | AC58: 0 | AD58: 0 | AE58: 0 | AF58: 0
B59: Roundup control max | C59: kg/ha | D59: Noviembre | E59: 1.1 | F59: 1.1 | H59: 1.1 | J59: 1.1 | K59: 1.1 | M59: 1.1 | N59: 1.1 | Q59: 1.1 | S59: 1.1 | T59: 1.1 | U59: 1.1 | V59: 1.1 | Y59: 1.1 | Z59: 1.1 | AB59: 1.1 | AC59: 1.1 | AD59: 1.1 | AE59: 1.1 | AF59: 1.1
B60: Coragen | C60: kg/ha | D60: Noviembre | E60: 0.03 | F60: 0.03 | H60: 0.03 | J60: 0.03 | K60: 0.03 | M60: 0.03 | N60: 0.03 | Q60: 0.03 | S60: 0.03 | T60: 0.03 | U60: 0.03 | V60: 0.03 | Y60: 0.03 | Z60: 0.03 | AB60: 0.03 | AC60: 0.03 | AD60: 0.03 | AE60: 0.03 | AF60: 0.03
B61: Engeo | C61: lt/ha | D61: Noviembre | E61: 0.2 | F61: 0.2 | H61: 0.2 | J61: 0.2 | K61: 0.2 | M61: 0.2 | N61: 0.2 | Q61: 0.2 | S61: 0.2 | T61: 0.2 | U61: 0.2 | V61: 0.2 | Y61: 0.2 | Z61: 0.2 | AB61: 0.2 | AC61: 0.2 | AD61: 0.2 | AE61: 0.2 | AF61: 0.2
B62: Opera | C62: lt/ha | D62: Noviembre | E62: 0.5 | F62: 0.5 | H62: 0.5 | J62: 0.5 | K62: 0.5 | M62: 0.5 | N62: 0.5 | Q62: 0.5 | S62: 0.5 | T62: 0.5 | U62: 0.5 | V62: 0.5 | Y62: 0.5 | Z62: 0.5 | AB62: 0.5 | AC62: 0.5 | AD62: 0.5 | AE62: 0.5 | AF62: 0.5
B63: Riego | C63: mm/ha | D63: - | E63: - | F63: 0 | H63: 0 | J63: 0 | K63: 0 | M63: 0 | N63: 0 | Q63: 0 | S63: 0 | T63: 0 | U63: 0 | V63: 0 | Y63: 0 | Z63: 0 | AB63: 0 | AC63: 0 | AD63: 0 | AE63: 0 | AF63: 0
B65: Costos Directos (Por Ha) | C65: =C$2 -> Unidad de medida | D65: Mes de actualiz. | E65: Precio | F65: Calamuchita | G65: Capital | H65: Colón | I65: Cruz del Eje | J65: Gral. Roca | K65: Gral. San Martín | L65: Ischilin | M65: Juárez Celman | N65: Marcos Juárez | O65: Minas | P65: Pocho | Q65: Pte. R. Sáenz Peña | R65: Punilla | S65: Río Cuarto | T65: Río Primero | U65: Río Seco | V65: Río Segundo | W65: San Alberto | X65: San Javier | Y65: San Justo | Z65: Santa María | AA65: Sobremonte | AB65: Tercero Arriba | AC65: Totoral | AD65: Tulumba | AE65: Unión | AF65: =AF$2 -> PROVINCIA
B66: Pulverización terrestre | C66: Cantidad | D66: Noviembre | E66: 4.1 | F66: =$E66*F53 -> 8.2 | H66: =$E66*H53 -> 8.2 | J66: =$E66*J53 -> 8.2 | K66: 8.2 | M66: =$E66*M53 -> 8.2 | N66: 8.2 | Q66: =$E66*Q53 -> 8.2 | S66: =$E66*S53 -> 8.2 | T66: 8.2 | U66: 8.2 | V66: 8.2 | Y66: =$E66*Y53 -> 8.2 | Z66: 8.2 | AB66: =$E66*AB53 -> 8.2 | AC66: 8.2 | AD66: 8.2 | AE66: 8.2 | AF66: 8.171531314
B67: Pulverización aerea | C67: Cantidad | D67: =D66 -> Noviembre | E67: 8.1 | F67: 16.2 | H67: 16.2 | J67: 16.2 | K67: 16.2 | M67: 16.2 | N67: 16.2 | Q67: 16.2 | S67: 16.2 | T67: 16.2 | U67: 16.2 | V67: 16.2 | Y67: 16.2 | Z67: 16.2 | AB67: 16.2 | AC67: 16.2 | AD67: 16.2 | AE67: 16.2 | AF67: 16.14375699
B68: Glifosato | C68: lt/ha | D68: =D67 -> Noviembre | E68: 3.3 | F68: 8.25 | H68: 8.25 | J68: 8.25 | K68: 8.25 | M68: 8.25 | N68: 8.25 | Q68: 8.25 | S68: 8.25 | T68: 8.25 | U68: 8.25 | V68: 8.25 | Y68: 8.25 | Z68: 8.25 | AB68: 8.25 | AC68: 8.25 | AD68: 8.25 | AE68: 8.25 | AF68: 8.221357724
B69: Semilla RR | C69: lt/ha | D69: =D68 -> Noviembre | E69: 0.62 | F69: 49.6 | H69: 49.6 | J69: 49.6 | K69: 49.6 | M69: 49.6 | N69: 49.6 | Q69: 49.6 | S69: 49.6 | T69: 49.6 | U69: 49.6 | V69: 49.6 | Y69: 49.6 | Z69: 49.6 | AB69: 49.6 | AC69: 49.6 | AD69: 49.6 | AE69: 49.6 | AF69: 49.42779916
B70: Inoculante + Fungicida | C70: kg/ha | D70: =D69 -> Noviembre | E70: 3.7 | F70: 5.92 | H70: 5.92 | J70: 5.92 | K70: 5.92 | M70: 5.92 | N70: 5.92 | Q70: 5.92 | S70: 5.92 | T70: 5.92 | U70: 5.92 | V70: 5.92 | Y70: 5.92 | Z70: 5.92 | AB70: 5.92 | AC70: 5.92 | AD70: 5.92 | AE70: 5.92 | AF70: 5.92
B71: Pivot H | C71: kg/ha | D71: =D70 -> Noviembre | E71: 5.2 | F71: 0 | H71: 0 | J71: 0 | K71: 0 | M71: 0 | N71: 0 | Q71: 0 | S71: 0 | T71: 0 | U71: 0 | V71: 0 | Y71: 0 | Z71: 0 | AB71: 0 | AC71: 0 | AD71: 0 | AE71: 0 | AF71: 0
B72: Roundup control max | C72: lt/ha | D72: Noviembre | E72: 6.3 | F72: 6.93 | H72: 6.93 | J72: 6.93 | K72: 6.93 | M72: 6.93 | N72: 6.93 | Q72: 6.93 | S72: 6.93 | T72: 6.93 | U72: 6.93 | V72: 6.93 | Y72: 6.93 | Z72: 6.93 | AB72: 6.93 | AC72: 6.93 | AD72: 6.93 | AE72: 6.93 | AF72: 6.93
B73: Coragen | C73: kg/ha | D73: Noviembre | E73: 270 | F73: 8.1 | H73: 8.1 | J73: 8.1 | K73: 8.1 | M73: 8.1 | N73: 8.1 | Q73: 8.1 | S73: 8.1 | T73: 8.1 | U73: 8.1 | V73: 8.1 | Y73: 8.1 | Z73: 8.1 | AB73: 8.1 | AC73: 8.1 | AD73: 8.1 | AE73: 8.1 | AF73: 8.1
B74: Engeo | C74: b 200 gr | D74: =D73 -> Noviembre | E74: 47.58 | F74: 9.516 | H74: 9.516 | J74: 9.516 | K74: 9.516 | M74: 9.516 | N74: 9.516 | Q74: 9.516 | S74: 9.516 | T74: 9.516 | U74: 9.516 | V74: 9.516 | Y74: 9.516 | Z74: 9.516 | AB74: 9.516 | AC74: 9.516 | AD74: 9.516 | AE74: 9.516 | AF74: 9.516
B75: Opera | C75: kg/ha | D75: =D74 -> Noviembre | E75: 24 | F75: 12 | H75: 12 | J75: 12 | K75: 12 | M75: 12 | N75: 12 | Q75: 12 | S75: 12 | T75: 12 | U75: 12 | V75: 12 | Y75: 12 | Z75: 12 | AB75: 12 | AC75: 12 | AD75: 12 | AE75: 12 | AF75: 12
B76: Riego | C76: =+"USD/"&LEFT(C63,2) -> USD/mm | D76: Noviembre | E76: 1 | F76: 0 | H76: 0 | J76: 0 | K76: 0 | M76: 0 | N76: 0 | Q76: 0 | S76: 0 | T76: 0 | U76: 0 | V76: 0 | Y76: 0 | Z76: 0 | AB76: 0 | AC76: 0 | AD76: 0 | AE76: 0 | AF76: 0
B77: Siembra | C77: USD/Unidad | D77: Noviembre | E77: 29.9 | F77: =$E77 -> 29.9 | H77: =$E77 -> 29.9 | J77: =$E77 -> 29.9 | K77: =$E77 -> 29.9 | M77: =$E77 -> 29.9 | N77: =$E77 -> 29.9 | Q77: =$E77 -> 29.9 | S77: =$E77 -> 29.9 | T77: =$E77 -> 29.9 | U77: =$E77 -> 29.9 | V77: =$E77 -> 29.9 | Y77: =$E77 -> 29.9 | Z77: =$E77 -> 29.9 | AB77: =$E77 -> 29.9 | AC77: =$E77 -> 29.9 | AD77: =$E77 -> 29.9 | AE77: =$E77 -> 29.9 | AF77: =$E77 -> 29.9
B78: Cosecha | C78: $/Unidad | E78: - | F78: =+Listas!$W$10 -> 3501.04 | G78: =+Listas!$T$10 -> 3069.29667 | H78: =+Listas!$T$10 -> 3069.29667 | I78: =+Listas!$T$10 -> 3069.29667 | J78: =+Listas!$T$10 -> 3069.29667 | K78: =+Listas!$T$10 -> 3069.29667 | L78: =+Listas!$T$10 -> 3069.29667 | M78: =+Listas!$T$10 -> 3069.29667 | N78: =+Listas!$T$10 -> 3069.29667 | O78: =+Listas!$T$10 -> 3069.29667 | P78: =+Listas!$T$10 -> 3069.29667 | Q78: =+Listas!$T$10 -> 3069.29667 | R78: =+Listas!$T$10 -> 3069.29667 | S78: =+Listas!$T$10 -> 3069.29667 | T78: =+Listas!$T$10 -> 3069.29667 | U78: =+Listas!$T$10 -> 3069.29667 | V78: =+Listas!$T$10 -> 3069.29667 | W78: =+Listas!$T$10 -> 3069.29667 | X78: =+Listas!$T$10 -> 3069.29667 | Y78: =+Listas!$T$10 -> 3069.29667 | Z78: =+Listas!$T$10 -> 3069.29667 | AA78: =+Listas!$T$10 -> 3069.29667 | AB78: =+Listas!$T$10 -> 3069.29667 | AC78: =+Listas!$T$10 -> 3069.29667 | AD78: =+Listas!$T$10 -> 3069.29667 | AE78: =+Listas!$T$10 -> 3069.29667 | AF78: =+Listas!$T$10 -> 3069.29667
B79: Cosecha en USD | C79: USD/Unidad | E79: - | F79: =F78*(1+$E$130)/$E$127 -> 71.14182266 | H79: =H78*(1+$E$130)/$E$127 -> 62.36871312 | J79: =J78*(1+$E$130)/$E$127 -> 62.36871312 | K79: =K78*(1+$E$130)/$E$127 -> 62.36871312 | M79: =M78*(1+$E$130)/$E$127 -> 62.36871312 | N79: =N78*(1+$E$130)/$E$127 -> 62.36871312 | Q79: =Q78*(1+$E$130)/$E$127 -> 62.36871312 | S79: =S78*(1+$E$130)/$E$127 -> 62.36871312 | T79: =T78*(1+$E$130)/$E$127 -> 62.36871312 | U79: =U78*(1+$E$130)/$E$127 -> 62.36871312 | V79: =V78*(1+$E$130)/$E$127 -> 62.36871312 | Y79: =Y78*(1+$E$130)/$E$127 -> 62.36871312 | Z79: =Z78*(1+$E$130)/$E$127 -> 62.36871312 | AB79: =AB78*(1+$E$130)/$E$127 -> 62.36871312 | AC79: =AC78*(1+$E$130)/$E$127 -> 62.36871312 | AD79: =AD78*(1+$E$130)/$E$127 -> 62.36871312 | AE79: =AE78*(1+$E$130)/$E$127 -> 62.36871312 | AF79: =AF78*(1+$E$130)/$E$127 -> 62.36871312
B80: Costos directos | C80: USD/ha | F80: =SUM(F79,F66:F77) -> 225.7578227 | H80: =SUM(H79,H66:H77) -> 216.9847131 | J80: 216.9847131 | K80: 216.9847131 | M80: 216.9847131 | N80: 216.9847131 | Q80: 216.9847131 | S80: 216.9847131 | T80: 216.9847131 | U80: 216.9847131 | V80: 216.9847131 | Y80: 216.9847131 | Z80: 216.9847131 | AB80: 216.9847131 | AC80: 216.9847131 | AD80: 216.9847131 | AE80: 216.9847131 | AF80: 216.6991583
B82: Gastos Comerciales (Por Tn) | C82: =C$2 -> Unidad de medida | D82: Mes de actualiz. | E82: Costo | F82: Calamuchita | G82: Capital | H82: Colón | I82: Cruz del Eje | J82: Gral. Roca | K82: Gral. San Martín | L82: Ischilin | M82: Juárez Celman | N82: Marcos Juárez | O82: Minas | P82: Pocho | Q82: Pte. R. Sáenz Peña | R82: Punilla | S82: Río Cuarto | T82: Río Primero | U82: Río Seco | V82: Río Segundo | W82: San Alberto | X82: San Javier | Y82: San Justo | Z82: Santa María | AA82: Sobremonte | AB82: Tercero Arriba | AC82: Totoral | AD82: Tulumba | AE82: Unión | AF82: PROVINCIA
B83: Flete Largo | C83: $/tn | D83: 2019-09-01 | E83: - | F83: 1474.884 | G83: 1470.72 | H83: 1492.848 | I83: 1585.608 | J83: 1480.752 | K83: 1062.396 | L83: 1567.296 | M83: 1126.584 | N83: 704.16 | O83: 1626.66 | P83: 1613.484 | Q83: 1263.72 | R83: 1495.608 | S83: 1434.156 | T83: 1474.308 | U83: 1617.504 | V83: 1353.696 | W83: 1569.564 | X83: 1607.436 | Y83: 1069.26 | Z83: 1472.82 | AA83: 1626.66 | AB83: 1216.548 | AC83: 1519.044 | AD83: 1524.06 | AE83: 881.076 | AF83: 1160.376
B84: Flete Corto (30Km) | C84: $/tn | D84: =D83 -> 2019-09-01 | E84: 310.764 | F84: 310.764 | H84: 310.764 | J84: 310.764 | K84: 310.764 | M84: 310.764 | N84: 310.764 | Q84: 310.764 | S84: 310.764 | T84: 310.764 | U84: 310.764 | V84: 310.764 | Y84: 310.764 | Z84: 310.764 | AB84: 310.764 | AC84: 310.764 | AD84: 310.764 | AE84: 310.764 | AF84: 310.764
B85: Flete Conjunto | C85: USD/tn | D85: - | E85: - | F85: =0.95*(1+$E$132)*(F83+F84)/$E$127 -> 28.5791643 | H85: =0.95*(1+$E$132)*(H83+H84)/$E$127 -> 28.86667679 | J85: =0.95*(1+$E$132)*(J83+J84)/$E$127 -> 28.6730812 | K85: =0.95*(1+$E$132)*(K83+K84)/$E$127 -> 21.97732433 | M85: =0.95*(1+$E$132)*(M83+M84)/$E$127 -> 23.00464853 | N85: =0.95*(1+$E$132)*(N83+N84)/$E$127 -> 16.24378363 | Q85: =0.95*(1+$E$132)*(Q83+Q84)/$E$127 -> 25.19950008 | S85: =0.95*(1+$E$132)*(S83+S84)/$E$127 -> 27.92731567 | T85: =0.95*(1+$E$132)*(T83+T84)/$E$127 -> 28.56994546 | U85: =0.95*(1+$E$132)*(U83+U84)/$E$127 -> 30.86178686 | V85: =0.95*(1+$E$132)*(V83+V84)/$E$127 -> 26.63955931 | Y85: =0.95*(1+$E$132)*(Y83+Y84)/$E$127 -> 22.08718215 | Z85: =0.95*(1+$E$132)*(Z83+Z84)/$E$127 -> 28.54613013 | AB85: =0.95*(1+$E$132)*(AB83+AB84)/$E$127 -> 24.4445157 | AC85: =0.95*(1+$E$132)*(AC83+AC84)/$E$127 -> 29.28594183 | AD85: =0.95*(1+$E$132)*(AD83+AD84)/$E$127 -> 29.36622254 | AE85: =0.95*(1+$E$132)*(AE83+AE84)/$E$127 -> 19.07531113 | AF85: =0.95*(1+$E$132)*(AF83+AF84)/$E$127 -> 23.545487
B86: Paritaria | C86: USD/tn | D86: Noviembre | E86: 4 | F86: =$E86 -> 4 | H86: =$E86 -> 4 | J86: =$E86 -> 4 | K86: 4 | M86: =$E86 -> 4 | N86: 4 | Q86: =$E86 -> 4 | S86: =$E86 -> 4 | T86: 4 | U86: 4 | V86: 4 | Y86: =$E86 -> 4 | Z86: 4 | AB86: =$E86 -> 4 | AC86: 4 | AD86: 4 | AE86: 4 | AF86: 4
B87: Secado | C87: USD/tn | D87: =D86 -> Noviembre | E87: 7.5 | F87: =$E87 -> 7.5 | H87: =$E87 -> 7.5 | J87: 7.5 | K87: 7.5 | M87: 7.5 | N87: 7.5 | Q87: =$E87 -> 7.5 | S87: 7.5 | T87: 7.5 | U87: 7.5 | V87: 7.5 | Y87: 7.5 | Z87: 7.5 | AB87: 7.5 | AC87: 7.5 | AD87: 7.5 | AE87: 7.5 | AF87: 7.5
B88: Zarandeo | C88: USD/tn | D88: =D87 -> Noviembre | E88: 2 | F88: =$E88 -> 2 | H88: =$E88 -> 2 | J88: 2 | K88: 2 | M88: 2 | N88: 2 | Q88: =$E88 -> 2 | S88: 2 | T88: 2 | U88: 2 | V88: 2 | Y88: 2 | Z88: 2 | AB88: 2 | AC88: 2 | AD88: 2 | AE88: 2 | AF88: 2
B89: Comisión Acopio | C89: % s. Precio Cosecha | D89: - | E89: 0.005 | F89: =$E89*$E$122 -> 1.02479375 | H89: =$E89*$E$122 -> 1.02479375 | J89: =$E89*$E$122 -> 1.02479375 | K89: =$E89*$E$122 -> 1.02479375 | M89: =$E89*$E$122 -> 1.02479375 | N89: =$E89*$E$122 -> 1.02479375 | Q89: =$E89*$E$122 -> 1.02479375 | S89: =$E89*$E$122 -> 1.02479375 | T89: =$E89*$E$122 -> 1.02479375 | U89: =$E89*$E$122 -> 1.02479375 | V89: =$E89*$E$122 -> 1.02479375 | Y89: =$E89*$E$122 -> 1.02479375 | Z89: =$E89*$E$122 -> 1.02479375 | AB89: =$E89*$E$122 -> 1.02479375 | AC89: =$E89*$E$122 -> 1.02479375 | AD89: =$E89*$E$122 -> 1.02479375 | AE89: =$E89*$E$122 -> 1.02479375 | AF89: =$E89*$E$122 -> 1.02479375
B90: Total Gastos Comerciales | C90: USD/tn | F90: =SUM(F85:F89) -> 43.10395805 | H90: =SUM(H85:H89) -> 43.39147054 | J90: =SUM(J85:J89) -> 43.19787495 | K90: 36.50211808 | M90: 37.52944228 | N90: 30.76857738 | Q90: 39.72429383 | S90: 42.45210942 | T90: 43.09473921 | U90: 45.38658061 | V90: 41.16435306 | Y90: 36.6119759 | Z90: 43.07092388 | AB90: 38.96930945 | AC90: 43.81073558 | AD90: 43.89101629 | AE90: 33.60010488 | AF90: =SUM(AF85:AF89) -> 38.07028075
B92: Costos Indirectos (Por Ha) | C92: =C$2 -> Unidad de medida | D92: Mes de actualiz. | E92: Costo | F92: =F$2 -> Calamuchita | G92: Capital | H92: Colón | I92: Cruz del Eje | J92: Gral. Roca | K92: Gral. San Martín | L92: Ischilin | M92: Juárez Celman | N92: Marcos Juárez | O92: Minas | P92: Pocho | Q92: Pte. R. Sáenz Peña | R92: Punilla | S92: Río Cuarto | T92: Río Primero | U92: Río Seco | V92: Río Segundo | W92: San Alberto | X92: San Javier | Y92: San Justo | Z92: Santa María | AA92: Sobremonte | AB92: Tercero Arriba | AC92: Totoral | AD92: Tulumba | AE92: Unión | AF92: =AF$2 -> PROVINCIA
B93: Arrendamiento en qq | C93: qq/ha | D93: Agosto | E93: - | F93: 9.1125 | H93: 9.898635343 | J93: 8.206954047 | K93: 10.00852957 | M93: 9.525559266 | N93: 16.65 | Q93: 9.1625 | S93: 8.497275653 | T93: 8.717654037 | U93: 7.542826206 | V93: 9.919322015 | Y93: 10.19259977 | Z93: 10.1375 | AB93: 9.709541525 | AC93: 8.9875 | AD93: 7.3625 | AE93: 13.3 | AF93: 9.975
B94: Arrendamiento en USD | C94: USD/ha | D94: =D93 -> Agosto | E94: =$E$122 -> 204.95875 | F94: =$E$94*F93/10 -> 186.7686609 | H94: =$E$94*H93/10 -> 202.8811927 | J94: =$E$94*J93/10 -> 168.2087043 | K94: =$E$94*K93/10 -> 205.133571 | M94: =$E$94*M93/10 -> 195.234672 | N94: =$E$94*N93/10 -> 341.2563188 | Q94: =$E$94*Q93/10 -> 187.7934547 | S94: =$E$94*S93/10 -> 174.1590996 | T94: =$E$94*T93/10 -> 178.6759474 | U94: =$E$94*U93/10 -> 154.5968231 | V94: =$E$94*V93/10 -> 203.3051841 | Y94: =$E$94*Y93/10 -> 208.9062509 | Z94: =$E$94*Z93/10 -> 207.7769328 | AB94: =$E$94*AB93/10 -> 199.0055494 | AC94: =$E$94*AC93/10 -> 184.2066766 | AD94: =$E$94*AD93/10 -> 150.9008797 | AE94: =$E$94*AE93/10 -> 272.5951375 | AF94: =$E$94*AF93/10 -> 204.4463531
B95: Movilidad Campo (Campo + Adm) | C95: USD/ha | E95: ='Soja 1ª'!E59*1.3 -> 15.99 | F95: =$E95 -> 15.99 | H95: =$E95 -> 15.99 | J95: =$E95 -> 15.99 | K95: =$E95 -> 15.99 | M95: =$E95 -> 15.99 | N95: =$E95 -> 15.99 | Q95: =$E95 -> 15.99 | S95: =$E95 -> 15.99 | T95: 15.99 | U95: 15.99 | V95: 15.99 | Y95: =$E95 -> 15.99 | Z95: =$E95 -> 15.99 | AB95: =$E95 -> 15.99 | AC95: 15.99 | AD95: 15.99 | AE95: 15.99 | AF95: 15.99
B96: Personal (Salarios) | C96: USD/ha | D96: Noviembre | E96: 64.45823231 | F96: =$E96 -> 64.45823231 | H96: =$E96 -> 64.45823231 | J96: =$E96 -> 64.45823231 | K96: =$E96 -> 64.45823231 | M96: =$E96 -> 64.45823231 | N96: =$E96 -> 64.45823231 | Q96: =$E96 -> 64.45823231 | S96: 64.45823231 | T96: 64.45823231 | U96: 64.45823231 | V96: 64.45823231 | Y96: =$E96 -> 64.45823231 | Z96: =$E96 -> 64.45823231 | AB96: 64.45823231 | AC96: 64.45823231 | AD96: 64.45823231 | AE96: 64.45823231 | AF96: 64.45823231
B97: Asesoramiento Técnico | C97: USD/ha | E97: 0.01 | F97: =$E$97*F141 -> 9.895740616 | H97: =$E$97*H141 -> 9.895740616 | J97: =$E$97*J141 -> 9.895740616 | K97: =$E$97*K141 -> 9.895740616 | M97: =$E$97*M141 -> 9.895740616 | N97: =$E$97*N141 -> 9.895740616 | Q97: =$E$97*Q141 -> 9.895740616 | S97: =$E$97*S141 -> 9.895740616 | T97: =$E$97*T141 -> 9.895740616 | U97: =$E$97*U141 -> 9.895740616 | V97: =$E$97*V141 -> 9.895740616 | Y97: =$E$97*Y141 -> 9.895740616 | Z97: =$E$97*Z141 -> 9.895740616 | AB97: =$E$97*AB141 -> 9.895740616 | AC97: =$E$97*AC141 -> 9.895740616 | AD97: =$E$97*AD141 -> 9.895740616 | AE97: =$E$97*AE141 -> 9.895740616 | AF97: =$E$97*AF141 -> 9.895740616
B98: Asesoramiento Contable | C98: USD/ha | E98: ='Soja 1ª'!E62*1.3 -> 7.8 | F98: =$E98 -> 7.8 | H98: =$E98 -> 7.8 | J98: =$E98 -> 7.8 | K98: 7.8 | M98: =$E98 -> 7.8 | N98: 7.8 | Q98: =$E98 -> 7.8 | S98: =$E98 -> 7.8 | T98: 7.8 | U98: 7.8 | V98: 7.8 | Y98: =$E98 -> 7.8 | Z98: 7.8 | AB98: =$E98 -> 7.8 | AC98: 7.8 | AD98: 7.8 | AE98: 7.8 | AF98: 7.8
B99: Gastos de oficina/comunicaciones | C99: USD/ha | E99: ='Soja 1ª'!E63*1.3 -> 5.07 | F99: 5.07 | H99: 5.07 | J99: 5.07 | K99: 5.07 | M99: 5.07 | N99: 5.07 | Q99: 5.07 | S99: 5.07 | T99: 5.07 | U99: 5.07 | V99: 5.07 | Y99: 5.07 | Z99: 5.07 | AB99: 5.07 | AC99: 5.07 | AD99: 5.07 | AE99: 5.07 | AF99: 5.07
B100: Receta Fitosanitaria | C100: USD/ha | E100: 0 | F100: 0 | H100: 0 | J100: 0 | K100: 0 | M100: 0 | N100: 0 | Q100: 0 | S100: 0 | T100: 0 | U100: 0 | V100: 0 | Y100: 0 | Z100: 0 | AB100: 0 | AC100: 0 | AD100: 0 | AE100: 0 | AF100: 0
B101: Asesor Financiero | C101: USD/ha | E101: 0 | F101: 0 | H101: 0 | J101: 0 | K101: 0 | M101: 0 | N101: 0 | Q101: 0 | S101: 0 | T101: 0 | U101: 0 | V101: 0 | Y101: 0 | Z101: 0 | AB101: 0 | AC101: 0 | AD101: 0 | AE101: 0 | AF101: 0
B102: Seguro Climatico | C102: USD/ha | E102: 0 | F102: 0 | H102: 0 | J102: 0 | K102: 0 | M102: 0 | N102: 0 | Q102: 0 | S102: 0 | T102: 0 | U102: 0 | V102: 0 | Y102: 0 | Z102: 0 | AB102: 0 | AC102: 0 | AD102: 0 | AE102: 0 | AF102: 0
B103: Conservaciones y Mejoras | C103: USD/ha | E103: ='Soja 1ª'!E67*1.3 -> 3.9 | F103: 3.9 | H103: 3.9 | J103: 3.9 | K103: 3.9 | M103: 3.9 | N103: 3.9 | Q103: 3.9 | S103: 3.9 | T103: 3.9 | U103: 3.9 | V103: 3.9 | Y103: 3.9 | Z103: 3.9 | AB103: 3.9 | AC103: 3.9 | AD103: 3.9 | AE103: 3.9 | AF103: 3.9
B104: Gastos imprevistos/Otros | C104: USD/ha | E104: 0 | F104: 0 | H104: 0 | J104: 0 | K104: 0 | M104: 0 | N104: 0 | Q104: 0 | S104: 0 | T104: 0 | U104: 0 | V104: 0 | Y104: 0 | Z104: 0 | AB104: 0 | AC104: 0 | AD104: 0 | AE104: 0 | AF104: 0
B105: Total Costos Indirectos | F105: =+SUM(F94:F104) -> 293.8826339 | H105: =+SUM(H94:H104) -> 309.9951656 | J105: 275.3226772 | K105: 312.2475439 | M105: 302.3486449 | N105: 448.3702917 | Q105: 294.9074276 | S105: 281.2730726 | T105: 285.7899204 | U105: 261.710796 | V105: 310.419157 | Y105: 316.0202238 | Z105: 314.8909057 | AB105: 306.1195223 | AC105: 291.3206495 | AD105: 258.0148526 | AE105: 379.7091104 | AF105: 311.560326
B107: Impuestos (Por Ha) | C107: =C$2 -> Unidad de medida | D107: =D$2 -> Mes de actualiz. | E107: Porcentaje | F107: =F$2 -> Calamuchita | G107: Capital | H107: Colón | I107: Cruz del Eje | J107: Gral. Roca | K107: Gral. San Martín | L107: Ischilin | M107: Juárez Celman | N107: Marcos Juárez | O107: Minas | P107: Pocho | Q107: Pte. R. Sáenz Peña | R107: Punilla | S107: Río Cuarto | T107: Río Primero | U107: Río Seco | V107: Río Segundo | W107: San Alberto | X107: San Javier | Y107: San Justo | Z107: Santa María | AA107: Sobremonte | AB107: Tercero Arriba | AC107: Totoral | AD107: Tulumba | AE107: Unión | AF107: =AF$2 -> PROVINCIA
B108: Impuesto a las ganancias | C108: % s. Resultado Positivo | D108: - | E108: 0.35 | F108: =IF(F146<0,0,$E$108*F146) -> 7.465833734 | H108: =IF(H146<0,0,$E$108*H146) -> 0 | J108: 2.045196051 | K108: 0 | M108: 0.9958587469 | N108: 0 | Q108: 5.140090144 | S108: 0.7154247952 | T108: 5.94829127 | U108: 3.079681876 | V108: 0 | Y108: 1.839338179 | Z108: 0 | AB108: 2.575870856 | AC108: 0 | AD108: 7.726185497 | AE108: 0 | AF108: 0
B109: Impuesto a la ganancia mínima presunta | C109: - | D109: - | E109: -
B110: Impuestos a los combustibles | C110: - | D110: - | E110: -
B111: Impuesto al cheque | C111: % s. Ingresos Totales | D111: - | E111: 0.012 | F111: =$E$111/2*(F141+F142+F143+F145)*0.4 -> 4.698761207 | H111: =$E$111/2*(H141+H142+H143+H145)*0.4 -> 4.768334397 | J111: =$E$111/2*(J141+J142+J143+J145)*0.4 -> 4.735931294 | K111: =$E$111/2*(K141+K142+K143+K145)*0.4 -> 4.761139533 | M111: =$E$111/2*(M141+M142+M143+M145)*0.4 -> 4.74312675 | N111: =$E$111/2*(N141+N142+N143+N145)*0.4 -> 5.045874466 | Q111: =$E$111/2*(Q141+Q142+Q143+Q145)*0.4 -> 4.714709163 | S111: =$E$111/2*(S141+S142+S143+S145)*0.4 -> 4.745049726 | T111: =$E$111/2*(T141+T142+T143+T145)*0.4 -> 4.709167213 | U111: =$E$111/2*(U141+U142+U143+U145)*0.4 -> 4.728837677 | V111: =$E$111/2*(V141+V142+V143+V145)*0.4 -> 4.751626393 | Y111: =$E$111/2*(Y141+Y142+Y143+Y145)*0.4 -> 4.737342891 | Z111: =$E$111/2*(Z141+Z142+Z143+Z145)*0.4 -> 4.824107134 | AB111: =$E$111/2*(AB141+AB142+AB143+AB145)*0.4 -> 4.732292381 | AC111: =$E$111/2*(AC141+AC142+AC143+AC145)*0.4 -> 4.759833607 | AD111: =$E$111/2*(AD141+AD142+AD143+AD145)*0.4 -> 4.696975938 | AE111: =$E$111/2*(AE141+AE142+AE143+AE145)*0.4 -> 4.905673135 | AF111: =$E$111/2*(AF141+AF142+AF143+AF145)*0.4 -> 4.762072227
B112: Impuesto a los sellos | C112: % s. Ingresos Totales | D112: - | E112: 0.012 | F112: =$E$112*F141 -> 11.87488874 | H112: =$E$112*H141 -> 11.87488874 | J112: =$E$112*J141 -> 11.87488874 | K112: =$E$112*K141 -> 11.87488874 | M112: =$E$112*M141 -> 11.87488874 | N112: =$E$112*N141 -> 11.87488874 | Q112: =$E$112*Q141 -> 11.87488874 | S112: =$E$112*S141 -> 11.87488874 | T112: =$E$112*T141 -> 11.87488874 | U112: =$E$112*U141 -> 11.87488874 | V112: =$E$112*V141 -> 11.87488874 | Y112: =$E$112*Y141 -> 11.87488874 | Z112: =$E$112*Z141 -> 11.87488874 | AB112: =$E$112*AB141 -> 11.87488874 | AC112: =$E$112*AC141 -> 11.87488874 | AD112: =$E$112*AD141 -> 11.87488874 | AE112: =$E$112*AE141 -> 11.87488874 | AF112: =$E$112*AF141 -> 11.87488874
B113: Impuesto inmobiliario | C113: - | D113: - | E113: -
B114: Impuesto a los automotores (rentas) | C114: - | D114: - | E114: -
B115: Impuesto a la renta financiera | C115: - | D115: - | E115: -
B116: Impuesto a utilidades y dividendos | C116: - | D116: - | E116: -
B117: IVA crédito | C117: - | D117: - | E117: -
B118: IVA Débito | C118: - | D118: - | E118: -
B119: Total impuestos | F119: =+SUM(F108:F118) -> 24.03948368 | H119: =+SUM(H108:H118) -> 16.64322314 | J119: 18.65601608 | K119: 16.63602827 | M119: 17.61387424 | N119: 16.92076321 | Q119: 21.72968805 | S119: 17.33536326 | T119: 22.53234722 | U119: 19.68340829 | V119: 16.62651513 | Y119: 18.45156981 | Z119: 16.69899587 | AB119: 19.18305198 | AC119: 16.63472235 | AD119: 24.29805017 | AE119: 16.78056187 | AF119: =+SUM(AF108:AF118) -> 16.63696097
B121: Precio trigo cosecha USD/tn | D121: Noviembre | E121: ='Calculadora BCCBA'!C11-'Calculadora BCCBA'!C11*'Calculadora BCCBA'!C21-10.7 -> 143.7
B122: Precio cosecha Soja USD/tn | D122: Noviembre | E122: =+'Soja 1ª'!E85 -> 204.95875
B123: Dólar siembra Trigo | D123: Julio | E123: 43.73062331
B124: Dólar Cosecha Trigo | D124: Noviembre | E124: =+'Calculadora BCCBA'!C16 -> 64.92
B125: Dólar Promedio Trigo | D125: Noviembre | E125: =AVERAGE(E123:E124) -> 54.32531166
B126: Dólar siembra Soja | D126: Noviembre | E126: 65.09
B127: Dólar Cosecha Soja | D127: Noviembre | E127: =+'Calculadora BCCBA'!C18 -> 81.2
B128: Dólar Promedio Soja | D128: Noviembre | E128: =+AVERAGE(E126:E127) -> 73.145
B129: Inflación esperada hasta dato FACMA trigo de esta campaña | D129: Septiembre | E129: 0.12
B130: Inflación esperada hasta dato FACMA soja de esta campaña | D130: Septiembre | E130: 0.65
B131: Inflación esp. desde FECOTAC hasta diciembre | D131: Septiembre | E131: 0.12
B132: Inflación esp. desde FECOTAC hasta mayo | D132: Septiembre | E132: 0.368
B133: Tasa de interes del costo de oportunidad | D133: Septiembre | E133: 0.0175
B134: Precio combustible | D134: - | E134: -
B136: RENTABILIDAD EN DÓLARES | F136: =F$2 -> Calamuchita | G136: Capital | H136: Colón | I136: Cruz del Eje | J136: Gral. Roca | K136: Gral. San Martín | L136: Ischilin | M136: Juárez Celman | N136: Marcos Juárez | O136: Minas | P136: Pocho | Q136: Pte. R. Sáenz Peña | R136: Punilla | S136: Río Cuarto | T136: Río Primero | U136: Río Seco | V136: Río Segundo | W136: San Alberto | X136: San Javier | Y136: San Justo | Z136: Santa María | AA136: Sobremonte | AB136: Tercero Arriba | AC136: Totoral | AD136: Tulumba | AE136: Unión | AF136: PROVINCIA
B137: Rendimiento Trigo | D137: qq/ha | F137: =F3 -> 28.14 | H137: 28.14 | J137: 28.14 | K137: 28.14 | M137: 28.14 | N137: 28.14 | Q137: 28.14 | S137: 28.14 | T137: 28.14 | U137: 28.14 | V137: 28.14 | Y137: 28.14 | Z137: 28.14 | AB137: 28.14 | AC137: 28.14 | AD137: 28.14 | AE137: 28.14 | AF137: =AF3 -> 28.14
B138: Rendimiento Soja | D138: qq/ha | F138: =F51 -> 28.55219705 | H138: 28.55219705 | J138: 28.55219705 | K138: 28.55219705 | M138: 28.55219705 | N138: 28.55219705 | Q138: 28.55219705 | S138: 28.55219705 | T138: 28.55219705 | U138: 28.55219705 | V138: 28.55219705 | Y138: 28.55219705 | Z138: 28.55219705 | AB138: 28.55219705 | AC138: 28.55219705 | AD138: 28.55219705 | AE138: 28.55219705 | AF138: =AF51 -> 28.55219705
B139: Precio Trigo | D139: USD/qq | F139: =IF(F137=0,"",$E$121) -> 143.7 | H139: 143.7 | J139: 143.7 | K139: 143.7 | M139: 143.7 | N139: 143.7 | Q139: 143.7 | S139: 143.7 | T139: 143.7 | U139: 143.7 | V139: 143.7 | Y139: 143.7 | Z139: 143.7 | AB139: 143.7 | AC139: 143.7 | AD139: 143.7 | AE139: 143.7 | AF139: 143.7
B140: Precio Soja | D140: USD/qq | F140: =IF(F137=0,"",$E$122) -> 204.95875 | H140: 204.95875 | J140: 204.95875 | K140: 204.95875 | M140: 204.95875 | N140: 204.95875 | Q140: 204.95875 | S140: 204.95875 | T140: 204.95875 | U140: 204.95875 | V140: 204.95875 | Y140: 204.95875 | Z140: 204.95875 | AB140: 204.95875 | AC140: 204.95875 | AD140: 204.95875 | AE140: 204.95875 | AF140: 204.95875
B141: Ingresos Totales | D141: USD/ha | F141: =IF(F137=0,"",(F139*F137+F138*F140)/10) -> 989.5740616 | G141: =IF(G137=0,"",(G139*G137+G138*G140)/10) ->  | H141: 989.5740616 | J141: 989.5740616 | K141: 989.5740616 | M141: 989.5740616 | N141: 989.5740616 | Q141: 989.5740616 | S141: 989.5740616 | T141: 989.5740616 | U141: 989.5740616 | V141: 989.5740616 | Y141: 989.5740616 | Z141: 989.5740616 | AB141: 989.5740616 | AC141: 989.5740616 | AD141: 989.5740616 | AE141: 989.5740616 | AF141: =IF(AF137=0,"",(AF139*AF137+AF138*AF140)/10) -> 989.5740616
B142: Costos Directos | D142: USD/ha | F142: =IF(F137=0,"",F80+F40) -> 455.6576552 | H142: 466.8845456 | J142: 489.1663638 | K142: 501.1572729 | M142: 497.6572729 | N142: 516.5663638 | Q142: 480.6663638 | S142: 491.2936366 | T142: 468.1390911 | U142: 487.2663638 | V142: 472.2754547 | Y142: 486.8390911 | Z142: 487.0663638 | AB142: 481.1118184 | AC142: 479.6118184 | AD142: 486.2663638 | AE142: 510.5663638 | AF142: =IF(AF137=0,"",AF80+AF40) -> 493.2368483
B143: Gastos Comerciales | D143: USD/ha | F143: =IF(F137=0,"",(F137*F48+F90*F138)/10) -> 218.702819 | H143: 220.3522261 | J143: 219.2416033 | K143: 180.8292604 | M143: 186.722833 | N143: 147.9369772 | Q143: 199.3142983 | S143: 214.9632817 | T143: 218.6499322 | U143: 231.7978107 | V143: 207.575657 | Y143: 181.4594948 | Z143: 218.513308 | AB143: 194.9830899 | AC143: 222.7574736 | AD143: 223.2180295 | AE143: 164.180937 | AF143: =IF(AF137=0,"",(AF137*AF48+AF90*AF138)/10) -> 189.8255252
B144: Margen Bruto | D144: USD/ha | F144: =IF(F137=0,"",F141-F142-F143) -> 315.2135874 | H144: 302.3372899 | J144: 281.1660945 | K144: 307.5875283 | M144: 305.1939556 | N144: 325.0707206 | Q144: 309.5933995 | S144: 283.3171434 | T144: 302.7850383 | U144: 270.5098871 | V144: 309.7229499 | Y144: 321.2754757 | Z144: 283.9943898 | AB144: 313.4791533 | AC144: 287.2047696 | AD144: 280.0896683 | AE144: 314.8267608 | AF144: =IF(AF137=0,"",AF141-AF142-AF143) -> 306.5116881
B145: Costos Indirectos | D145: USD/ha | F145: =IF(F137=0,"",F105) -> 293.8826339 | H145: 309.9951656 | J145: 275.3226772 | K145: 312.2475439 | M145: 302.3486449 | N145: 448.3702917 | Q145: 294.9074276 | S145: 281.2730726 | T145: 285.7899204 | U145: 261.710796 | V145: 310.419157 | Y145: 316.0202238 | Z145: 314.8909057 | AB145: 306.1195223 | AC145: 291.3206495 | AD145: 258.0148526 | AE145: 379.7091104 | AF145: =IF(AF137=0,"",AF105) -> 311.560326
B146: Resultado Operativo | D146: USD/ha | F146: =IF(F137=0,"",F144-F145) -> 21.33095353 | H146: -7.657875686 | J146: 5.843417288 | K146: -4.660015648 | M146: 2.845310705 | N146: -123.2995711 | Q146: 14.68597184 | S146: 2.044070844 | T146: 16.99511792 | U146: 8.799091075 | V146: -0.6962071468 | Y146: 5.25525194 | Z146: -30.89651596 | AB146: 7.359631016 | AC146: -4.115879843 | AD146: 22.07481571 | AE146: -64.88234961 | AF146: =IF(AF137=0,"",AF144-AF145) -> -5.048637965
B147: Impuestos | D147: USD/ha | F147: =IF(F137=0,"",F119) -> 24.03948368 | H147: 16.64322314 | J147: 18.65601608 | K147: 16.63602827 | M147: 17.61387424 | N147: 16.92076321 | Q147: 21.72968805 | S147: 17.33536326 | T147: 22.53234722 | U147: 19.68340829 | V147: 16.62651513 | Y147: 18.45156981 | Z147: 16.69899587 | AB147: 19.18305198 | AC147: 16.63472235 | AD147: 24.29805017 | AE147: 16.78056187 | AF147: =IF(AF137=0,"",AF119) -> 16.63696097
B148: Margen Neto | D148: USD/ha | F148: =IF(F137=0,"",F146-F147) -> -2.708530155 | H148: -24.30109882 | J148: -12.8125988 | K148: -21.29604392 | M148: -14.76856353 | N148: -140.2203343 | Q148: -7.043716206 | S148: -15.29129242 | T148: -5.537229307 | U148: -10.88431722 | V148: -17.32272228 | Y148: -13.19631787 | Z148: -47.59551184 | AB148: -11.82342096 | AC148: -20.75060219 | AD148: -2.223234468 | AE148: -81.66291149 | AF148: =IF(AF137=0,"",AF146-AF147) -> -21.68559893
B149: Intereses sobre el Capital Invertido | D149: USD/ha | F149: =IF(F137=0,"",$E$133*(F105+F40-F39)) -> 8.109194024 | H149: 8.74116333 | J149: 8.524326601 | K149: 9.380352677 | M149: 9.145871946 | N149: 12.03215985 | Q149: 8.718309733 | S149: 8.665685792 | T149: 8.339526083 | U149: 8.25286868 | V149: 8.842924089 | Y149: 9.195806394 | Z149: 9.1800206 | AB149: 8.922316845 | AC149: 8.637086571 | AD149: 8.170689671 | AE149: 10.72558918 | AF149: 9.234716143
B150: Resultado Económico | D150: USD/ha | F150: =IF(F137=0,"",F148-F149) -> -10.81772418 | H150: -33.04226215 | J150: -21.3369254 | K150: -30.6763966 | M150: -23.91443548 | N150: -152.2524941 | Q150: -15.76202594 | S150: -23.95697821 | T150: -13.87675539 | U150: -19.1371859 | V150: -26.16564637 | Y150: -22.39212426 | Z150: -56.77553244 | AB150: -20.74573781 | AC150: -29.38768876 | AD150: -10.39392414 | AE150: -92.38850067 | AF150: =IF(AF137=0,"",AF148-AF149) -> -30.92031507
B151: Inversión inicial | D151: USD/ha | F151: =IF(F137=0,"",F105+F40-F39) -> 463.3825157 | H151: 499.4950474 | J151: 487.1043772 | K151: 536.020153 | M151: 522.621254 | N151: 687.5519917 | Q151: 498.1891276 | S151: 495.1820453 | T151: 476.5443476 | U151: 471.592496 | V151: 505.3099479 | Y151: 525.4746511 | Z151: 524.5726057 | AB151: 509.8466769 | AC151: 493.547804 | AD151: 466.8965526 | AE151: 612.8908104 | AF151: =IF(AF137=0,"",AF105+AF40-AF39) -> 527.6980653
B152: Rentabilidad de la Actividad | D152: % | F152: =IF(F137=0,"",F150/F151) -> -0.02334512808 | H152: -0.06615133088 | J152: -0.04380360021 | K152: -0.05722993142 | M152: -0.04575863552 | N152: -0.2214414269 | Q152: -0.03163863895 | S152: -0.0483801431 | T152: -0.02911954671 | U152: -0.04057992029 | V152: -0.05178137987 | Y152: -0.04261313884 | Z152: -0.1082319813 | AB152: -0.04069015009 | AC152: -0.05954375345 | AD152: -0.02226172817 | AE152: -0.1507421862 | AF152: =IF(AF137=0,"",AF150/AF151) -> -0.05859470994
E153: =+COUNTIF($F$152:$AF$152,"<"&0) -> 18
F157: Santa María | G157: -0.3669071657
F158: Calamuchita | G158: -0.3371217238
F159: Río Cuarto | G159: -0.3176450905
F160: Río Seco | G160: -0.2540205393
F161: Tulumba | G161: -0.1973714661
F162: Tercero Arriba | G162: -0.1963853966
F163: Río Primero | G163: -0.1720387207
F164: Colón | G164: -0.1712084063
F165: Río Segundo | G165: -0.1587345479
F166: Totoral | G166: -0.1294765428
F167: Gral. Roca | G167: -0.1235690033
F168: San Justo | G168: -0.1129158654
F169: Pte. R. Sáenz Peña | G169: -0.06734077169
F170: Gral. San Martín | G170: -0.0664917053
F171: Juárez Celman | G171: -0.04620611813
F172: Unión | G172: 0.03178184107
F173: Marcos Juárez | G173: 0.03285328866

Sheet Instrucciones
B1: Calculadora de Márgenes Agropecuarios
B3: Paso 1:
B5: Dirigirse a la pestaña de "Calculadora BCCBA" en la parte inferior del Excel.
B6: EVITAR AGREGAR/QUITAR FILAS Y COLUMNAS EN ESTE EXCEL PARA SU CORRECTO FUNCIONAMIENTO.
B10: Paso 2:
B20: Seleccionar el departamento en el cual se encuentra su campo, dando click en el recuadro que dice "¿En qué departamento se ubica su campo?".
B22: Esto abrirá una lista desplegable donde podrá seleccionar el departamento.
B24: Paso 3:
B26: Al seleccionar el departamento, el Excel se autocompletará con los datos
B27: de costos y rendimientos de los distintos cultivos de nuestra base de datos.
B29: Si así lo desea, puede cambiar las celdas en amarillo con los datos de su campo
B30: para tener una estimación más certera de su rentabilidad.
B32: Al cambiar el nivel de derechos de exportación, se vera reflejado
B33: automaticamente en el precio disponible que aparece en la tabla de resultados.
B35: El precio disponible resulta de descontarle al precio de exportación FOB los
B36: gastos portuarios, comerciales e impuestos (incluidos los derechos de
B37: exportación).
B39: * Tambien se puede cambiar el precio FOB y valor del dólar de cada cultivo,
B40: aunque no se recomienda porque se encuentan actualizados al 5/12/2019.
B44: Paso 4:
B46: Los resultados se mostrarán en la tabla de la derecha, y
B47: en los gráficos debajo de ésta. La misma comprende:
B48: Ingresos Totales
B49: Costos Directos
B50: Gastos Comerciales
B51: Margen Bruto
B52: Rendimiento de Indiferencia
B53: Costos Indirectos
B54: Resultado Operativo
B55: Impuestos
B56: Margen Neto
B57: Intereses sobre el capital invertido
B58: Resultado Económico
B59: Rentabilidad de la Actividad
B60: Se detallaran al final de las instrucciones.
B62: NO MODIFICAR VALORES DE LA TABLA DE RESULTADOS
B66: Paso 5:
B68: Para realizar el Análisis de Sensibilidad
B69: Precio-Rendimiento uno debe dar click
B70: al botón "Ejecutar"
B72: El análisis será explicado al
B73: terminar las instrucciones.
B83: Ingresos totales: Es el ingreso que resulta de vender la producción de una hectárea al precio disponible en el puerto de Rosario
B84: (precio que recibe el productor en mano). En la tabla, resulta de multiplicar el rendimiento por el precio.
B85: Costos directos: Son los costos que estan directamente relacionados con la cantidad de hectáreas sembradas y del nivel de
B86: producción. Ejemplo de estos costos son: agroquímicos y tareas de labranza.
B87: Gastos comerciales: Son los gastos incurridos en la comercialización del cultivo. Incluye el costo del flete para llevar la
B88: mercadería al puerto de rosario, comisiones del acopio, paritarias, zarandeo, secado, etc.
B89: Margen Bruto: Es el ingreso que le queda al productor luego de pagar los costos directos y gastos comerciales.
B90: Rendimiento de indiferencia: Con las condiciones descritas, indica cuál debería ser el rendimiento del cultivo para lograr un
B91: márgen bruto igual a cero.
B92: Costos indirectos: Son los costos que no se encuentran relacionados al nivel de producción, como el arrendamiento, gastos en
B93: personal, gastos en movilidad, gastos de oficina, etc. El gasto en personal incluye el salario de una persona encargada de la
B94: dirección del campo y un peón.
B95: Resultado Operativo: Es el dinero que le queda al productor luego de pagar todos los costos (costos directos e indirectos y
B96: gastos comerciales).
B97: Impuestos: Agrega el impuesto a las ganancias, impuesto a los sellos y el impuesto al cheque.
B98: Margen Neto: Es el dinero que le queda al productor luego de pagar todos los costos e impuestos.
B99: Intereses: Es el ingreso que se deja de percibir para realizar la inversión en esta actividad (costo de inmovilizar el capital).
B100: En la tabla se calculó como el 1,75% anual de la inversión inicial en dolares.
B101: Inversión inicial: Se considero como la suma de los costos indirectos y directos, a excepción del costo de cosecha.
B102: Resultado Económico: Es la medida de rentabilidad final del cultivo. Resulta de restarle al margen neto los intereses.
B103: Este resultado incluye el costo de oportunidad tanto de la tierra (arrendamiento), como del trabajo propio (administración del
B104: campo) y del dinero invertido inicialmente.
B105: Costo de oportunidad: Cuando hablamos de costo de oportunidad hacemos referencia al dinero que se podría haber obtenido
B106: al destinar los recursos en una actividad alternativa. Por ejemplo, una persona que trabaje en su campo tiene el costo de
B107: su tiempo, ya que podría estar trabajando en otro sitio y percibir un salario. Si esta persona no administrase su campo, debería
B108: contratar a un encargado.
B109: Rentabilidad de la Actividad: Es la tasa de rentabilidad que se obtendría con el cultivo. Resulta de dividir el Resultado Economico
B110: por la inversión inicial.
B111: Análisis de sensibilidad: Muestra la rentabilidad que se obtendría combinando distintos valores de rendimiento y precios
B112: disponibles. Las celdas con fondo naranja claro son las combinaciones más probables, ya que estos precios y rendimientos estan
B113: muy cerca de los colocados por el productor cuando se llenan los datos.
B117: Nota: La calculadora dejará de funcionar el día 12/12/2019. Se deberá descargar nuevamente desde http://www.bccba.com.ar/index.html para contar con la versión actualizada.

Sheet Calculadora BCCBA
B1: PROVINCIA | N1: Analisis de Sensibilidad Precio-Rendimiento
B3: Podés modificar los datos en amarillo | E3: ="Rentabilidad Campaña 2019/20"&CHAR(10)&" Der. de export. "&TEXT(C23,"#%")&" maíz, "&TEXT(C21,"#%")&" trigo y "&TEXT(C22,"#%")&" soja." -> Rentabilidad Campaña 2019/20 Der. de export. 15% maíz, 20% trigo y 35% soja. | O3: Nota: Antes de ver el análisis clickear en "Ejecutar".
E4: Rendimiento | F4: qq/ha | G4: =+HLOOKUP($B$1,'Soja 1ª'!$F$94:$AF$109,2,FALSE) -> 34.45954816 | H4: =TEXT(C5,"##")&" || "&TEXT(C7,"##") -> 28 || 29 | I4: =+HLOOKUP($B$1,'Maíz temprano'!$F$90:$AF$105,2,FALSE) -> 86.91593326 | J4: =+HLOOKUP($B$1,'Maíz tardío'!$F$90:$AF$105,2,FALSE) -> 75.09101531 | O4: SOJA
B5: Rendimiento trigo | C5: =INDEX(Listas!$A$1:$G$19,MATCH('Calculadora BCCBA'!$B$1,Listas!$A$1:$A$19,0),MATCH('Calculadora BCCBA'!$B$5,Listas!$A$1:$G$1,0)) -> 28.14 | E5: Precio Disponible | F5: USD/qq | G5: =+HLOOKUP($B$1,'Soja 1ª'!$F$94:$AF$109,3,FALSE) -> 204.95875 | H5: =TEXT('Trigo + Soja 2ª'!E121,"##")&" || "&TEXT('Trigo + Soja 2ª'!E122,"##") -> 144 || 205 | I5: =+HLOOKUP($B$1,'Maíz temprano'!$F$90:$AF$105,3,FALSE) -> 128.47 | J5: =+HLOOKUP($B$1,'Maíz tardío'!$F$90:$AF$105,3,FALSE) -> 122.5285 | O5: =+"DER. DE EXPORTACIÓN "&TEXT(C22,"##%")&" A LA SOJA." -> DER. DE EXPORTACIÓN 35% A LA SOJA.
B6: Rendimiento soja 1ª | C6: =INDEX(Listas!$A$1:$G$19,MATCH('Calculadora BCCBA'!$B$1,Listas!$A$1:$A$19,0),MATCH('Calculadora BCCBA'!$B$6,Listas!$A$1:$G$1,0)) -> 34.45954816 | E6: Ingresos Totales | F6: USD/ha | G6: =+HLOOKUP($B$1,'Soja 1ª'!$F$94:$AF$109,4,FALSE) -> 706.2785916 | H6: =+HLOOKUP($B$1,'Trigo + Soja 2ª'!$F$136:$AF$152,6,FALSE) -> 989.5740616 | I6: =+HLOOKUP($B$1,'Maíz temprano'!$F$90:$AF$105,4,FALSE) -> 1116.608995 | J6: =+HLOOKUP($B$1,'Maíz tardío'!$F$90:$AF$105,4,FALSE) -> 920.078947
B7: Rendimiento soja 2ª | C7: =INDEX(Listas!$A$1:$G$19,MATCH('Calculadora BCCBA'!$B$1,Listas!$A$1:$A$19,0),MATCH('Calculadora BCCBA'!$B$7,Listas!$A$1:$G$1,0)) -> 28.55219705 | E7: Costos Directos | F7: USD/ha | G7: =+HLOOKUP($B$1,'Soja 1ª'!$F$94:$AF$109,5,FALSE) -> 267.231625 | H7: =+HLOOKUP($B$1,'Trigo + Soja 2ª'!$F$136:$AF$152,7,FALSE) -> 493.2368483 | I7: =+HLOOKUP($B$1,'Maíz temprano'!$F$90:$AF$105,5,FALSE) -> 381.4657514 | J7: =+HLOOKUP($B$1,'Maíz tardío'!$F$90:$AF$105,5,FALSE) -> 371.7328192 | P7: Rendimiento de soja (qq/ha)
B8: Rendimiento maíz temprano | C8: =INDEX(Listas!$A$1:$G$19,MATCH('Calculadora BCCBA'!$B$1,Listas!$A$1:$A$19,0),MATCH('Calculadora BCCBA'!$B$8,Listas!$A$1:$G$1,0)) -> 86.91593326 | E8: Gastos Comerciales | F8: USD/ha | G8: =+HLOOKUP($B$1,'Soja 1ª'!$F$94:$AF$109,6,FALSE) -> 131.1884673 | H8: =+HLOOKUP($B$1,'Trigo + Soja 2ª'!$F$136:$AF$152,8,FALSE) -> 189.8255252 | I8: =+HLOOKUP($B$1,'Maíz temprano'!$F$90:$AF$105,6,FALSE) -> 313.7744781 | J8: =+HLOOKUP($B$1,'Maíz tardío'!$F$90:$AF$105,6,FALSE) -> 285.8633413 | N8: Precio disp. (USD/Tn) | O8: =+G18 -> 0.01605042981 | P8: 23 | Q8: 25.5 | R8: 28 | S8: 30.5 | T8: 33
B9: Rendimiento maíz tardío | C9: =INDEX(Listas!$A$1:$G$19,MATCH('Calculadora BCCBA'!$B$1,Listas!$A$1:$A$19,0),MATCH('Calculadora BCCBA'!$B$9,Listas!$A$1:$G$1,0)) -> 75.09101531 | E9: Margen Bruto | F9: USD/ha | G9: =+HLOOKUP($B$1,'Soja 1ª'!$F$94:$AF$109,7,FALSE) -> 307.8584993 | H9: =+HLOOKUP($B$1,'Trigo + Soja 2ª'!$F$136:$AF$152,9,FALSE) -> 306.5116881 | I9: =+HLOOKUP($B$1,'Maíz temprano'!$F$90:$AF$105,7,FALSE) -> 421.3687651 | J9: =+HLOOKUP($B$1,'Maíz tardío'!$F$90:$AF$105,7,FALSE) -> 262.4827864 | O9: 152.185 | P9: -0.5445801466 | Q9: -0.4835512466 | R9: -0.4229939531 | S9: -0.3629450036 | T9: -0.3034409963
E10: Rendimiento de Indiferencia | F10: USD/ha | G10: =+HLOOKUP($B$1,'Soja 1ª'!$F$94:$AF$109,8,FALSE) -> 19.43903797 | H10: - | I10: =+HLOOKUP($B$1,'Maíz temprano'!$F$90:$AF$105,8,FALSE) -> 54.11693231 | J10: =+HLOOKUP($B$1,'Maíz tardío'!$F$90:$AF$105,8,FALSE) -> 53.66883301 | O10: 170.185 | P10: -0.4657212304 | Q10: -0.3966771729 | R10: -0.328115371 | S10: -0.2600709068 | T10: -0.1925787198
B11: Precio FOB trigo (USD/Tn.) | C11: 193 | E11: Costos Indirectos | F11: USD/ha | G11: =+HLOOKUP($B$1,'Soja 1ª'!$F$94:$AF$109,9,FALSE) -> 271.7694024 | H11: =+HLOOKUP($B$1,'Trigo + Soja 2ª'!$F$136:$AF$152,10,FALSE) -> 311.560326 | I11: =+HLOOKUP($B$1,'Maíz temprano'!$F$90:$AF$105,9,FALSE) -> 282.4624431 | J11: =+HLOOKUP($B$1,'Maíz tardío'!$F$90:$AF$105,9,FALSE) -> 285.9804759 | O11: 188.185 | P11: -0.3929025397 | Q11: -0.3164680582 | R11: -0.2405276321 | S11: -0.1651148052 | T11: -0.09026297649
B12: Precio FOB soja 1ª (USD/Tn.) | C12: 335.475 | E12: Resultado Operativo | F12: USD/ha | G12: =+HLOOKUP($B$1,'Soja 1ª'!$F$94:$AF$109,10,FALSE) -> 36.08909691 | H12: =+HLOOKUP($B$1,'Trigo + Soja 2ª'!$F$136:$AF$152,11,FALSE) -> -5.048637965 | I12: =+HLOOKUP($B$1,'Maíz temprano'!$F$90:$AF$105,10,FALSE) -> 138.906322 | J12: =+HLOOKUP($B$1,'Maíz tardío'!$F$90:$AF$105,10,FALSE) -> -23.49768949 | O12: 206.185 | P12: -0.3254556923 | Q12: -0.2421852365 | R12: -0.1594214454 | S12: -0.07719642883 | T12: -0.008986376426
B13: Precio FOB maíz temprano (USD/Tn.) | C13: 162.2 | E13: Impuestos | F13: USD/ha | G13: =+HLOOKUP($B$1,'Soja 1ª'!$F$94:$AF$109,11,FALSE) -> 24.41005043 | H13: =+HLOOKUP($B$1,'Trigo + Soja 2ª'!$F$136:$AF$152,12,FALSE) -> 16.63696097 | I13: =+HLOOKUP($B$1,'Maíz temprano'!$F$90:$AF$105,11,FALSE) -> 67.04286865 | J13: =+HLOOKUP($B$1,'Maíz tardío'!$F$90:$AF$105,11,FALSE) -> 15.51372076 | O13: 224.185 | P13: -0.2628074114 | Q13: -0.1731953064 | R13: -0.08410302234 | S13: -0.008734994179 | T13: 0.04782176526
B14: Precio FOB maíz tardío (USD/Tn.) | C14: 155.21 | E14: Margen Neto | F14: USD/ha | G14: =+HLOOKUP($B$1,'Soja 1ª'!$F$94:$AF$109,12,FALSE) -> 11.67904649 | H14: =+HLOOKUP($B$1,'Trigo + Soja 2ª'!$F$136:$AF$152,13,FALSE) -> -21.68559893 | I14: =+HLOOKUP($B$1,'Maíz temprano'!$F$90:$AF$105,12,FALSE) -> 71.86345339 | J14: =+HLOOKUP($B$1,'Maíz tardío'!$F$90:$AF$105,12,FALSE) -> -39.01141026
E15: Intereses sobre el Capital Invertido | F15: USD/ha | G15: =+HLOOKUP($B$1,'Soja 1ª'!$F$94:$AF$109,13,FALSE) -> 4.120559907 | H15: =+HLOOKUP($B$1,'Trigo + Soja 2ª'!$F$136:$AF$152,14,FALSE) -> 9.234716143 | I15: =+HLOOKUP($B$1,'Maíz temprano'!$F$90:$AF$105,13,FALSE) -> 5.860629106 | J15: =+HLOOKUP($B$1,'Maíz tardío'!$F$90:$AF$105,13,FALSE) -> 6.723738886
B16: Dólar a cosecha trigo (diciembre) | C16: 64.92 | E16: Resultado Económico | F16: USD/ha | G16: =+HLOOKUP($B$1,'Soja 1ª'!$F$94:$AF$109,14,FALSE) -> 7.558486579 | H16: =+HLOOKUP($B$1,'Trigo + Soja 2ª'!$F$136:$AF$152,15,FALSE) -> -30.92031507 | I16: =+HLOOKUP($B$1,'Maíz temprano'!$F$90:$AF$105,14,FALSE) -> 66.00282428 | J16: =+HLOOKUP($B$1,'Maíz tardío'!$F$90:$AF$105,14,FALSE) -> -45.73514914 | O16: TRIGO + SOJA
B17: Dólar a cosecha maíz temp. (abril) | C17: 78.75 | E17: Inversión inicial | F17: USD/ha | G17: =+HLOOKUP($B$1,'Soja 1ª'!$F$94:$AF$109,15,FALSE) -> 470.9211323 | H17: =+HLOOKUP($B$1,'Trigo + Soja 2ª'!$F$136:$AF$152,16,FALSE) -> 527.6980653 | I17: =+HLOOKUP($B$1,'Maíz temprano'!$F$90:$AF$105,15,FALSE) -> 574.1024431 | J17: =+HLOOKUP($B$1,'Maíz tardío'!$F$90:$AF$105,15,FALSE) -> 576.3204759 | O17: =+"DER. DE EXPORTACIÓN "&TEXT(C21,"##%")&" TRIGO, "&TEXT(C22,"##%")&" SOJA." -> DER. DE EXPORTACIÓN 20% TRIGO, 35% SOJA.
B18: Dólar a cosecha soja (mayo) | C18: 81.2 | E18: Rentabilidad de la Actividad | F18: % | G18: =+HLOOKUP($B$1,'Soja 1ª'!$F$94:$AF$109,16,FALSE) -> 0.01605042981 | H18: =+HLOOKUP($B$1,'Trigo + Soja 2ª'!$F$136:$AF$152,17,FALSE) -> -0.05859470994 | I18: =+HLOOKUP($B$1,'Maíz temprano'!$F$90:$AF$105,16,FALSE) -> 0.1149669803 | J18: =+HLOOKUP($B$1,'Maíz tardío'!$F$90:$AF$105,16,FALSE) -> -0.07935714772
B19: Dólar a cosecha maíz tardío (julio) | C19: 86.15 | P19: Rendimiento de soja (qq/ha)
N20: Precio disp. (USD/Tn) | O20: =+H18 -> -0.05859470994 | P20: 15.77883974 | Q20: 20.77883974 | R20: 25.77883974 | S20: 30.77883974 | T20: 35.77883974
B21: Derechos de exportación trigo | C21: 0.2 | O21: 152.185 | P21: -0.5635009693 | Q21: -0.4523463647 | R21: -0.3422707344 | S21: -0.2338865108 | T21: -0.127395504
B22: Derechos de exportación soja | C22: 0.35 | O22: 170.185 | P22: -0.5192075606 | Q22: -0.3930384885 | R22: -0.2680082888 | S22: -0.144706238 | T22: -0.03417566523
B23: Derechos de exportación maíz | C23: 0.15 | O23: 188.185 | P23: -0.4779802203 | Q23: -0.3378503041 | R23: -0.1989221506 | S23: -0.06176341523 | T23: 0.028467532
O24: 206.185 | P24: -0.4395112403 | Q24: -0.2863669713 | R24: -0.1344893411 | S24: -0.008314192971 | T24: 0.08686345208
B25: Links utiles para cambiar datos de las variables | O25: 224.185 | P25: -0.4035327549 | Q25: -0.2382275387 | R25: -0.07425503703 | S25: 0.03849822404 | T25: 0.1414298867
B26: http://www.bccba.com.ar/informes-cultivos-6380.html | C26: Rendimientos
B27: www.bcr.com.ar/es/mercados/mercado-de-granos/cotizaciones/cotizaciones-locales-3 | C27: Precio FOB
B28: https://rofex.primary.ventures/futuros/financieros | C28: Dólar | O28: MAÍZ TEMPRANO
O29: ="DER. DE EXPORTACIÓN "&TEXT(C23,"##%")&" MAÍZ, "&TEXT(C22,"##%")&" SOJA." -> DER. DE EXPORTACIÓN 15% MAÍZ, 35% SOJA.
P31: Rendimiento de maíz (qq/ha)
N32: Precio disp. (USD/Tn) | O32: =+I18 -> 0.1149669803 | P32: 70.13979768 | Q32: 75.13979768 | R32: 80.13979768 | S32: 85.13979768 | T32: 90.13979768
O33: 116.67 | P33: -0.1989610652 | Q33: -0.1369518433 | R33: -0.07551891449 | S33: -0.02407415626 | T33: 0.0175341908
O34: 122.62 | P34: -0.1224266724 | Q34: -0.05510843719 | R34: -0.006841665933 | S34: 0.03551890415 | T34: 0.08051252458
O35: 128.57 | P35: -0.04601265381 | Q35: 0.003088804249 | R35: 0.0492505459 | S35: 0.0949986028 | T35: 0.1433641741
O36: 134.52 | P36: 0.005730531192 | Q36: 0.05569233159 | R36: 0.1052422906 | S36: 0.1543652628 | T36: 0.2060895213
O37: 140.47 | P37: 0.05485514336 | Q37: 0.1082074814 | R37: 0.1611338378 | S37: 0.2136192062 | T37: 0.2686889464
O40: MAÍZ TARDÍO
O41: ="DER. DE EXPORTACIÓN "&TEXT(C23,"##%")&" MAÍZ, "&TEXT(C22,"##%")&" SOJA." -> DER. DE EXPORTACIÓN 15% MAÍZ, 35% SOJA.
B42: Contactos:
B43: jdominguez@bccba.org.ar | P43: Rendimiento de maíz (qq/ha)
B44: ldipre@bccba.org.ar | N44: Precio disp. (USD/Tn) | O44: =+J18 -> -0.07935714772 | P44: 57.72333838 | Q44: 65.72333838 | R44: 73.72333838 | S44: 81.72333838 | T44: 89.72333838
B45: gagusto@bccba.org.ar | O45: 110.6285 | P45: -0.4526232178 | Q45: -0.363369936 | R45: -0.2750806527 | S45: -0.1879695786 | T45: -0.1020808449
O46: 116.5785 | P46: -0.389656298 | Q46: -0.2918673239 | R46: -0.1950873116 | S46: -0.09952978389 | T46: -0.01893995046
B47: www.bccba.com.ar | O47: 122.5285 | P47: -0.3267706578 | Q47: -0.2204696081 | R47: -0.1152253656 | S47: -0.02237329306 | T47: 0.04339056747
B48: Tel: 54 351 4229637. Int: 140 | O48: 128.4785 | P48: -0.2639661399 | Q48: -0.149176558 | R48: -0.03756886987 | S48: 0.03445513099 | T48: 0.1055970621
B49: Tel: 54 351 4253716. Int: 140 | O49: 134.4285 | P49: -0.2012425876 | Q49: -0.07798794344 | R49: 0.01376546651 | S49: 0.09118045768 | T49: 0.1676799031

Sheet Listas (hidden)
A1: Deptos | B1: Rendimiento trigo | C1: Rendimiento soja 1ª | D1: Rendimiento soja 2ª | E1: Rendimiento maíz temprano | F1: Rendimiento maíz tardío | I1: Soja | K1: Maíz | M1: Trigo | P1: Calculador Soja 1ª | S1: Calculador Soja 2ª | V1: Calculador Trigo | Y1: Calculador Maíz Temprano | AB1: Calculador Maíz Tardío
A2: Calamuchita | B2: 16.14579926 | C2: 31.06163695 | D2: 25.7367849 | E2: 76.3950885 | F2: 77.30383115 | I2: Rendimiento | J2: Costos cosecha | K2: Rendimiento | L2: Costos cosecha | M2: Rendimiento | N2: Costos cosecha | P2: qq | Q2: Calamuchita | S2: qq | T2: Calamuchita | V2: qq | W2: Calamuchita | Y2: qq | Z2: Calamuchita | AB2: qq | AC2: Calamuchita
A3: Colón | B3: 24.87383634 | C3: 32.5759931 | D3: 26.99153714 | E3: 76.5 | F3: 71.81422022 | I3: =+I4-2 -> 10 | J3: =+J4-(J5-J4)-3 -> 2381 | K3: 46 | L3: 3263 | M3: =+M4-2 -> 10 | N3: =+N4-N5+N4 -> 2992 | P3: Inicial | Q3: =IF(ISBLANK(Q5),"",INT(INT(Q5)/2)*2) -> 34 | S3: Inicial | T3: =IF(ISBLANK(T5),"",INT(INT(T5)/2)*2) -> 28 | V3: Inicial | W3: =IF(ISBLANK(W5),"",INT(INT(W5)/2)*2) -> 28 | Y3: Inicial | Z3: =IF(ISBLANK(Z5),"",INT((INT(Z5)+2)/4)*4-2) -> 86 | AB3: Inicial | AC3: =IF(ISBLANK(AC5),"",INT((INT(AC5)+2)/4)*4-2) -> 74
A4: Gral. Roca | B4: 22.3018983 | C4: 35.62579706 | D4: 29.51851757 | E4: 78.97976629 | F4: 74.93187757 | I4: =+I5-2 -> 12 | J4: =+J5-(J6-J5)-2 -> 2456 | K4: 50 | L4: 3335 | M4: =+M5-2 -> 12 | N4: =+N5-N6+N5 -> 3043 | P4: Final | Q4: =IF(ISBLANK(Q5),"",Q3+2) -> 36 | S4: Final | T4: =IF(ISBLANK(T5),"",T3+2) -> 30 | V4: Final | W4: =IF(ISBLANK(W5),"",W3+2) -> 30 | Y4: Final | Z4: =IF(ISBLANK(Z5),"",Z3+4) -> 90 | AB4: Final | AC4: =IF(ISBLANK(AC5),"",AC3+4) -> 78
A5: Gral. San Martín | B5: 27.01273148 | C5: 34.72047146 | D5: 28.76839064 | E5: 85.77031769 | F5: 77.29789403 | I5: =+I6-2 -> 14 | J5: =+J6-(J7-J6)-1 -> 2528 | K5: 54 | L5: 3410 | M5: =+M6-2 -> 14 | N5: =+N6-N7+N6 -> 3094 | P5: Depto | Q5: =+'Calculadora BCCBA'!$C$6 -> 34.45954816 | S5: Depto | T5: =+'Calculadora BCCBA'!C7 -> 28.55219705 | V5: Depto | W5: =+'Calculadora BCCBA'!C5 -> 28.14 | Y5: Depto | Z5: =+'Calculadora BCCBA'!C8 -> 86.91593326 | AB5: Depto | AC5: =+'Calculadora BCCBA'!C9 -> 75.09101531
A6: Juárez Celman | B6: 26.92070423 | C6: 35.13229801 | D6: 29.10961835 | E6: 80.6914419 | F6: 79.38597596 | I6: =+I7-2 -> 16 | J6: =+J7-(J8-J7) -> 2598 | K6: 58 | L6: 3488 | M6: 16 | N6: 3145
A7: Marcos Juárez | B7: 40.48932803 | C7: 39.04199247 | D7: 32.34907947 | E7: 107.4842311 | F7: 85.41053065 | I7: =+I8-2 -> 18 | J7: =+J8-(J9-J8)+2 -> 2667 | K7: 62 | L7: 3570 | M7: 18 | N7: 3196 | P7: Precios | Q7: Calamuchita | S7: Precios | T7: Calamuchita | V7: Precios | W7: Calamuchita | Y7: Precios | Z7: Calamuchita | AB7: Precios | AC7: Calamuchita
A8: Pte. R. Sáenz Peña | B8: 25.44434044 | C8: 34.82693089 | D8: 28.85659988 | E8: 81.16377838 | F8: 76.2741459 | I8: 20 | J8: 2736 | K8: 66 | L8: 3656 | M8: 20 | N8: 3250 | P8: Inicial | Q8: =IF(Q3="","",VLOOKUP(Q3,$I$3:$J$26,2,FALSE)) -> 3326 | S8: Inicial | T8: =IF(T3="","",VLOOKUP(T3,$I$3:$J$26,2,FALSE)) -> 3045 | V8: Inicial | W8: =IF(W3="","",VLOOKUP(W3,$M$3:$N$26,2,FALSE)) -> 3496 | Y8: Inicial | Z8: =IF(Z3="","",VLOOKUP(Z3,$K$3:$L$26,2,FALSE)) -> 4157 | AB8: Inicial | AC8: =IF(AC3="","",VLOOKUP(AC3,$K$3:$L$26,2,FALSE)) -> 3841
A9: Río Cuarto | B9: 17.87369517 | C9: 32.04974243 | D9: 26.55550087 | E9: 76.03676344 | F9: 70.70699531 | I9: 22 | J9: 2807 | K9: 70 | L9: 3747 | M9: 22 | N9: 3307 | P9: Final | Q9: =IF(Q4="","",VLOOKUP(Q4,$I$3:$J$26,2,FALSE)) -> 3432 | S9: Final | T9: =IF(T4="","",VLOOKUP(T4,$I$3:$J$26,2,FALSE)) -> 3133 | V9: Final | W9: =IF(W4="","",VLOOKUP(W4,$M$3:$N$26,2,FALSE)) -> 3568 | Y9: Final | Z9: =IF(Z4="","",VLOOKUP(Z4,$K$3:$L$26,2,FALSE)) -> 4274 | AB9: Final | AC9: =IF(AC4="","",VLOOKUP(AC4,$K$3:$L$26,2,FALSE)) -> 3941
A10: Río Primero | B10: 24.31197116 | C10: 31.17175848 | D10: 25.82802846 | E10: 69.93466024 | F10: 70.80544347 | I10: 24 | J10: 2882 | K10: 74 | L10: 3841 | M10: 24 | N10: 3367 | P10: Depto | Q10: =IF(Q3="","",(Q9-Q8)/2*(Q5-Q3)+Q8) -> 3350.356052 | S10: Depto | T10: =IF(T3="","",(T9-T8)/2*(T5-T3)+T8) -> 3069.29667 | V10: Depto | W10: =IF(W3="","",(W9-W8)/2*(W5-W3)+W8) -> 3501.04 | Y10: Depto | Z10: =IF(Z3="","",(Z9-Z8)/2*(Z5-Z3)+Z8) -> 4210.582096 | AB10: Depto | AC10: =IF(AC3="","",(AC9-AC8)/2*(AC5-AC3)+AC8) -> 3895.550766
A11: Río Seco | B11: 20.68522905 | C11: 31.49467659 | D11: 26.09558917 | F11: 72.09982474 | I11: 26 | J11: 2961 | K11: 78 | L11: 3941 | M11: 26 | N11: 3430
A12: Río Segundo | B12: 24.00674375 | C12: 33.18787435 | D12: 27.49852446 | E12: 79.16780101 | F12: 80.08212331 | I12: 28 | J12: 3045 | K12: 82 | L12: 4046 | M12: 28 | N12: 3496
A13: San Justo | B13: 25.52198234 | C13: 33.31924647 | D13: 27.60737564 | E13: 79.25253809 | F13: 72.35443154 | I13: 30 | J13: 3133 | K13: 86 | L13: 4157 | M13: 30 | N13: 3568
A14: Santa María | B14: 16.98012508 | C14: 32.4287253 | D14: 26.86951525 | E14: 75.40517405 | F14: 83.96451481 | I14: 32 | J14: 3227 | K14: 90 | L14: 4274 | M14: 32 | N14: 3643
A15: Tercero Arriba | B15: 21.76748416 | C15: 32.98641059 | D15: 27.33159735 | E15: 81.34247803 | F15: 81.19047547 | I15: 34 | J15: 3326 | K15: 94 | L15: 4398 | M15: 34 | N15: 3721
A16: Totoral | B16: 28.32844978 | C16: 31.11239279 | D16: 25.77883974 | E16: 80.13979768 | F16: 73.72333838 | I16: 36 | J16: 3432 | K16: 98 | L16: 4529 | M16: 36 | N16: 3803
A17: Tulumba | B17: 22.78201641 | C17: 30.99021093 | D17: 25.67760334 | E17: 69.2 | F17: 73.7529571 | I17: 38 | J17: 3545 | K17: 102 | L17: 4669 | M17: 38 | N17: 3888
A18: Unión | B18: 35.78470416 | C18: 38.31599158 | D18: 31.74753588 | E18: 100.7572384 | F18: 79.16365731 | I18: 40 | J18: 3665 | K18: 106 | L18: 4817 | M18: 40 | N18: 3978
A19: PROVINCIA | B19: 28.14 | C19: 34.45954816 | D19: 28.55219705 | E19: 86.91593326 | F19: 75.09101531 | I19: 42 | J19: 3794 | K19: 110 | L19: 4975 | M19: 42 | N19: 4071
I20: 44 | J20: 3932 | K20: 114 | L20: 5144 | M20: 44 | N20: 4169
I21: 46 | J21: 4081 | K21: 118 | L21: 5324 | M21: 46 | N21: 4272
I22: =+I21+2 -> 48 | J22: =+J21+J21-J20+13 -> 4243 | K22: 122 | L22: 5518 | M22: 48 | N22: 4380
I23: =+I22+2 -> 50 | J23: =+J22+J22-J21+13 -> 4418 | K23: 126 | L23: 5726 | M23: 50 | N23: 4493
I24: =+I23+2 -> 52 | J24: =+J23+J23-J22+15 -> 4608 | K24: 130 | L24: 5950 | M24: =+M23+2 -> 52 | N24: =+N23+N23-N22+6 -> 4612
I25: =+I24+2 -> 54 | J25: =+J24+J24-J23+15 -> 4813 | K25: =+K24+4 -> 134 | L25: =+L24+L24-L23+18 -> 6192 | M25: =+M24+2 -> 54 | N25: =+N24+N24-N23+6 -> 4737
I26: =+I25+2 -> 56 | J26: =+J25+J25-J24+17 -> 5035 | K26: =+K25+4 -> 138 | L26: =+L25+L25-L24+20 -> 6454 | M26: =+M25+2 -> 56 | N26: =+N25+N25-N24+7 -> 4869
A28: Estructura de Producción | B28: Soja 1ª | C28: Trigo | D28: Soja 2ª | E28: Maíz Temprano | F28: Maíz Tardío
A29: Rendimiento | B29: =+'Calculadora BCCBA'!G4 -> 34.45954816 | C29: =+'Calculadora BCCBA'!C5 -> 28.14 | D29: =+'Calculadora BCCBA'!C7 -> 28.55219705 | E29: =+'Calculadora BCCBA'!I4 -> 86.91593326 | F29: =+'Calculadora BCCBA'!J4 -> 75.09101531
A30: Gastos Portuarios | B30: 13.1 | C30: 10.7 | D30: =+B30 -> 13.1 | E30: 9.4 | F30: 9.4
A31: Precio FOB - Gastos Portuarios | B31: =+'Calculadora BCCBA'!C12-B30 -> 322.375 | C31: =+'Calculadora BCCBA'!C11-C30 -> 182.3 | D31: =+B31 -> 322.375 | E31: =+'Calculadora BCCBA'!C13-Listas!E30 -> 152.8 | F31: =+'Calculadora BCCBA'!C14-Listas!F30 -> 145.81
A32: Precio FOB - Gastos Portuarios - Ret. | B32: =+'Calculadora BCCBA'!G5 -> 204.95875 | C32: =+'Trigo + Soja 2ª'!E121 -> 143.7 | D32: =+'Trigo + Soja 2ª'!E122 -> 204.95875 | E32: =+'Calculadora BCCBA'!I5 -> 128.47 | F32: =+'Calculadora BCCBA'!J5 -> 122.5285
A33: Impuesto arancelario | B33: =(B31-B32)*B29/10 -> 404.6110921 | C33: - | D33: =(D31-D32)*D29/10+(C31-C32)*C29/10 -> 443.8695906 | E33: =(E31-E32)*E29/10 -> 211.4664656 | F33: 174.8231473
A34: Costos Directos | B34: =+'Calculadora BCCBA'!G7 -> 267.231625 | C34: - | D34: =+'Calculadora BCCBA'!H7 -> 493.2368483 | E34: =+'Calculadora BCCBA'!I7 -> 381.4657514 | F34: =+'Calculadora BCCBA'!J7 -> 371.7328192
A35: Gastos Comerciales | B35: =+'Calculadora BCCBA'!G8 -> 131.1884673 | C35: - | D35: =+'Calculadora BCCBA'!H8 -> 189.8255252 | E35: =+'Calculadora BCCBA'!I8 -> 313.7744781 | F35: =+'Calculadora BCCBA'!J8 -> 285.8633413
A36: Costo de Arrendamiento | B36: =+HLOOKUP('Calculadora BCCBA'!$B$1,'Soja 1ª'!$F$56:$AF$58,3,FALSE) -> 204.4463531 | C36: - | D36: =+HLOOKUP('Calculadora BCCBA'!B1,'Trigo + Soja 2ª'!$F$92:$AF$94,3,FALSE) -> 204.4463531 | E36: =+HLOOKUP('Calculadora BCCBA'!B1,'Maíz temprano'!F51:AF53,3,FALSE) -> 204.4463531 | F36: =+HLOOKUP('Calculadora BCCBA'!B1,'Maíz tardío'!F51:AF53,3,FALSE) -> 204.4463531
A37: Otros Costos Indirectos | B37: =+'Calculadora BCCBA'!G11-Listas!B36 -> 67.32304927 | C37: - | D37: =+'Calculadora BCCBA'!H11-Listas!D36 -> 107.1139729 | E37: =+'Calculadora BCCBA'!I11-Listas!E36 -> 78.01608995 | F37: =+'Calculadora BCCBA'!J11-Listas!F36 -> 81.5341228
A38: Impuesto ganancia + otros | B38: =+'Calculadora BCCBA'!G13 -> 24.41005043 | C38: - | D38: =+'Calculadora BCCBA'!H13 -> 16.63696097 | E38: =+'Calculadora BCCBA'!I13 -> 67.04286865 | F38: =+'Calculadora BCCBA'!J13 -> 15.51372076
A39: Intereses sobre el Cap. Inv. | B39: =+'Calculadora BCCBA'!G15 -> 4.120559907 | C39: - | D39: =+'Calculadora BCCBA'!H15 -> 9.234716143 | E39: =+'Calculadora BCCBA'!I15 -> 5.860629106 | F39: =+'Calculadora BCCBA'!J15 -> 6.723738886
A40: Resultado del productor | B40: =+'Calculadora BCCBA'!G16 -> 7.558486579 | C40: - | D40: =+'Calculadora BCCBA'!H16 -> -30.92031507 | E40: =+'Calculadora BCCBA'!I16 -> 66.00282428 | F40: =+'Calculadora BCCBA'!J16 -> -45.73514914
A42: Estructura de Producción | B42: Soja 1ª | C42: Trigo + Soja 2ª | D42: Maíz Temprano | E42: Maíz Tardío
A43: Impuestos y retenciones | B43: =+(B31-B32)/B31+B38/($B$31*$B$29/10) -> 0.3861959912 | C43: =((C31-C32)*C29+(D31-D32)*D29+D38*10)/(C31*C29+D31*D29) -> 0.3212589144 | D43: =+(E31-E32)/E31+E38/($E$31*$E$29/10) -> 0.2097089681 | E43: =+(F31-F32)/F31+F38/($F$31*$F$29/10) -> 0.173839167
A44: Costos Directos | B44: =+B34/($B$31*$B$29/10) -> 0.2405564017 | C44: =+D34*10/($C$31*$C$29+$D$31*$D$29) -> 0.3440922477 | D44: =+E34/($E$31*$E$29/10) -> 0.2872319855 | E44: =+F34/($F$31*$F$29/10) -> 0.3395123831
A45: Gastos Comerciales | B45: 0.1180931547 | C45: =+D35*10/($C$31*$C$29+$D$31*$D$29) -> 0.1324262205 | D45: 0.2362625374 | E45: 0.2610857563
A46: Costo de Arrendamiento | B46: 0.1840383938 | C46: =+D36*10/($C$31*$C$29+$D$31*$D$29) -> 0.1426260131 | D46: 0.1539418198 | E46: 0.1867256937
A47: Otros Costos Indirectos | B47: 0.06060282155 | C47: =+D37*10/($C$31*$C$29+$D$31*$D$29) -> 0.07472492745 | D47: 0.05874371772 | E47: 0.07446704434
A48: Resultado del productor | B48: =+B40/($B$31*$B$29/10) -> 0.006803993852 | C48: =+D40*10/($C$31*$C$29+$D$31*$D$29) -> -0.02157065262 | D48: =+E40/($E$31*$E$29/10) -> 0.04969809793 | E48: =+F40/($F$31*$F$29/10) -> -0.0417709943
A50: Estructura de Producción | B50: Soja 1ª | C50: Trigo + Soja 2ª | D50: Maíz Temprano | E50: Maíz Tardío
A51: Impuestos y retenciones | B51: =(B33+B38)/SUM(B$33:B$38) -> 0.3902993003 | C51: =(D33+D38)/SUM(D$33:D$38) -> 0.3164712353 | D51: =(E33+E38)/SUM(E$33:E$38) -> 0.2217056777 | E51: =(F33+F38)/SUM(F$33:F$38) -> 0.167858366
A52: Costos Directos | B52: =B34/SUM(B$33:B$38) -> 0.2431122989 | C52: =D34/SUM(D$33:D$38) -> 0.3389642864 | D52: 0.3036635133 | E52: 0.3278317242
A53: Gastos Comerciales | B53: =B35/SUM(B$33:B$38) -> 0.1193478873 | C53: 0.1304526901 | D53: 0.2497782829 | E53: 0.2521033043
A54: Costo de Arrendamiento | B54: 0.1859937906 | C54: 0.1405004765 | D54: 0.1627482877 | E54: 0.1803015418
A55: Otros Costos Indirectos | B55: 0.06124672286 | C55: 0.07361131174 | D55: 0.0621042384 | E55: 0.07190506372

Sheet Maíz temprano (hidden)
B2: Planteo Tecnico (Por Ha) | C2: Unidad de medida | D2: Mes de actualiz. | E2: Cantidades | F2: Calamuchita | G2: Capital | H2: Colón | I2: Cruz del Eje | J2: Gral. Roca | K2: Gral. San Martín | L2: Ischilin | M2: Juárez Celman | N2: Marcos Juárez | O2: Minas | P2: Pocho | Q2: Pte. R. Sáenz Peña | R2: Punilla | S2: Río Cuarto | T2: Río Primero | U2: Río Seco | V2: Río Segundo | W2: San Alberto | X2: San Javier | Y2: San Justo | Z2: Santa María | AA2: Sobremonte | AB2: Tercero Arriba | AC2: Totoral | AD2: Tulumba | AE2: Unión | AF2: PROVINCIA
B3: Rendimiento | C3: qq/ha | D3: Noviembre | E3: - | F3: =+'Calculadora BCCBA'!$C$8 -> 86.91593326 | H3: =+'Calculadora BCCBA'!$C$8 -> 86.91593326 | J3: =+'Calculadora BCCBA'!$C$8 -> 86.91593326 | K3: =+'Calculadora BCCBA'!$C$8 -> 86.91593326 | M3: =+'Calculadora BCCBA'!$C$8 -> 86.91593326 | N3: =+'Calculadora BCCBA'!$C$8 -> 86.91593326 | Q3: =+'Calculadora BCCBA'!$C$8 -> 86.91593326 | S3: =+'Calculadora BCCBA'!$C$8 -> 86.91593326 | T3: =+'Calculadora BCCBA'!$C$8 -> 86.91593326 | U3: =+'Calculadora BCCBA'!$C$8 -> 86.91593326 | V3: =+'Calculadora BCCBA'!$C$8 -> 86.91593326 | Y3: =+'Calculadora BCCBA'!$C$8 -> 86.91593326 | Z3: =+'Calculadora BCCBA'!$C$8 -> 86.91593326 | AB3: =+'Calculadora BCCBA'!$C$8 -> 86.91593326 | AC3: =+'Calculadora BCCBA'!$C$8 -> 86.91593326 | AD3: =+'Calculadora BCCBA'!$C$8 -> 86.91593326 | AE3: =+'Calculadora BCCBA'!$C$8 -> 86.91593326 | AF3: =+'Calculadora BCCBA'!$C$8 -> 86.91593326
B4: Participación Provincial | C4: Porcentaje | D4: Noviembre | E4: - | F4: 1 | AF4: -
B5: Pulverización terrestre | C5: Cantidad | D5: Septiembre | E5: 2 | F5: =$E5 -> 2 | H5: 2 | J5: 2 | K5: 2 | M5: 2 | N5: 2 | Q5: 2 | S5: 2 | T5: 2 | U5: 2 | V5: =$E5 -> 2 | Y5: 2 | Z5: 2 | AB5: 2 | AC5: 2 | AD5: 2 | AE5: 2 | AF5: =SUMPRODUCT(F5:AE5,$F$4:$AE$4) -> 2
B6: Fertilización | C6: Cantidad | D6: =D5 -> Septiembre | E6: 1 | F6: 1 | H6: 1 | J6: 1 | K6: 1 | M6: 1 | N6: 1 | Q6: 1 | S6: 1 | T6: 1 | U6: 1 | V6: 1 | Y6: 1 | Z6: 1 | AB6: 1 | AC6: 1 | AD6: 1 | AE6: 1 | AF6: =SUMPRODUCT(F6:AE6,$F$4:$AE$4) -> 1
B7: Glifosato | C7: lt/ha | D7: =D6 -> Septiembre | E7: 2.5 | F7: 2.5 | H7: 2.5 | J7: 2.5 | K7: 2.5 | M7: 2.5 | N7: 2.5 | Q7: 2.5 | S7: 2.5 | T7: 2.5 | U7: 2.5 | V7: 2.5 | Y7: 2.5 | Z7: 2.5 | AB7: 2.5 | AC7: 2.5 | AD7: 2.5 | AE7: 2.5 | AF7: =+AVERAGE(F7:AE7) -> 2.5
B8: Atrazina 90% | C8: kg/ha | D8: Septiembre | E8: 1 | F8: 1 | H8: 1 | J8: 1 | K8: 1 | M8: 1 | N8: 1 | Q8: 1 | S8: 1 | T8: 1 | U8: 1 | V8: 1 | Y8: 1 | Z8: 1 | AB8: 1 | AC8: 1 | AD8: 1 | AE8: 1 | AF8: =+AVERAGE(F8:AE8) -> 1
B9: 2 4 D 100% | C9: lt/ha | D9: Septiembre | E9: 0.5 | F9: 0.5 | H9: 0.5 | J9: 0.5 | K9: 0.5 | M9: 0.5 | N9: 0.5 | Q9: 0.5 | S9: 0.5 | T9: 0.5 | U9: 0.5 | V9: 0.5 | Y9: 0.5 | Z9: 0.5 | AB9: 0.5 | AC9: 0.5 | AD9: 0.5 | AE9: 0.5 | AF9: 0.5
B10: ACETOCHLOR | C10: lt/ha | D10: Septiembre | E10: 0 | F10: 0 | H10: 0 | J10: 0 | K10: 0 | M10: 0 | N10: 0 | Q10: 0 | S10: 0 | T10: 0 | U10: 0 | V10: 0 | Y10: 0 | Z10: 0 | AB10: 0 | AC10: 0 | AD10: 0 | AE10: 0 | AF10: 0
B11: SEMILLA MG | C11: bls/ha | D11: Septiembre | E11: 0.9 | F11: 0.9 | H11: 0.9 | J11: 0.9 | K11: 0.9 | M11: 0.9 | N11: 0.9 | Q11: 0.9 | S11: 0.9 | T11: 0.9 | U11: 0.9 | V11: 0.9 | Y11: 0.9 | Z11: 0.9 | AB11: 0.9 | AC11: 0.9 | AD11: 0.9 | AE11: 0.9 | AF11: =SUMPRODUCT(F11:AE11,$F$4:$AE$4) -> 0.9
B12: SEMILLA MG RR | C12: bls/ha | D12: Septiembre | E12: 0 | F12: 0 | H12: 0 | J12: 0 | K12: 0 | M12: 0 | N12: 0 | Q12: 0 | S12: 0 | T12: 0 | U12: 0 | V12: 0 | Y12: 0 | Z12: 0 | AB12: 0 | AC12: 0 | AD12: 0 | AE12: 0 | AF12: =SUMPRODUCT(F12:AE12,$F$4:$AE$4) -> 0
B13: UREA | C13: kg/ha | D13: Septiembre | E13: 160 | F13: 160 | H13: 160 | J13: 160 | K13: 160 | M13: 160 | N13: 160 | Q13: 160 | S13: 160 | T13: 160 | U13: 160 | V13: 160 | Y13: 160 | Z13: 160 | AB13: 160 | AC13: 160 | AD13: 160 | AE13: 160 | AF13: 160
B14: FOSFATO DIAMONICO | C14: kg/ha | D14: Septiembre | E14: 0 | F14: 0 | H14: 0 | J14: 0 | K14: 0 | M14: 0 | N14: 0 | Q14: 0 | S14: 0 | T14: 0 | U14: 0 | V14: 0 | Y14: 0 | Z14: 0 | AB14: 0 | AC14: 0 | AD14: 0 | AE14: 0 | AF14: 0
B15: FOSFATO MONOAMONICO | C15: kg/ha | D15: Septiembre | E15: 70 | F15: 70 | H15: 70 | J15: 70 | K15: 70 | M15: 70 | N15: 70 | Q15: 70 | S15: 70 | T15: 70 | U15: 70 | V15: 70 | Y15: 70 | Z15: 70 | AB15: 70 | AC15: 70 | AD15: 70 | AE15: 70 | AF15: 70
B16: GUARDIAN | C16: lt/ha | D16: Septiembre | E16: 1 | F16: 1 | H16: 1 | J16: 1 | K16: 1 | M16: 1 | N16: 1 | Q16: 1 | S16: 1 | T16: 1 | U16: 1 | V16: 1 | Y16: 1 | Z16: 1 | AB16: 1 | AC16: 1 | AD16: 1 | AE16: 1 | AF16: 1
B17: KARATE ZEON 25% | C17: lt/ha | D17: Septiembre | E17: 0.025 | F17: 0.025 | H17: 0.025 | J17: 0.025 | K17: 0.025 | M17: 0.025 | N17: 0.025 | Q17: 0.025 | S17: 0.025 | T17: 0.025 | U17: 0.025 | V17: 0.025 | Y17: 0.025 | Z17: 0.025 | AB17: 0.025 | AC17: 0.025 | AD17: 0.025 | AE17: 0.025 | AF17: 0.025
B18: ROUNDUP CONTROL MALEZA | C18: kg/ha | D18: Septiembre | E18: 0 | F18: 0 | H18: 0 | J18: 0 | K18: 0 | M18: 0 | N18: 0 | Q18: 0 | S18: 0 | T18: 0 | U18: 0 | V18: 0 | Y18: 0 | Z18: 0 | AB18: 0 | AC18: 0 | AD18: 0 | AE18: 0 | AF18: 0
B19: Riego | C19: mm/ha | D19: - | E19: - | F19: 0 | H19: =+$F$19 -> 0 | J19: =+$F$19 -> 0 | K19: 0 | M19: 0 | N19: 0 | Q19: 0 | S19: 0 | T19: 0 | U19: 0 | V19: =+$F$19 -> 0 | Y19: =+$F$19 -> 0 | Z19: 0 | AB19: 0 | AC19: =+$F$19 -> 0 | AD19: =+$F$19 -> 0 | AE19: =+$F$19 -> 0 | AF19: 0
B21: Costos Directos (Por Ha) | C21: Unidad de medida | D21: Mes de actualiz. | E21: Precio | F21: =F$2 -> Calamuchita | H21: =H$2 -> Colón | J21: Gral. Roca | K21: Gral. San Martín | M21: Juárez Celman | N21: Marcos Juárez | Q21: Pte. R. Sáenz Peña | S21: Río Cuarto | T21: Río Primero | U21: Río Seco | V21: Río Segundo | Y21: San Justo | Z21: Santa María | AB21: Tercero Arriba | AC21: Totoral | AD21: Tulumba | AE21: Unión | AF21: PROVINCIA
B22: Pulverización terrestre | C22: Cantidad | D22: Septiembre | E22: 4.2 | F22: =$E22*F5 -> 8.4 | H22: 8.4 | J22: 8.4 | K22: 8.4 | M22: 8.4 | N22: 8.4 | Q22: 8.4 | S22: 8.4 | T22: 8.4 | U22: 8.4 | V22: 8.4 | Y22: 8.4 | Z22: 8.4 | AB22: 8.4 | AC22: 8.4 | AD22: 8.4 | AE22: 8.4 | AF22: 8.4
B23: Fertilización | C23: Cantidad | D23: =D22 -> Septiembre | E23: 7 | F23: 7 | H23: 7 | J23: 7 | K23: 7 | M23: 7 | N23: 7 | Q23: 7 | S23: 7 | T23: 7 | U23: 7 | V23: 7 | Y23: 7 | Z23: 7 | AB23: 7 | AC23: 7 | AD23: 7 | AE23: 7 | AF23: 7
B24: Glifosato | C24: lt/ha | D24: =D23 -> Septiembre | E24: 3.3 | F24: 8.25 | H24: 8.25 | J24: 8.25 | K24: 8.25 | M24: 8.25 | N24: 8.25 | Q24: 8.25 | S24: 8.25 | T24: 8.25 | U24: 8.25 | V24: 8.25 | Y24: 8.25 | Z24: 8.25 | AB24: 8.25 | AC24: 8.25 | AD24: 8.25 | AE24: 8.25 | AF24: 8.25
B25: Atrazina 90% | C25: kg/ha | D25: Septiembre | E25: 6.5 | F25: 6.5 | H25: 6.5 | J25: 6.5 | K25: 6.5 | M25: 6.5 | N25: 6.5 | Q25: 6.5 | S25: 6.5 | T25: 6.5 | U25: 6.5 | V25: 6.5 | Y25: 6.5 | Z25: 6.5 | AB25: 6.5 | AC25: 6.5 | AD25: 6.5 | AE25: 6.5 | AF25: 6.5
B26: 2 4 D 100% | C26: lt/ha | D26: Septiembre | E26: 5.8 | F26: 2.9 | H26: 2.9 | J26: 2.9 | K26: 2.9 | M26: 2.9 | N26: 2.9 | Q26: 2.9 | S26: 2.9 | T26: 2.9 | U26: 2.9 | V26: 2.9 | Y26: 2.9 | Z26: 2.9 | AB26: 2.9 | AC26: 2.9 | AD26: 2.9 | AE26: 2.9 | AF26: 2.9
B27: ACETOCHLOR | C27: lt/ha | D27: Septiembre | E27: 6.3 | F27: 0 | H27: 0 | J27: 0 | K27: 0 | M27: 0 | N27: 0 | Q27: 0 | S27: 0 | T27: 0 | U27: 0 | V27: 0 | Y27: 0 | Z27: 0 | AB27: 0 | AC27: 0 | AD27: 0 | AE27: 0 | AF27: 0
B28: SEMILLA MG | C28: bls/ha | D28: Septiembre | E28: 135 | F28: 121.5 | H28: 121.5 | J28: 121.5 | K28: 121.5 | M28: 121.5 | N28: 121.5 | Q28: 121.5 | S28: 121.5 | T28: 121.5 | U28: 121.5 | V28: 121.5 | Y28: 121.5 | Z28: 121.5 | AB28: 121.5 | AC28: 121.5 | AD28: 121.5 | AE28: 121.5 | AF28: 121.5
B29: SEMILLA MG RR | C29: bls/ha | D29: Septiembre | E29: 162 | F29: 0 | H29: 0 | J29: 0 | K29: 0 | M29: 0 | N29: 0 | Q29: 0 | S29: 0 | T29: 0 | U29: 0 | V29: 0 | Y29: 0 | Z29: 0 | AB29: 0 | AC29: 0 | AD29: 0 | AE29: 0 | AF29: 0
B30: UREA | C30: kg/ha | D30: Septiembre | E30: 0.4 | F30: 64 | H30: 64 | J30: 64 | K30: 64 | M30: 64 | N30: 64 | Q30: 64 | S30: 64 | T30: 64 | U30: 64 | V30: 64 | Y30: 64 | Z30: 64 | AB30: 64 | AC30: 64 | AD30: 64 | AE30: 64 | AF30: 64
B31: FOSFATO DIAMONICO | C31: kg/ha | D31: Septiembre | E31: 0.5 | F31: 0 | H31: 0 | J31: 0 | K31: 0 | M31: 0 | N31: 0 | Q31: 0 | S31: 0 | T31: 0 | U31: 0 | V31: 0 | Y31: 0 | Z31: 0 | AB31: 0 | AC31: 0 | AD31: 0 | AE31: 0 | AF31: 0
B32: FOSFATO MONOAMONICO | C32: kg/ha | D32: Septiembre | E32: 0.5 | F32: 35 | H32: 35 | J32: 35 | K32: 35 | M32: 35 | N32: 35 | Q32: 35 | S32: 35 | T32: 35 | U32: 35 | V32: 35 | Y32: 35 | Z32: 35 | AB32: 35 | AC32: 35 | AD32: 35 | AE32: 35 | AF32: 35
B33: GUARDIAN | C33: lt/ha | D33: Septiembre | E33: 6.75 | F33: 6.75 | H33: 6.75 | J33: 6.75 | K33: 6.75 | M33: 6.75 | N33: 6.75 | Q33: 6.75 | S33: 6.75 | T33: 6.75 | U33: 6.75 | V33: 6.75 | Y33: 6.75 | Z33: 6.75 | AB33: 6.75 | AC33: 6.75 | AD33: 6.75 | AE33: 6.75 | AF33: 6.75
B34: KARATE ZEON 25% | C34: lt/ha | D34: Septiembre | E34: 49.6 | F34: 1.24 | H34: 1.24 | J34: 1.24 | K34: 1.24 | M34: 1.24 | N34: 1.24 | Q34: 1.24 | S34: 1.24 | T34: 1.24 | U34: 1.24 | V34: 1.24 | Y34: 1.24 | Z34: 1.24 | AB34: 1.24 | AC34: 1.24 | AD34: 1.24 | AE34: 1.24 | AF34: 1.24
B35: ROUNDUP CONTROL MALEZA | C35: kg/ha | D35: Septiembre | E35: 6.3 | F35: 0 | H35: 0 | J35: 0 | K35: 0 | M35: 0 | N35: 0 | Q35: 0 | S35: 0 | T35: 0 | U35: 0 | V35: 0 | Y35: 0 | Z35: 0 | AB35: 0 | AC35: 0 | AD35: 0 | AE35: 0 | AF35: 0
B36: Riego | C36: =+"USD/"&LEFT(C19,2) -> USD/mm | D36: Septiembre | E36: 1 | F36: 0 | H36: 0 | J36: 0 | K36: =$E36*K19 -> 0 | M36: 0 | N36: 0 | Q36: 0 | S36: 0 | T36: 0 | U36: 0 | V36: 0 | Y36: 0 | Z36: 0 | AB36: 0 | AC36: 0 | AD36: 0 | AE36: 0 | AF36: 0
B37: Siembra | C37: USD/Unidad | D37: Octubre | E37: 30.1 | F37: =$E$37 -> 30.1 | H37: =$E$37 -> 30.1 | J37: 30.1 | K37: 30.1 | M37: 30.1 | N37: 30.1 | Q37: 30.1 | S37: 30.1 | T37: 30.1 | U37: 30.1 | V37: 30.1 | Y37: 30.1 | Z37: 30.1 | AB37: 30.1 | AC37: 30.1 | AD37: 30.1 | AE37: 30.1 | AF37: =$E$37 -> 30.1
B38: Cosecha | C38: $/Unidad | D38: Marzo | E38: - | F38: =+Listas!$Z$10 -> 4210.582096 | H38: =+Listas!$Z$10 -> 4210.582096 | J38: =+Listas!$Z$10 -> 4210.582096 | K38: =+Listas!$Z$10 -> 4210.582096 | M38: =+Listas!$Z$10 -> 4210.582096 | N38: =+Listas!$Z$10 -> 4210.582096 | Q38: =+Listas!$Z$10 -> 4210.582096 | S38: =+Listas!$Z$10 -> 4210.582096 | T38: =+Listas!$Z$10 -> 4210.582096 | U38: =+Listas!$Z$10 -> 4210.582096 | V38: =+Listas!$Z$10 -> 4210.582096 | Y38: =+Listas!$Z$10 -> 4210.582096 | Z38: =+Listas!$Z$10 -> 4210.582096 | AB38: =+Listas!$Z$10 -> 4210.582096 | AC38: =+Listas!$Z$10 -> 4210.582096 | AD38: =+Listas!$Z$10 -> 4210.582096 | AE38: =+Listas!$Z$10 -> 4210.582096 | AF38: =+Listas!$Z$10 -> 4210.582096
B39: Cosecha en USD | C39: USD/Unidad | D39: =D38 -> Marzo | E39: - | F39: =+F38*(1+$E$85)/$E$83 -> 89.82575137 | H39: =+H38*(1+$E$85)/$E$83 -> 89.82575137 | J39: =+J38*(1+$E$85)/$E$83 -> 89.82575137 | K39: =+K38*(1+$E$85)/$E$83 -> 89.82575137 | M39: =+M38*(1+$E$85)/$E$83 -> 89.82575137 | N39: =+N38*(1+$E$85)/$E$83 -> 89.82575137 | Q39: =+Q38*(1+$E$85)/$E$83 -> 89.82575137 | S39: =+S38*(1+$E$85)/$E$83 -> 89.82575137 | T39: =+T38*(1+$E$85)/$E$83 -> 89.82575137 | U39: =+U38*(1+$E$85)/$E$83 -> 89.82575137 | V39: =+V38*(1+$E$85)/$E$83 -> 89.82575137 | Y39: =+Y38*(1+$E$85)/$E$83 -> 89.82575137 | Z39: =+Z38*(1+$E$85)/$E$83 -> 89.82575137 | AB39: =+AB38*(1+$E$85)/$E$83 -> 89.82575137 | AC39: =+AC38*(1+$E$85)/$E$83 -> 89.82575137 | AD39: =+AD38*(1+$E$85)/$E$83 -> 89.82575137 | AE39: =+AE38*(1+$E$85)/$E$83 -> 89.82575137 | AF39: =+AF38*(1+$E$85)/$E$83 -> 89.82575137
B40: Costos directos | C40: USD/ha | F40: =+SUM(F39,F22:F37) -> 381.4657514 | H40: 381.4657514 | J40: 381.4657514 | K40: 381.4657514 | M40: 381.4657514 | N40: 381.4657514 | Q40: 381.4657514 | S40: 381.4657514 | T40: 381.4657514 | U40: 381.4657514 | V40: 381.4657514 | Y40: 381.4657514 | Z40: 381.4657514 | AB40: 381.4657514 | AC40: 381.4657514 | AD40: 381.4657514 | AE40: 381.4657514 | AF40: =+SUM(AF39,AF22:AF37) -> 381.4657514
B42: Gastos Comerciales (Por Tn) | C42: Unidad de medida | D42: Mes de actualiz. | E42: Costo | F42: =F$2 -> Calamuchita | H42: Colón | J42: Gral. Roca | K42: Gral. San Martín | M42: Juárez Celman | N42: Marcos Juárez | Q42: Pte. R. Sáenz Peña | S42: Río Cuarto | T42: Río Primero | U42: Río Seco | V42: Río Segundo | Y42: San Justo | Z42: Santa María | AB42: Tercero Arriba | AC42: Totoral | AD42: Tulumba | AE42: Unión | AF42: PROVINCIA
B43: Flete Largo | C43: $/tn | D43: 2019-09-01 | E43: - | F43: 1474.884 | H43: 1492.848 | J43: 1480.752 | K43: 1062.396 | M43: 1126.584 | N43: 704.16 | Q43: 1263.72 | S43: 1434.156 | T43: 1474.308 | U43: 1617.504 | V43: 1353.696 | Y43: 1069.26 | Z43: 1472.82 | AB43: 1216.548 | AC43: 1519.044 | AD43: 1524.06 | AE43: 881.076 | AF43: 1160.376
B44: Flete Corto (30Km) | C44: $/tn | D44: =D43 -> 2019-09-01 | E44: 310.764 | F44: 310.764 | H44: 310.764 | J44: 310.764 | K44: 310.764 | M44: 310.764 | N44: 310.764 | Q44: 310.764 | S44: 310.764 | T44: 310.764 | U44: 310.764 | V44: 310.764 | Y44: 310.764 | Z44: 310.764 | AB44: 310.764 | AC44: 310.764 | AD44: 310.764 | AE44: 310.764 | AF44: 310.764
B45: Flete Conjunto | C45: USD/tn | D45: - | E45: - | F45: =0.95*(1+$E$86)*(F43+F44)/$E$83 -> 29.08055314 | H45: =0.95*(1+$E$86)*(H43+H44)/$E$83 -> 29.37310971 | J45: =0.95*(1+$E$86)*(J43+J44)/$E$83 -> 29.17611771 | K45: =0.95*(1+$E$86)*(K43+K44)/$E$83 -> 22.36289143 | M45: =0.95*(1+$E$86)*(M43+M44)/$E$83 -> 23.40823886 | N45: =0.95*(1+$E$86)*(N43+N44)/$E$83 -> 16.52876229 | Q45: =0.95*(1+$E$86)*(Q43+Q44)/$E$83 -> 25.64159657 | S45: =0.95*(1+$E$86)*(S43+S44)/$E$83 -> 28.41726857 | T45: =0.95*(1+$E$86)*(T43+T44)/$E$83 -> 29.07117257 | U45: =0.95*(1+$E$86)*(U43+U44)/$E$83 -> 31.40322171 | V45: =0.95*(1+$E$86)*(V43+V44)/$E$83 -> 27.10692 | Y45: =0.95*(1+$E$86)*(Y43+Y44)/$E$83 -> 22.47467657 | Z45: =0.95*(1+$E$86)*(Z43+Z44)/$E$83 -> 29.04693943 | AB45: =0.95*(1+$E$86)*(AB43+AB44)/$E$83 -> 24.87336686 | AC45: =0.95*(1+$E$86)*(AC43+AC44)/$E$83 -> 29.79973029 | AD45: =0.95*(1+$E$86)*(AD43+AD44)/$E$83 -> 29.88141943 | AE45: =0.95*(1+$E$86)*(AE43+AE44)/$E$83 -> 19.40996571 | AF45: =0.95*(1+$E$86)*(AF43+AF44)/$E$83 -> 23.95856571
B46: Paritaria | C46: USD/tn | D46: Noviembre | E46: 4 | F46: =+$E$46 -> 4 | H46: =+$E$46 -> 4 | J46: 4 | K46: 4 | M46: 4 | N46: 4 | Q46: 4 | S46: 4 | T46: =+$E$46 -> 4 | U46: 4 | V46: 4 | Y46: 4 | Z46: 4 | AB46: 4 | AC46: 4 | AD46: 4 | AE46: 4 | AF46: =+$E$46 -> 4
B47: Secado | C47: USD/tn | D47: =D46 -> Noviembre | E47: 7.5 | F47: =+$E$47 -> 7.5 | H47: =+$E$47 -> 7.5 | J47: 7.5 | K47: 7.5 | M47: 7.5 | N47: 7.5 | Q47: 7.5 | S47: 7.5 | T47: 7.5 | U47: 7.5 | V47: 7.5 | Y47: 7.5 | Z47: 7.5 | AB47: 7.5 | AC47: 7.5 | AD47: 7.5 | AE47: 7.5 | AF47: =+$E$47 -> 7.5
B48: Comisión Acopio | C48: % s. Precio Cosecha | D48: - | E48: 0.005 | F48: =$E$80*$E48 -> 0.64235 | H48: =$E$80*$E48 -> 0.64235 | J48: 0.64235 | K48: 0.64235 | M48: 0.64235 | N48: 0.64235 | Q48: 0.64235 | S48: 0.64235 | T48: 0.64235 | U48: 0.64235 | V48: 0.64235 | Y48: 0.64235 | Z48: 0.64235 | AB48: 0.64235 | AC48: 0.64235 | AD48: 0.64235 | AE48: 0.64235 | AF48: =$E$80*$E48 -> 0.64235
B49: Total Gastos Comerciales | C49: USD/tn | F49: =SUM(F45:F48) -> 41.22290314 | H49: 41.51545971 | J49: 41.31846771 | K49: 34.50524143 | M49: 35.55058886 | N49: 28.67111229 | Q49: 37.78394657 | S49: 40.55961857 | T49: 41.21352257 | U49: 43.54557171 | V49: 39.24927 | Y49: 34.61702657 | Z49: 41.18928943 | AB49: 37.01571686 | AC49: 41.94208029 | AD49: 42.02376943 | AE49: 31.55231571 | AF49: =SUM(AF45:AF48) -> 36.10091571
B51: Costos Indirectos (Por Ha) | C51: Unidad de medida | D51: Mes de actualiz. | E51: Costo | F51: =F$2 -> Calamuchita | H51: Colón | J51: Gral. Roca | K51: Gral. San Martín | M51: Juárez Celman | N51: Marcos Juárez | Q51: Pte. R. Sáenz Peña | S51: Río Cuarto | T51: Río Primero | U51: Río Seco | V51: Río Segundo | Y51: San Justo | Z51: Santa María | AB51: Tercero Arriba | AC51: Totoral | AD51: Tulumba | AE51: Unión | AF51: PROVINCIA
B52: Arrendamiento en qq | C52: qq/ha | D52: Octubre | E52: - | F52: 9.1125 | H52: 9.898635343 | J52: 8.206954047 | K52: 10.00852957 | M52: 9.525559266 | N52: 16.65 | Q52: 9.1625 | S52: 8.497275653 | T52: 8.717654037 | U52: 7.542826206 | V52: 9.919322015 | Y52: 10.19259977 | Z52: 10.1375 | AB52: 9.709541525 | AC52: 8.9875 | AD52: 7.3625 | AE52: 13.3 | AF52: 9.975
B53: Arrendamiento en USD | C53: USD/ha | D53: =D52 -> Octubre | E53: =+E81 -> 204.95875 | F53: =+$E$53*F52/10 -> 186.7686609 | H53: =+$E$53*H52/10 -> 202.8811927 | J53: 168.2087043 | K53: 205.133571 | M53: 195.234672 | N53: =+$E$53*N52/10 -> 341.2563188 | Q53: 187.7934547 | S53: 174.1590996 | T53: 178.6759474 | U53: 154.5968231 | V53: 203.3051841 | Y53: 208.9062509 | Z53: 207.7769328 | AB53: 199.0055494 | AC53: 184.2066766 | AD53: 150.9008797 | AE53: 272.5951375 | AF53: =+$E$53*AF52/10 -> 204.4463531
B54: Movilidad Campo (Campo + Adm) | C54: USD/ha | D54: Enero | E54: 12.3 | F54: =+$E54 -> 12.3 | H54: =+$E54 -> 12.3 | J54: 12.3 | K54: 12.3 | M54: 12.3 | N54: 12.3 | Q54: 12.3 | S54: 12.3 | T54: 12.3 | U54: 12.3 | V54: 12.3 | Y54: =+$E54 -> 12.3 | Z54: 12.3 | AB54: 12.3 | AC54: 12.3 | AD54: 12.3 | AE54: 12.3 | AF54: =+$E54 -> 12.3
B55: Personal (Salarios) | C55: USD/ha | D55: Octubre | E55: 35.7 | F55: =+$E55 -> 35.7 | H55: 35.7 | J55: 35.7 | K55: 35.7 | M55: 35.7 | N55: 35.7 | Q55: 35.7 | S55: 35.7 | T55: 35.7 | U55: 35.7 | V55: 35.7 | Y55: 35.7 | Z55: 35.7 | AB55: 35.7 | AC55: 35.7 | AD55: 35.7 | AE55: 35.7 | AF55: =+$E55*7/6 -> 41.65
B56: Asesoramiento Técnico | C56: USD/ha | D56: =D55 -> Octubre | E56: 0.01 | F56: =$E56*F93 -> 11.16608995 | H56: =$E56*H93 -> 11.16608995 | J56: =$E56*J93 -> 11.16608995 | K56: =$E56*K93 -> 11.16608995 | M56: =$E56*M93 -> 11.16608995 | N56: =$E56*N93 -> 11.16608995 | Q56: =$E56*Q93 -> 11.16608995 | S56: =$E56*S93 -> 11.16608995 | T56: =$E56*T93 -> 11.16608995 | U56: =$E56*U93 -> 11.16608995 | V56: =$E56*V93 -> 11.16608995 | Y56: =$E56*Y93 -> 11.16608995 | Z56: =$E56*Z93 -> 11.16608995 | AB56: =$E56*AB93 -> 11.16608995 | AC56: =$E56*AC93 -> 11.16608995 | AD56: =$E56*AD93 -> 11.16608995 | AE56: =$E56*AE93 -> 11.16608995 | AF56: =$E56*AF93 -> 11.16608995
B57: Asesoramiento Contable | C57: USD/ha | D57: Octubre | E57: 6 | F57: =+$E57 -> 6 | H57: 6 | J57: 6 | K57: 6 | M57: 6 | N57: 6 | Q57: 6 | S57: 6 | T57: 6 | U57: 6 | V57: 6 | Y57: 6 | Z57: 6 | AB57: 6 | AC57: 6 | AD57: 6 | AE57: 6 | AF57: 6
B58: Gastos de oficina/comunicaciones | C58: USD/ha | D58: Octubre | E58: 3.9 | F58: 3.9 | H58: 3.9 | J58: 3.9 | K58: 3.9 | M58: 3.9 | N58: 3.9 | Q58: 3.9 | S58: 3.9 | T58: 3.9 | U58: 3.9 | V58: 3.9 | Y58: 3.9 | Z58: 3.9 | AB58: 3.9 | AC58: 3.9 | AD58: 3.9 | AE58: 3.9 | AF58: 3.9
B59: Receta Fitosanitaria | C59: USD/ha | D59: Octubre | E59: 0 | F59: 0 | H59: 0 | J59: 0 | K59: 0 | M59: 0 | N59: 0 | Q59: 0 | S59: 0 | T59: 0 | U59: 0 | V59: 0 | Y59: 0 | Z59: 0 | AB59: 0 | AC59: 0 | AD59: 0 | AE59: 0 | AF59: 0
B60: Asesor Financiero | C60: USD/ha | D60: Octubre | E60: 0 | F60: 0 | H60: 0 | J60: 0 | K60: 0 | M60: 0 | N60: 0 | Q60: 0 | S60: 0 | T60: 0 | U60: 0 | V60: 0 | Y60: 0 | Z60: 0 | AB60: 0 | AC60: 0 | AD60: 0 | AE60: 0 | AF60: 0
B61: Seguro Climatico | C61: USD/ha | D61: Octubre | E61: 0 | F61: 0 | H61: 0 | J61: 0 | K61: 0 | M61: 0 | N61: 0 | Q61: 0 | S61: 0 | T61: 0 | U61: 0 | V61: 0 | Y61: 0 | Z61: 0 | AB61: 0 | AC61: 0 | AD61: 0 | AE61: 0 | AF61: 0
B62: Conservaciones y Mejoras | C62: USD/ha | D62: Octubre | E62: 3 | F62: 3 | H62: 3 | J62: 3 | K62: 3 | M62: 3 | N62: 3 | Q62: 3 | S62: 3 | T62: 3 | U62: 3 | V62: 3 | Y62: 3 | Z62: 3 | AB62: 3 | AC62: 3 | AD62: 3 | AE62: 3 | AF62: 3
B63: Gastos imprevistos/Otros | C63: USD/ha | D63: Octubre | E63: 0 | F63: 0 | H63: 0 | J63: 0 | K63: 0 | M63: 0 | N63: 0 | Q63: 0 | S63: 0 | T63: 0 | U63: 0 | V63: 0 | Y63: 0 | Z63: 0 | AB63: 0 | AC63: 0 | AD63: 0 | AE63: 0 | AF63: 0
B64: Total Costos Indirectos | F64: =+SUM(F53:F63) -> 258.8347509 | H64: =+SUM(H53:H63) -> 274.9472826 | J64: 240.2747942 | K64: 277.1996609 | M64: 267.300762 | N64: 413.3224087 | Q64: 259.8595446 | S64: 246.2251896 | T64: 250.7420374 | U64: 226.662913 | V64: 275.3712741 | Y64: 280.9723408 | Z64: 279.8430228 | AB64: 271.0716394 | AC64: 256.2727665 | AD64: 222.9669696 | AE64: 344.6612274 | AF64: =+SUM(AF53:AF63) -> 282.4624431
B66: Impuestos (Por Ha) | C66: =C$2 -> Unidad de medida | D66: =D$2 -> Mes de actualiz. | E66: Porcentaje | F66: =F$2 -> Calamuchita | H66: Colón | J66: Gral. Roca | K66: Gral. San Martín | M66: Juárez Celman | N66: Marcos Juárez | Q66: Pte. R. Sáenz Peña | S66: Río Cuarto | T66: Río Primero | U66: Río Seco | V66: Río Segundo | Y66: San Justo | Z66: Santa María | AB66: Tercero Arriba | AC66: Totoral | AD66: Tulumba | AE66: Unión | AF66: PROVINCIA
B67: Impuesto a las ganancias | C67: % s. Resultado Positivo | D67: - | E67: 0.35 | F67: =IF(F99<0,0,$E$67*F99) -> 41.30552387 | H67: =IF(H99<0,0,$E$67*H99) -> 34.7761638 | J67: =IF(J99<0,0,$E$67*J99) -> 47.51079576 | K67: =IF(K99<0,0,$E$67*K99) -> 55.31331965 | M67: =IF(M99<0,0,$E$67*M99) -> 55.59792713 | N67: =IF(N99<0,0,$E$67*N99) -> 25.41811521 | Q67: =IF(Q99<0,0,$E$67*Q99) -> 51.40835025 | S67: =IF(S99<0,0,$E$67*S99) -> 47.73662024 | T67: =IF(T99<0,0,$E$67*T99) -> 44.16650983 | V67: =IF(V99<0,0,$E$67*V99) -> 41.52164658 | Y67: =IF(Y99<0,0,$E$67*Y99) -> 53.65282484 | Z67: =IF(Z99<0,0,$E$67*Z99) -> 34.05488357 | AB67: =IF(AB99<0,0,$E$67*AB99) -> 49.82111619 | AC67: =IF(AC99<0,0,$E$67*AC99) -> 40.01444006 | AD67: =IF(AD99<0,0,$E$67*AD99) -> 51.42296588 | AE67: =IF(AE99<0,0,$E$67*AE99) -> 40.68474167 | AF67: =IF(AF99<0,0,$E$67*AF99) -> 48.61721271
B68: Impuesto a la ganancia mínima presunta | C68: - | D68: - | E68: -
B69: Impuestos a los combustibles | C69: - | D69: - | E69: -
B70: Impuesto al cheque | C70: % s. Ingresos Totales | D70: - | E70: 0.012 | F70: =$E$70/2*(F93+F94+F95+F98)*0.4 -> 5.076485296 | H70: =$E$70/2*(H93+H94+H95+H98)*0.4 -> 5.121258051 | J70: =$E$70/2*(J93+J94+J95+J98)*0.4 -> 5.03393486 | K70: =$E$70/2*(K93+K94+K95+K98)*0.4 -> 4.980431839 | M70: =$E$70/2*(M93+M94+M95+M98)*0.4 -> 4.978480245 | N70: =$E$70/2*(N93+N94+N95+N98)*0.4 -> 5.185427527 | Q70: =$E$70/2*(Q93+Q94+Q95+Q98)*0.4 -> 5.007208772 | S70: =$E$70/2*(S93+S94+S95+S98)*0.4 -> 5.032386349 | T70: =$E$70/2*(T93+T94+T95+T98)*0.4 -> 5.056867106 | U70: =$E$70/2*(U93+U94+U95+U98)*0.4 -> 5.047723343 | V70: =$E$70/2*(V93+V94+V95+V98)*0.4 -> 5.075003312 | Y70: =$E$70/2*(Y93+Y94+Y95+Y98)*0.4 -> 4.991818089 | Z70: =$E$70/2*(Z93+Z94+Z95+Z98)*0.4 -> 5.126203972 | AB70: =$E$70/2*(AB93+AB94+AB95+AB98)*0.4 -> 5.018092663 | AC70: =$E$70/2*(AC93+AC94+AC95+AC98)*0.4 -> 5.085338442 | AD70: =$E$70/2*(AD93+AD94+AD95+AD98)*0.4 -> 5.007108551 | AE70: =$E$70/2*(AE93+AE94+AE95+AE98)*0.4 -> 5.080742088 | AF70: =$E$70/2*(AF93+AF94+AF95+AF98)*0.4 -> 5.026348001
B71: Impuesto a los sellos | C71: % s. Ingresos Totales | D71: - | E71: 0.012 | F71: =$E71*F93 -> 13.39930793 | H71: =$E71*H93 -> 13.39930793 | J71: =$E71*J93 -> 13.39930793 | K71: =$E71*K93 -> 13.39930793 | M71: =$E71*M93 -> 13.39930793 | N71: =$E71*N93 -> 13.39930793 | Q71: =$E71*Q93 -> 13.39930793 | S71: =$E71*S93 -> 13.39930793 | T71: =$E71*T93 -> 13.39930793 | U71: =$E71*U93 -> 13.39930793 | V71: =$E71*V93 -> 13.39930793 | Y71: =$E71*Y93 -> 13.39930793 | Z71: =$E71*Z93 -> 13.39930793 | AB71: =$E71*AB93 -> 13.39930793 | AC71: =$E71*AC93 -> 13.39930793 | AD71: =$E71*AD93 -> 13.39930793 | AE71: =$E71*AE93 -> 13.39930793 | AF71: =$E71*AF93 -> 13.39930793
B72: Impuesto inmobiliario | C72: - | D72: - | E72: -
B73: Impuesto a los automotores (rentas) | C73: - | D73: - | E73: -
B74: Impuesto a la renta financiera | C74: - | D74: - | E74: -
B75: Impuesto a utilidades y dividendos | C75: - | D75: - | E75: -
B76: IVA crédito | C76: - | D76: - | E76: -
B77: IVA Débito | C77: - | D77: - | E77: -
B78: Total impuestos | F78: =+SUM(F67:F77) -> 59.7813171 | H78: =+SUM(H67:H77) -> 53.29672979 | J78: 65.94403856 | K78: 73.69305943 | M78: 73.97571531 | N78: 44.00285067 | Q78: 69.81486695 | S78: 66.16831452 | T78: 62.62268487 | U78: 18.44703128 | V78: 59.99595783 | Y78: 72.04395087 | Z78: 52.58039547 | AB78: 68.23851678 | AC78: 58.49908643 | AD78: 69.82938237 | AE78: 59.16479169 | AF78: =+SUM(AF67:AF77) -> 67.04286865
B80: Precio maíz cosecha USD/tn | D80: 2019-09-03 | E80: ='Calculadora BCCBA'!C13-'Calculadora BCCBA'!C13*'Calculadora BCCBA'!C23-9.4 -> 128.47
B81: Precio soja cosecha USD/tn | D81: 2019-06-04 | E81: =+'Soja 1ª'!E85 -> 204.95875
B82: Dólar siembra | D82: 2018-10-29 | E82: 58.37
B83: Dólar Cosecha | D83: 2019-04-29 | E83: =+'Calculadora BCCBA'!C17 -> 78.75
B84: Dólar Promedio | D84: - | E84: =+AVERAGE(E82:E83) -> 68.56
B85: Inflación esperada hasta dato FACMA de esta campaña | D85: Noviembre | E85: 0.68
B86: Inflación esp. desde FECOTAC hasta abril | D86: Septiembre | E86: 0.35
B87: Tasa de interes del costo de oportunidad | D87: Noviembre | E87: 0.0175
B88: Precio combustible | D88: - | E88: -
B90: RENTABILIDAD EN DÓLARES | F90: =F$2 -> Calamuchita | H90: Colón | J90: Gral. Roca | K90: Gral. San Martín | M90: Juárez Celman | N90: Marcos Juárez | Q90: Pte. R. Sáenz Peña | S90: Río Cuarto | T90: Río Primero | U90: Río Seco | V90: Río Segundo | Y90: San Justo | Z90: Santa María | AB90: Tercero Arriba | AC90: Totoral | AD90: Tulumba | AE90: Unión | AF90: PROVINCIA
B91: Rendimientos Maíz temprano | D91: qq/ha | F91: =F3 -> 86.91593326 | H91: 86.91593326 | J91: 86.91593326 | K91: 86.91593326 | M91: 86.91593326 | N91: 86.91593326 | Q91: 86.91593326 | S91: 86.91593326 | T91: 86.91593326 | U91: 86.91593326 | V91: 86.91593326 | Y91: 86.91593326 | Z91: 86.91593326 | AB91: 86.91593326 | AC91: 86.91593326 | AD91: 86.91593326 | AE91: 86.91593326 | AF91: 86.91593326
B92: Precio Maíz temprano | D92: USD/qq | F92: =IF(F91=0,"",$E$80) -> 128.47 | H92: 128.47 | J92: 128.47 | K92: 128.47 | M92: 128.47 | N92: 128.47 | Q92: 128.47 | S92: 128.47 | T92: 128.47 | U92: 128.47 | V92: 128.47 | Y92: 128.47 | Z92: 128.47 | AB92: 128.47 | AC92: 128.47 | AD92: 128.47 | AE92: 128.47 | AF92: =IF(AF91=0,"",$E$80) -> 128.47
B93: Ingresos Totales | D93: USD/ha | F93: =IF(F91=0,"",F92*F91/10) -> 1116.608995 | H93: 1116.608995 | J93: 1116.608995 | K93: 1116.608995 | M93: 1116.608995 | N93: 1116.608995 | Q93: 1116.608995 | S93: 1116.608995 | T93: 1116.608995 | U93: 1116.608995 | V93: 1116.608995 | Y93: 1116.608995 | Z93: 1116.608995 | AB93: 1116.608995 | AC93: 1116.608995 | AD93: 1116.608995 | AE93: 1116.608995 | AF93: =IF(AF91=0,"",AF92*AF91/10) -> 1116.608995
B94: Costos Directos | D94: USD/ha | F94: =IF(F91=0,"",F40) -> 381.4657514 | H94: 381.4657514 | J94: 381.4657514 | K94: 381.4657514 | M94: 381.4657514 | N94: 381.4657514 | Q94: 381.4657514 | S94: 381.4657514 | T94: 381.4657514 | U94: 381.4657514 | V94: 381.4657514 | Y94: 381.4657514 | Z94: 381.4657514 | AB94: 381.4657514 | AC94: 381.4657514 | AD94: 381.4657514 | AE94: 381.4657514 | AF94: 381.4657514
B95: Gastos Comerciales | D95: USD/ha | F95: =IF(F91=0,"",F49*F91/10) -> 358.2927098 | H95: 360.8354926 | J95: 359.1233182 | K95: 299.9055261 | M95: 308.9912608 | N95: 249.1976482 | Q95: 328.4026978 | S95: 352.5277101 | T95: 358.2111777 | U95: 378.4804005 | V95: 341.1386932 | Y95: 300.8771171 | Z95: 358.0005531 | AB95: 321.7255576 | AC95: 364.5435051 | AD95: 365.2535139 | AE95: 274.2398967 | AF95: 313.7744781
B96: Margen Bruto | D96: USD/ha | F96: =IF(F91=0,"",F93-F94-F95) -> 376.8505334 | H96: 374.3077506 | J96: 376.019925 | K96: 435.2377171 | M96: 426.1519823 | N96: 485.945595 | Q96: 406.7405453 | S96: 382.6155331 | T96: 376.9320655 | U96: 356.6628427 | V96: 394.00455 | Y96: 434.2661261 | Z96: 377.1426901 | AB96: 413.4176856 | AC96: 370.5997381 | AD96: 369.8897293 | AE96: 460.9033465 | AF96: =IF(AF91=0,"",AF93-AF94-AF95) -> 421.3687651
B97: Rendimiento de Indiferencia | D97: USD/ha | F97: =IF(F91=0,"",(F95+F94)*10/F92) -> 57.58219516 | H97: 57.78012329 | J97: 57.64684904 | K97: 53.03738441 | M97: 53.74461059 | N97: 49.09032455 | Q97: 55.25558101 | S97: 57.13345228 | T97: 57.57584876 | U97: 59.15358853 | V97: 56.2469405 | Y97: 53.11301226 | Z97: 57.55945392 | AB97: 54.73583786 | AC97: 58.06875196 | AD97: 58.12401847 | AE97: 51.03959275 | AF97: =IF(AF91=0,"",(AF95+AF94)*10/AF92) -> 54.11693231
B98: Costos Indirectos | D98: USD/ha | F98: =IF(F91=0,"",F64) -> 258.8347509 | H98: 274.9472826 | J98: 240.2747942 | K98: 277.1996609 | M98: 267.300762 | N98: 413.3224087 | Q98: 259.8595446 | S98: 246.2251896 | T98: 250.7420374 | U98: 226.662913 | V98: 275.3712741 | Y98: 280.9723408 | Z98: 279.8430228 | AB98: 271.0716394 | AC98: 256.2727665 | AD98: 222.9669696 | AE98: 344.6612274 | AF98: 282.4624431
B99: Resultado Operativo | D99: USD/ha | F99: =IF(F91=0,"",F96-F98) -> 118.0157825 | H99: 99.36046801 | J99: 135.7451307 | K99: 158.0380561 | M99: 158.8512204 | N99: 72.6231863 | Q99: 146.8810007 | S99: 136.3903435 | T99: 126.1900281 | U99: 129.9999297 | V99: 118.633276 | Y99: 153.2937853 | Z99: 97.29966733 | AB99: 142.3460462 | AC99: 114.3269716 | AD99: 146.9227597 | AE99: 116.2421191 | AF99: =IF(AF91=0,"",AF96-AF98) -> 138.906322
B100: Impuesto a las Ganancias | D100: USD/ha | F100: =IF(F91=0,"",F78) -> 59.7813171 | H100: 53.29672979 | J100: 65.94403856 | K100: 73.69305943 | M100: 73.97571531 | N100: 44.00285067 | Q100: 69.81486695 | S100: 66.16831452 | T100: 62.62268487 | U100: 18.44703128 | V100: 59.99595783 | Y100: 72.04395087 | Z100: 52.58039547 | AB100: 68.23851678 | AC100: 58.49908643 | AD100: 69.82938237 | AE100: 59.16479169 | AF100: 67.04286865
B101: Margen Neto | D101: USD/ha | F101: =IF(F91=0,"",F99-F100) -> 58.23446538 | H101: 46.06373822 | J101: 69.80109219 | K101: 84.34499672 | M101: 84.87550507 | N101: 28.62033563 | Q101: 77.06613375 | S101: 70.22202901 | T101: 63.56734322 | U101: 111.5528984 | V101: 58.63731812 | Y101: 81.2498344 | Z101: 44.71927186 | AB101: 74.10752946 | AC101: 55.82788516 | AD101: 77.09337729 | AE101: 57.07732737 | AF101: =IF(AF91=0,"",AF99-AF100) -> 71.86345339
B102: Intereses sobre el Capital Invertido | D102: USD/ha | F102: =IF(F91=0,"",F104*$E$87*7/12) -> 5.619429749 | H102: 5.783911843 | J102: 5.429963524 | K102: 5.806904872 | M102: 5.705853612 | N102: 7.196491255 | Q102: 5.629891185 | S102: 5.490707144 | T102: 5.536816632 | U102: 5.291008904 | V102: 5.788240089 | Y102: 5.845417646 | Z102: 5.833889191 | AB102: 5.744347985 | AC102: 5.593276158 | AD102: 5.253279482 | AE102: 6.49557503 | AF102: =IF(AF91=0,"",AF104*$E$87*7/12) -> 5.860629106
B103: Resultado Económico | D103: USD/ha | F103: =IF(F91=0,"",F101-F102) -> 52.61503563 | H103: 40.27982638 | J103: 64.37112867 | K103: 78.53809185 | M103: 79.16965146 | N103: 21.42384438 | Q103: 71.43624257 | S103: 64.73132187 | T103: 58.03052659 | U103: 106.2618895 | V103: 52.84907803 | Y103: 75.40441675 | Z103: 38.88538267 | AB103: 68.36318148 | AC103: 50.234609 | AD103: 71.84009781 | AE103: 50.58175234 | AF103: =IF(AF91=0,"",AF101-AF102) -> 66.00282428
B104: Inversión Inicial | D104: USD/ha | F104: =IF(F91=0,"",F40-F39+F64) -> 550.4747509 | H104: 566.5872826 | J104: 531.9147942 | K104: 568.8396609 | M104: 558.940762 | N104: 704.9624087 | Q104: 551.4995446 | S104: 537.8651896 | T104: 542.3820374 | U104: 518.302913 | V104: 567.0112741 | Y104: 572.6123408 | Z104: 571.4830228 | AB104: 562.7116394 | AC104: 547.9127665 | AD104: 514.6069696 | AE104: 636.3012274 | AF104: =IF(AF91=0,"",AF40-AF39+AF64) -> 574.1024431
B105: Rentabilidad de la Actividad | D105: % | F105: =IF(F91=0,"",F103/F104) -> 0.09558119704 | H105: 0.07109200579 | J105: 0.1210177445 | K105: 0.138067187 | M105: 0.1416422935 | N105: 0.03039005217 | Q105: 0.1295309185 | S105: 0.1203485987 | T105: 0.1069919772 | U105: 0.2050188931 | V105: 0.09320639721 | Y105: 0.1316849313 | Z105: 0.06804293587 | AB105: 0.1214888349 | AC105: 0.0916835892 | AD105: 0.1396018749 | AE105: 0.07949340682 | AF105: =IF(AF91=0,"",AF103/AF104) -> 0.1149669803 | AG105: 77 | AH105: 82 | AI105: 87 | AJ105: 92 | AK105: 97
AF106: =+AF107-7 -> 145.15 | AG106: 0.01611665829 | AH106: 0.06601573536 | AI106: 0.1158031527 | AJ106: 0.1654792846 | AK106: 0.2150445039
AF107: =+AF108-7 -> 152.15 | AG107: 0.01611665829 | AH107: 0.06601573536 | AI107: 0.1158031527 | AJ107: 0.1654792846 | AK107: 0.2150445039
E108: =T$2 -> Río Primero | F108: -0.09020257289 | AF108: 159.15 | AG108: 0.01611665829 | AH108: 0.06601573536 | AI108: 0.1158031527 | AJ108: 0.1654792846 | AK108: 0.2150445039
E109: =Z$2 -> Santa María | F109: -0.06360457678 | AF109: =+AF108+7 -> 166.15 | AG109: 0.01611665829 | AH109: 0.06601573536 | AI109: 0.1158031527 | AJ109: 0.1654792846 | AK109: 0.2150445039
E110: =AD$2 -> Tulumba | F110: -0.06219791714 | AF110: =+AF109+7 -> 173.15 | AG110: 0.01611665829 | AH110: 0.06601573536 | AI110: 0.1158031527 | AJ110: 0.1654792846 | AK110: 0.2150445039
E111: =H$2 -> Colón | F111: -0.04496603224
E112: =F$2 -> Calamuchita | F112: -0.02296927808
E113: =S$2 -> Río Cuarto | F113: -0.005026290871
E114: =V$2 -> Río Segundo | F114: 0.0003079386345
E115: =AC$2 -> Totoral | F115: 0.00646941007
E116: =J$2 -> Gral. Roca | F116: 0.02220444521
E117: =Y$2 -> San Justo | F117: 0.03664873538
E118: =AB$2 -> Tercero Arriba | F118: 0.04588507447
E119: =Q$2 -> Pte. R. Sáenz Peña | F119: 0.05122819134
E120: =M$2 -> Juárez Celman | F120: 0.05857362484
E121: =K$2 -> Gral. San Martín | F121: 0.1028811327
E122: =N$2 -> Marcos Juárez | F122: 0.1728791093
E123: =AE$2 -> Unión | F123: 0.1749140532

Sheet Maíz tardío (hidden)
B2: Planteo Tecnico (Por Ha) | C2: Unidad de medida | D2: Mes de actualiz. | E2: Cantidades | F2: Calamuchita | G2: Capital | H2: Colón | I2: Cruz del Eje | J2: Gral. Roca | K2: Gral. San Martín | L2: Ischilin | M2: Juárez Celman | N2: Marcos Juárez | O2: Minas | P2: Pocho | Q2: Pte. R. Sáenz Peña | R2: Punilla | S2: Río Cuarto | T2: Río Primero | U2: Río Seco | V2: Río Segundo | W2: San Alberto | X2: San Javier | Y2: San Justo | Z2: Santa María | AA2: Sobremonte | AB2: Tercero Arriba | AC2: Totoral | AD2: Tulumba | AE2: Unión | AF2: PROVINCIA
B3: Rendimiento | C3: qq/ha | D3: Noviembre | E3: - | F3: =+'Calculadora BCCBA'!$C$9 -> 75.09101531 | G3: =+'Calculadora BCCBA'!$C$9 -> 75.09101531 | H3: =+'Calculadora BCCBA'!$C$9 -> 75.09101531 | I3: =+'Calculadora BCCBA'!$C$9 -> 75.09101531 | J3: =+'Calculadora BCCBA'!$C$9 -> 75.09101531 | K3: =+'Calculadora BCCBA'!$C$9 -> 75.09101531 | L3: =+'Calculadora BCCBA'!$C$9 -> 75.09101531 | M3: =+'Calculadora BCCBA'!$C$9 -> 75.09101531 | N3: =+'Calculadora BCCBA'!$C$9 -> 75.09101531 | O3: =+'Calculadora BCCBA'!$C$9 -> 75.09101531 | P3: =+'Calculadora BCCBA'!$C$9 -> 75.09101531 | Q3: =+'Calculadora BCCBA'!$C$9 -> 75.09101531 | R3: =+'Calculadora BCCBA'!$C$9 -> 75.09101531 | S3: =+'Calculadora BCCBA'!$C$9 -> 75.09101531 | T3: =+'Calculadora BCCBA'!$C$9 -> 75.09101531 | U3: =+'Calculadora BCCBA'!$C$9 -> 75.09101531 | V3: =+'Calculadora BCCBA'!$C$9 -> 75.09101531 | W3: =+'Calculadora BCCBA'!$C$9 -> 75.09101531 | X3: =+'Calculadora BCCBA'!$C$9 -> 75.09101531 | Y3: =+'Calculadora BCCBA'!$C$9 -> 75.09101531 | Z3: =+'Calculadora BCCBA'!$C$9 -> 75.09101531 | AA3: =+'Calculadora BCCBA'!$C$9 -> 75.09101531 | AB3: =+'Calculadora BCCBA'!$C$9 -> 75.09101531 | AC3: =+'Calculadora BCCBA'!$C$9 -> 75.09101531 | AD3: =+'Calculadora BCCBA'!$C$9 -> 75.09101531 | AE3: =+'Calculadora BCCBA'!$C$9 -> 75.09101531 | AF3: =+'Calculadora BCCBA'!$C$9 -> 75.09101531
B4: Participación Provincial | C4: Porcentaje | D4: Noviembre | E4: - | F4: 1 | AF4: -
B5: Pulverización terrestre | C5: Cantidad | D5: Noviembre | E5: 2 | F5: =$E5 -> 2 | H5: 2 | J5: 2 | K5: 2 | M5: 2 | N5: 2 | Q5: 2 | S5: 2 | T5: 2 | U5: 2 | V5: =$E5 -> 2 | Y5: 2 | Z5: 2 | AB5: 2 | AC5: 2 | AD5: 2 | AE5: 2 | AF5: =SUMPRODUCT(F5:AE5,$F$4:$AE$4) -> 2
B6: Fertilización | C6: Cantidad | D6: =D5 -> Noviembre | E6: 1 | F6: 1 | H6: 1 | J6: 1 | K6: 1 | M6: 1 | N6: 1 | Q6: 1 | S6: 1 | T6: 1 | U6: 1 | V6: 1 | Y6: 1 | Z6: 1 | AB6: 1 | AC6: 1 | AD6: 1 | AE6: 1 | AF6: =SUMPRODUCT(F6:AE6,$F$4:$AE$4) -> 1
B7: Glifosato | C7: lt/ha | D7: =D6 -> Noviembre | E7: 2.5 | F7: 2.5 | H7: 2.5 | J7: 2.5 | K7: 2.5 | M7: 2.5 | N7: 2.5 | Q7: 2.5 | S7: 2.5 | T7: 2.5 | U7: 2.5 | V7: 2.5 | Y7: 2.5 | Z7: 2.5 | AB7: 2.5 | AC7: 2.5 | AD7: 2.5 | AE7: 2.5 | AF7: =+AVERAGE(F7:AE7) -> 2.5
B8: Atrazina 90% | C8: kg/ha | D8: Noviembre | E8: 1 | F8: 1 | H8: 1 | J8: 1 | K8: 1 | M8: 1 | N8: 1 | Q8: 1 | S8: 1 | T8: 1 | U8: 1 | V8: 1 | Y8: 1 | Z8: 1 | AB8: 1 | AC8: 1 | AD8: 1 | AE8: 1 | AF8: =+AVERAGE(F8:AE8) -> 1
B9: 2 4 D 100% | C9: lt/ha | D9: Noviembre | E9: 0.5 | F9: 0.5 | H9: 0.5 | J9: 0.5 | K9: 0.5 | M9: 0.5 | N9: 0.5 | Q9: 0.5 | S9: 0.5 | T9: 0.5 | U9: 0.5 | V9: 0.5 | Y9: 0.5 | Z9: 0.5 | AB9: 0.5 | AC9: 0.5 | AD9: 0.5 | AE9: 0.5 | AF9: =+AVERAGE(F9:AE9) -> 0.5
B10: ACETOCHLOR | C10: lt/ha | D10: Noviembre | E10: 0 | F10: 0 | H10: 0 | J10: 0 | K10: 0 | M10: 0 | N10: 0 | Q10: 0 | S10: 0 | T10: 0 | U10: 0 | V10: 0 | Y10: 0 | Z10: 0 | AB10: 0 | AC10: 0 | AD10: 0 | AE10: 0 | AF10: =+AVERAGE(F10:AE10) -> 0
B11: SEMILLA MG | C11: bls/ha | D11: Noviembre | E11: 0.9 | F11: 0.9 | H11: 0.9 | J11: 0.9 | K11: 0.9 | M11: 0.9 | N11: 0.9 | Q11: 0.9 | S11: 0.9 | T11: 0.9 | U11: 0.9 | V11: 0.9 | Y11: 0.9 | Z11: 0.9 | AB11: 0.9 | AC11: 0.9 | AD11: 0.9 | AE11: 0.9 | AF11: =SUMPRODUCT(F11:AE11,$F$4:$AE$4) -> 0.9
B12: SEMILLA MG RR | C12: bls/ha | D12: Noviembre | E12: 0 | F12: 0 | H12: 0 | J12: 0 | K12: 0 | M12: 0 | N12: 0 | Q12: 0 | S12: 0 | T12: 0 | U12: 0 | V12: 0 | Y12: 0 | Z12: 0 | AB12: 0 | AC12: 0 | AD12: 0 | AE12: 0 | AF12: =SUMPRODUCT(F12:AE12,$F$4:$AE$4) -> 0
B13: UREA | C13: kg/ha | D13: Noviembre | E13: 160 | F13: 160 | H13: 160 | J13: 160 | K13: 160 | M13: 160 | N13: 160 | Q13: 160 | S13: 160 | T13: 160 | U13: 160 | V13: 160 | Y13: 160 | Z13: 160 | AB13: 160 | AC13: 160 | AD13: 160 | AE13: 160 | AF13: =SUMPRODUCT(F13:AE13,$F$4:$AE$4) -> 160
B14: FOSFATO DIAMONICO | C14: kg/ha | D14: Noviembre | E14: 0 | F14: 0 | H14: 0 | J14: 0 | K14: 0 | M14: 0 | N14: 0 | Q14: 0 | S14: 0 | T14: 0 | U14: 0 | V14: 0 | Y14: 0 | Z14: 0 | AB14: 0 | AC14: 0 | AD14: 0 | AE14: 0 | AF14: =SUMPRODUCT(F14:AE14,$F$4:$AE$4) -> 0
B15: FOSFATO MONOAMONICO | C15: kg/ha | D15: Noviembre | E15: 70 | F15: 70 | H15: 70 | J15: 70 | K15: 70 | M15: 70 | N15: 70 | Q15: 70 | S15: 70 | T15: 70 | U15: 70 | V15: 70 | Y15: 70 | Z15: 70 | AB15: 70 | AC15: 70 | AD15: 70 | AE15: 70 | AF15: =SUMPRODUCT(F15:AE15,$F$4:$AE$4) -> 70
B16: GUARDIAN | C16: lt/ha | D16: Noviembre | E16: 1 | F16: 1 | H16: 1 | J16: 1 | K16: 1 | M16: 1 | N16: 1 | Q16: 1 | S16: 1 | T16: 1 | U16: 1 | V16: 1 | Y16: 1 | Z16: 1 | AB16: 1 | AC16: 1 | AD16: 1 | AE16: 1 | AF16: =+AVERAGE(F16:AE16) -> 1
B17: KARATE ZEON 25% | C17: lt/ha | D17: Noviembre | E17: 0.025 | F17: 0.025 | H17: 0.025 | J17: 0.025 | K17: 0.025 | M17: 0.025 | N17: 0.025 | Q17: 0.025 | S17: 0.025 | T17: 0.025 | U17: 0.025 | V17: 0.025 | Y17: 0.025 | Z17: 0.025 | AB17: 0.025 | AC17: 0.025 | AD17: 0.025 | AE17: 0.025 | AF17: =+AVERAGE(F17:AE17) -> 0.025
B18: ROUNDUP CONTROL MALEZA | C18: kg/ha | D18: Noviembre | E18: 0 | F18: 0 | H18: 0 | J18: 0 | K18: 0 | M18: 0 | N18: 0 | Q18: 0 | S18: 0 | T18: 0 | U18: 0 | V18: 0 | Y18: 0 | Z18: 0 | AB18: 0 | AC18: 0 | AD18: 0 | AE18: 0 | AF18: =+AVERAGE(F18:AE18) -> 0
B19: Riego | C19: mm/ha | D19: - | E19: - | F19: 0 | H19: =+$F$19 -> 0 | J19: =+$F$19 -> 0 | K19: 0 | M19: 0 | N19: 0 | Q19: 0 | S19: 0 | T19: 0 | U19: 0 | V19: =+$F$19 -> 0 | Y19: =+$F$19 -> 0 | Z19: 0 | AB19: 0 | AC19: =+$F$19 -> 0 | AD19: =+$F$19 -> 0 | AE19: =+$F$19 -> 0 | AF19: 0
B21: Costos Directos (Por Ha) | C21: =C2 -> Unidad de medida | D21: =D2 -> Mes de actualiz. | E21: Precio | F21: =F$2 -> Calamuchita | G21: =G$2 -> Capital | H21: Colón | I21: Cruz del Eje | J21: Gral. Roca | K21: Gral. San Martín | L21: Ischilin | M21: Juárez Celman | N21: Marcos Juárez | O21: Minas | P21: Pocho | Q21: Pte. R. Sáenz Peña | R21: Punilla | S21: Río Cuarto | T21: Río Primero | U21: Río Seco | V21: Río Segundo | W21: San Alberto | X21: San Javier | Y21: San Justo | Z21: Santa María | AA21: Sobremonte | AB21: Tercero Arriba | AC21: Totoral | AD21: Tulumba | AE21: Unión | AF21: PROVINCIA
B22: Pulverización terrestre | C22: Cantidad | D22: Noviembre | E22: 4.1 | F22: =$E22*F5 -> 8.2 | H22: 8.2 | J22: 8.2 | K22: 8.2 | M22: 8.2 | N22: 8.2 | Q22: 8.2 | S22: 8.2 | T22: 8.2 | U22: 8.2 | V22: 8.2 | Y22: 8.2 | Z22: 8.2 | AB22: 8.2 | AC22: 8.2 | AD22: 8.2 | AE22: 8.2 | AF22: 8.2
B23: Fertilización | C23: Cantidad | D23: =D22 -> Noviembre | E23: 6.8 | F23: 6.8 | H23: 6.8 | J23: 6.8 | K23: 6.8 | M23: 6.8 | N23: 6.8 | Q23: 6.8 | S23: 6.8 | T23: 6.8 | U23: 6.8 | V23: 6.8 | Y23: 6.8 | Z23: 6.8 | AB23: 6.8 | AC23: 6.8 | AD23: 6.8 | AE23: 6.8 | AF23: 6.8
B24: Glifosato | C24: lt/ha | D24: =D23 -> Noviembre | E24: 3.3 | F24: 8.25 | H24: 8.25 | J24: 8.25 | K24: 8.25 | M24: 8.25 | N24: 8.25 | Q24: 8.25 | S24: 8.25 | T24: 8.25 | U24: 8.25 | V24: 8.25 | Y24: 8.25 | Z24: 8.25 | AB24: 8.25 | AC24: 8.25 | AD24: 8.25 | AE24: 8.25 | AF24: 8.25
B25: Atrazina 90% | C25: kg/ha | D25: Noviembre | E25: 6.5 | F25: 6.5 | H25: 6.5 | J25: 6.5 | K25: 6.5 | M25: 6.5 | N25: 6.5 | Q25: 6.5 | S25: 6.5 | T25: 6.5 | U25: 6.5 | V25: 6.5 | Y25: 6.5 | Z25: 6.5 | AB25: 6.5 | AC25: 6.5 | AD25: 6.5 | AE25: 6.5 | AF25: 6.5
B26: 2 4 D 100% | C26: lt/ha | D26: Noviembre | E26: 5.8 | F26: 2.9 | H26: 2.9 | J26: 2.9 | K26: 2.9 | M26: 2.9 | N26: 2.9 | Q26: 2.9 | S26: 2.9 | T26: 2.9 | U26: 2.9 | V26: 2.9 | Y26: 2.9 | Z26: 2.9 | AB26: 2.9 | AC26: 2.9 | AD26: 2.9 | AE26: 2.9 | AF26: 2.9
B27: ACETOCHLOR | C27: lt/ha | D27: Noviembre | E27: 6.3 | F27: 0 | H27: 0 | J27: 0 | K27: 0 | M27: 0 | N27: 0 | Q27: 0 | S27: 0 | T27: 0 | U27: 0 | V27: 0 | Y27: 0 | Z27: 0 | AB27: 0 | AC27: 0 | AD27: 0 | AE27: 0 | AF27: 0
B28: SEMILLA MG | C28: bls/ha | D28: Noviembre | E28: 135 | F28: 121.5 | H28: 121.5 | J28: 121.5 | K28: 121.5 | M28: 121.5 | N28: 121.5 | Q28: 121.5 | S28: 121.5 | T28: 121.5 | U28: 121.5 | V28: 121.5 | Y28: 121.5 | Z28: 121.5 | AB28: 121.5 | AC28: 121.5 | AD28: 121.5 | AE28: 121.5 | AF28: 121.5
B29: SEMILLA MG RR | C29: bls/ha | D29: Noviembre | E29: 162 | F29: 0 | H29: 0 | J29: 0 | K29: 0 | M29: 0 | N29: 0 | Q29: 0 | S29: 0 | T29: 0 | U29: 0 | V29: 0 | Y29: 0 | Z29: 0 | AB29: 0 | AC29: 0 | AD29: 0 | AE29: 0 | AF29: 0
B30: UREA | C30: kg/ha | D30: Noviembre | E30: 0.4 | F30: 64 | H30: 64 | J30: 64 | K30: 64 | M30: 64 | N30: 64 | Q30: 64 | S30: 64 | T30: 64 | U30: 64 | V30: 64 | Y30: 64 | Z30: 64 | AB30: 64 | AC30: 64 | AD30: 64 | AE30: 64 | AF30: 64
B31: FOSFATO DIAMONICO | C31: kg/ha | D31: Noviembre | E31: 0.49 | F31: 0 | H31: 0 | J31: 0 | K31: 0 | M31: 0 | N31: 0 | Q31: 0 | S31: 0 | T31: 0 | U31: 0 | V31: 0 | Y31: 0 | Z31: 0 | AB31: 0 | AC31: 0 | AD31: 0 | AE31: 0 | AF31: 0
B32: FOSFATO MONOAMONICO | C32: kg/ha | D32: Noviembre | E32: 0.49 | F32: 34.3 | H32: 34.3 | J32: 34.3 | K32: 34.3 | M32: 34.3 | N32: 34.3 | Q32: 34.3 | S32: 34.3 | T32: 34.3 | U32: 34.3 | V32: 34.3 | Y32: 34.3 | Z32: 34.3 | AB32: 34.3 | AC32: 34.3 | AD32: 34.3 | AE32: 34.3 | AF32: 34.3
B33: GUARDIAN | C33: lt/ha | D33: Noviembre | E33: 6.75 | F33: 6.75 | H33: 6.75 | J33: 6.75 | K33: 6.75 | M33: 6.75 | N33: 6.75 | Q33: 6.75 | S33: 6.75 | T33: 6.75 | U33: 6.75 | V33: 6.75 | Y33: 6.75 | Z33: 6.75 | AB33: 6.75 | AC33: 6.75 | AD33: 6.75 | AE33: 6.75 | AF33: 6.75
B34: KARATE ZEON 5% | C34: lt/ha | D34: Noviembre | E34: 49.6 | F34: 1.24 | H34: 1.24 | J34: 1.24 | K34: 1.24 | M34: 1.24 | N34: 1.24 | Q34: 1.24 | S34: 1.24 | T34: 1.24 | U34: 1.24 | V34: 1.24 | Y34: 1.24 | Z34: 1.24 | AB34: 1.24 | AC34: 1.24 | AD34: 1.24 | AE34: 1.24 | AF34: 1.24
B35: ROUNDUP CONTROL MALEZA | C35: kg/ha | D35: Noviembre | E35: 6.3 | F35: 0 | H35: 0 | J35: 0 | K35: 0 | M35: 0 | N35: 0 | Q35: 0 | S35: 0 | T35: 0 | U35: 0 | V35: 0 | Y35: 0 | Z35: 0 | AB35: 0 | AC35: 0 | AD35: 0 | AE35: 0 | AF35: 0
B36: Riego | C36: =+"USD/"&LEFT(C19,2) -> USD/mm | D36: Noviembre | E36: 1 | F36: 0 | H36: 0 | J36: 0 | K36: =$E36*K19 -> 0 | M36: 0 | N36: 0 | Q36: 0 | S36: 0 | T36: 0 | U36: 0 | V36: 0 | Y36: 0 | Z36: 0 | AB36: 0 | AC36: 0 | AD36: 0 | AE36: 0 | AF36: 0
B37: Siembra | C37: USD/Unidad | D37: Noviembre | E37: 29.9 | F37: =$E$37 -> 29.9 | H37: =$E$37 -> 29.9 | J37: 29.9 | K37: 29.9 | M37: 29.9 | N37: 29.9 | Q37: 29.9 | S37: 29.9 | T37: 29.9 | U37: 29.9 | V37: 29.9 | Y37: 29.9 | Z37: 29.9 | AB37: 29.9 | AC37: 29.9 | AD37: 29.9 | AE37: 29.9 | AF37: =$E$37 -> 29.9
B38: Cosecha | C38: $/Unidad | D38: Marzo | E38: - | F38: =+Listas!$AC$10 -> 3895.550766 | G38: =+Listas!$AC$10 -> 3895.550766 | H38: =+Listas!$AC$10 -> 3895.550766 | I38: =+Listas!$AC$10 -> 3895.550766 | J38: =+Listas!$AC$10 -> 3895.550766 | K38: =+Listas!$AC$10 -> 3895.550766 | L38: =+Listas!$AC$10 -> 3895.550766 | M38: =+Listas!$AC$10 -> 3895.550766 | N38: =+Listas!$AC$10 -> 3895.550766 | O38: =+Listas!$AC$10 -> 3895.550766 | P38: =+Listas!$AC$10 -> 3895.550766 | Q38: =+Listas!$AC$10 -> 3895.550766 | R38: =+Listas!$AC$10 -> 3895.550766 | S38: =+Listas!$AC$10 -> 3895.550766 | T38: =+Listas!$AC$10 -> 3895.550766 | U38: =+Listas!$AC$10 -> 3895.550766 | V38: =+Listas!$AC$10 -> 3895.550766 | W38: =+Listas!$AC$10 -> 3895.550766 | X38: =+Listas!$AC$10 -> 3895.550766 | Y38: =+Listas!$AC$10 -> 3895.550766 | Z38: =+Listas!$AC$10 -> 3895.550766 | AA38: =+Listas!$AC$10 -> 3895.550766 | AB38: =+Listas!$AC$10 -> 3895.550766 | AC38: =+Listas!$AC$10 -> 3895.550766 | AD38: =+Listas!$AC$10 -> 3895.550766 | AE38: =+Listas!$AC$10 -> 3895.550766 | AF38: =+Listas!$AC$10 -> 3895.550766
B39: Cosecha en USD | C39: USD/Unidad | D39: =D38 -> Marzo | E39: - | F39: =+F38*(1+$E$85)/$E$83 -> 81.39281925 | H39: =+H38*(1+$E$85)/$E$83 -> 81.39281925 | J39: =+J38*(1+$E$85)/$E$83 -> 81.39281925 | K39: =+K38*(1+$E$85)/$E$83 -> 81.39281925 | M39: =+M38*(1+$E$85)/$E$83 -> 81.39281925 | N39: =+N38*(1+$E$85)/$E$83 -> 81.39281925 | Q39: =+Q38*(1+$E$85)/$E$83 -> 81.39281925 | S39: =+S38*(1+$E$85)/$E$83 -> 81.39281925 | T39: =+T38*(1+$E$85)/$E$83 -> 81.39281925 | U39: =+U38*(1+$E$85)/$E$83 -> 81.39281925 | V39: =+V38*(1+$E$85)/$E$83 -> 81.39281925 | Y39: =+Y38*(1+$E$85)/$E$83 -> 81.39281925 | Z39: =+Z38*(1+$E$85)/$E$83 -> 81.39281925 | AB39: =+AB38*(1+$E$85)/$E$83 -> 81.39281925 | AC39: =+AC38*(1+$E$85)/$E$83 -> 81.39281925 | AD39: =+AD38*(1+$E$85)/$E$83 -> 81.39281925 | AE39: =+AE38*(1+$E$85)/$E$83 -> 81.39281925 | AF39: =+AF38*(1+$E$85)/$E$83 -> 81.39281925
B40: Costos directos | C40: USD/ha | F40: =+SUM(F39,F22:F37) -> 371.7328192 | H40: 371.7328192 | J40: 371.7328192 | K40: 371.7328192 | M40: 371.7328192 | N40: 371.7328192 | Q40: 371.7328192 | S40: 371.7328192 | T40: 371.7328192 | U40: 371.7328192 | V40: 371.7328192 | Y40: 371.7328192 | Z40: 371.7328192 | AB40: 371.7328192 | AC40: 371.7328192 | AD40: 371.7328192 | AE40: 371.7328192 | AF40: =+SUM(AF39,AF22:AF37) -> 371.7328192
B42: Gastos Comerciales (Por Tn) | C42: =C21 -> Unidad de medida | D42: Mes de actualiz. | E42: Costo | F42: =F$2 -> Calamuchita | G42: Capital | H42: Colón | I42: Cruz del Eje | J42: Gral. Roca | K42: Gral. San Martín | L42: Ischilin | M42: Juárez Celman | N42: Marcos Juárez | O42: Minas | P42: Pocho | Q42: Pte. R. Sáenz Peña | R42: Punilla | S42: Río Cuarto | T42: Río Primero | U42: Río Seco | V42: Río Segundo | W42: San Alberto | X42: San Javier | Y42: San Justo | Z42: Santa María | AA42: Sobremonte | AB42: Tercero Arriba | AC42: Totoral | AD42: Tulumba | AE42: Unión | AF42: PROVINCIA
B43: Flete Largo | C43: $/tn | D43: 2019-09-01 | E43: - | F43: 1474.884 | G43: 1470.72 | H43: 1492.848 | I43: 1585.608 | J43: 1480.752 | K43: 1062.396 | L43: 1567.296 | M43: 1126.584 | N43: 704.16 | O43: 1626.66 | P43: 1613.484 | Q43: 1263.72 | R43: 1495.608 | S43: 1434.156 | T43: 1474.308 | U43: 1617.504 | V43: 1353.696 | W43: 1569.564 | X43: 1607.436 | Y43: 1069.26 | Z43: 1472.82 | AA43: 1626.66 | AB43: 1216.548 | AC43: 1519.044 | AD43: 1524.06 | AE43: 881.076 | AF43: 1160.376
B44: Flete Corto (30Km) | C44: $/tn | D44: =D43 -> 2019-09-01 | E44: 310.764 | F44: 310.764 | H44: 310.764 | J44: 310.764 | K44: 310.764 | M44: 310.764 | N44: 310.764 | Q44: 310.764 | S44: 310.764 | T44: 310.764 | U44: 310.764 | V44: 310.764 | Y44: 310.764 | Z44: 310.764 | AB44: 310.764 | AC44: 310.764 | AD44: 310.764 | AE44: 310.764 | AF44: 310.764
B45: Flete Conjunto | C45: USD/tn | D45: - | E45: - | F45: =0.95*(1+$E$86)*(F43+F44)/$E$83 -> 31.50533906 | H45: =0.95*(1+$E$86)*(H43+H44)/$E$83 -> 31.8222895 | J45: =0.95*(1+$E$86)*(J43+J44)/$E$83 -> 31.60887197 | K45: =0.95*(1+$E$86)*(K43+K44)/$E$83 -> 24.2275473 | M45: =0.95*(1+$E$86)*(M43+M44)/$E$83 -> 25.36005757 | N45: =0.95*(1+$E$86)*(N43+N44)/$E$83 -> 17.90695856 | Q45: =0.95*(1+$E$86)*(Q43+Q44)/$E$83 -> 27.77963645 | S45: =0.95*(1+$E$86)*(S43+S44)/$E$83 -> 30.78674869 | T45: =0.95*(1+$E$86)*(T43+T44)/$E$83 -> 31.49517632 | U45: =0.95*(1+$E$86)*(U43+U44)/$E$83 -> 34.02167568 | V45: =0.95*(1+$E$86)*(V43+V44)/$E$83 -> 29.36714103 | Y45: =0.95*(1+$E$86)*(Y43+Y44)/$E$83 -> 24.34865328 | Z45: =0.95*(1+$E$86)*(Z43+Z44)/$E$83 -> 31.46892258 | AB45: =0.95*(1+$E$86)*(AB43+AB44)/$E$83 -> 26.94735044 | AC45: =0.95*(1+$E$86)*(AC43+AC44)/$E$83 -> 32.28448241 | AD45: =0.95*(1+$E$86)*(AD43+AD44)/$E$83 -> 32.37298294 | AE45: =0.95*(1+$E$86)*(AE43+AE44)/$E$83 -> 21.02840163 | AF45: =0.95*(1+$E$86)*(AF43+AF44)/$E$83 -> 25.95627162
B46: Paritaria | C46: USD/tn | D46: Noviembre | E46: 4 | F46: =+$E$46 -> 4 | H46: =+$E$46 -> 4 | J46: 4 | K46: 4 | M46: 4 | N46: 4 | Q46: 4 | S46: 4 | T46: =+$E$46 -> 4 | U46: 4 | V46: 4 | Y46: 4 | Z46: 4 | AB46: 4 | AC46: 4 | AD46: 4 | AE46: 4 | AF46: =+$E$46 -> 4
B47: Secado | C47: USD/tn | D47: =D46 -> Noviembre | E47: 7.5 | F47: =+$E$47 -> 7.5 | H47: =+$E$47 -> 7.5 | J47: 7.5 | K47: 7.5 | M47: 7.5 | N47: 7.5 | Q47: 7.5 | S47: 7.5 | T47: 7.5 | U47: 7.5 | V47: 7.5 | Y47: 7.5 | Z47: 7.5 | AB47: 7.5 | AC47: 7.5 | AD47: 7.5 | AE47: 7.5 | AF47: =+$E$47 -> 7.5
B48: Comisión Acopio | C48: % s. Precio Cosecha | D48: - | E48: 0.005 | F48: =$E$80*$E48 -> 0.6126425 | H48: 0.6126425 | J48: 0.6126425 | K48: 0.6126425 | M48: 0.6126425 | N48: 0.6126425 | Q48: 0.6126425 | S48: 0.6126425 | T48: 0.6126425 | U48: 0.6126425 | V48: 0.6126425 | Y48: 0.6126425 | Z48: 0.6126425 | AB48: 0.6126425 | AC48: 0.6126425 | AD48: 0.6126425 | AE48: 0.6126425 | AF48: =$E$80*$E48 -> 0.6126425
B49: Total Gastos Comerciales | C49: USD/tn | F49: =SUM(F45:F48) -> 43.61798156 | H49: 43.934932 | J49: 43.72151447 | K49: 36.3401898 | M49: 37.47270007 | N49: 30.01960106 | Q49: 39.89227895 | S49: 42.89939119 | T49: 43.60781882 | U49: 46.13431818 | V49: 41.47978353 | Y49: 36.46129578 | Z49: 43.58156508 | AB49: 39.05999294 | AC49: 44.39712491 | AD49: 44.48562544 | AE49: 33.14104413 | AF49: =SUM(AF45:AF48) -> 38.06891412
B51: Costos Indirectos (Por Ha) | C51: Unidad de medida | D51: Mes de actualiz. | E51: Costo | F51: =F$2 -> Calamuchita | G51: Capital | H51: Colón | I51: Cruz del Eje | J51: Gral. Roca | K51: Gral. San Martín | L51: Ischilin | M51: Juárez Celman | N51: Marcos Juárez | O51: Minas | P51: Pocho | Q51: Pte. R. Sáenz Peña | R51: Punilla | S51: Río Cuarto | T51: Río Primero | U51: Río Seco | V51: Río Segundo | W51: San Alberto | X51: San Javier | Y51: San Justo | Z51: Santa María | AA51: Sobremonte | AB51: Tercero Arriba | AC51: Totoral | AD51: Tulumba | AE51: Unión | AF51: PROVINCIA
B52: Arrendamiento en qq | C52: qq/ha | D52: Octubre | E52: - | F52: 9.1125 | H52: 9.898635343 | J52: 8.206954047 | K52: 10.00852957 | M52: 9.525559266 | N52: 16.65 | Q52: 9.1625 | S52: 8.497275653 | T52: 8.717654037 | U52: 7.542826206 | V52: 9.919322015 | Y52: 10.19259977 | Z52: 10.1375 | AB52: 9.709541525 | AC52: 8.9875 | AD52: 7.3625 | AE52: 13.3 | AF52: 9.975
B53: Arrendamiento en USD | C53: USD/ha | D53: =D52 -> Octubre | E53: =+E81 -> 204.95875 | F53: =+$E$53*F52/10 -> 186.7686609 | H53: =+$E$53*H52/10 -> 202.8811927 | J53: 168.2087043 | K53: 205.133571 | M53: 195.234672 | N53: =+$E$53*N52/10 -> 341.2563188 | Q53: 187.7934547 | S53: 174.1590996 | T53: 178.6759474 | U53: 154.5968231 | V53: 203.3051841 | Y53: 208.9062509 | Z53: 207.7769328 | AB53: 199.0055494 | AC53: 184.2066766 | AD53: 150.9008797 | AE53: 272.5951375 | AF53: =+$E$53*AF52/10 -> 204.4463531
B54: Movilidad Campo (Campo + Adm) | C54: USD/ha | D54: Enero | E54: 12.3 | F54: =+$E54 -> 12.3 | H54: =+$E54 -> 12.3 | J54: 12.3 | K54: 12.3 | M54: 12.3 | N54: 12.3 | Q54: 12.3 | S54: 12.3 | T54: 12.3 | U54: 12.3 | V54: 12.3 | Y54: =+$E54 -> 12.3 | Z54: 12.3 | AB54: 12.3 | AC54: 12.3 | AD54: 12.3 | AE54: 12.3 | AF54: =+$E54 -> 12.3
B55: Personal (Salarios) | C55: USD/ha | D55: Octubre | E55: 40.4 | F55: =+$E55 -> 40.4 | H55: 40.4 | J55: 40.4 | K55: 40.4 | M55: 40.4 | N55: 40.4 | Q55: 40.4 | S55: 40.4 | T55: 40.4 | U55: 40.4 | V55: 40.4 | Y55: 40.4 | Z55: 40.4 | AB55: 40.4 | AC55: 40.4 | AD55: 40.4 | AE55: 40.4 | AF55: =+$E55*7/6 -> 47.13333333
B56: Asesoramiento Técnico | C56: USD/ha | D56: =D55 -> Octubre | E56: 0.01 | F56: =$E56*F93 -> 9.20078947 | H56: 9.20078947 | J56: 9.20078947 | K56: 9.20078947 | M56: 9.20078947 | N56: 9.20078947 | Q56: 9.20078947 | S56: 9.20078947 | T56: 9.20078947 | U56: 9.20078947 | V56: 9.20078947 | Y56: 9.20078947 | Z56: 9.20078947 | AB56: 9.20078947 | AC56: 9.20078947 | AD56: 9.20078947 | AE56: 9.20078947 | AF56: =$E56*AF93 -> 9.20078947
B57: Asesoramiento Contable | C57: USD/ha | D57: Octubre | E57: 6 | F57: 6 | H57: 6 | J57: 6 | K57: 6 | M57: 6 | N57: 6 | Q57: 6 | S57: 6 | T57: 6 | U57: 6 | V57: 6 | Y57: 6 | Z57: 6 | AB57: 6 | AC57: 6 | AD57: 6 | AE57: 6 | AF57: 6
B58: Gastos de oficina/comunicaciones | C58: USD/ha | D58: Octubre | E58: 3.9 | F58: 3.9 | H58: 3.9 | J58: 3.9 | K58: 3.9 | M58: 3.9 | N58: 3.9 | Q58: 3.9 | S58: 3.9 | T58: 3.9 | U58: 3.9 | V58: 3.9 | Y58: 3.9 | Z58: 3.9 | AB58: 3.9 | AC58: 3.9 | AD58: 3.9 | AE58: 3.9 | AF58: 3.9
B59: Receta Fitosanitaria | C59: USD/ha | D59: Octubre | E59: 0 | F59: 0 | H59: 0 | J59: 0 | K59: 0 | M59: 0 | N59: 0 | Q59: 0 | S59: 0 | T59: 0 | U59: 0 | V59: 0 | Y59: 0 | Z59: 0 | AB59: 0 | AC59: 0 | AD59: 0 | AE59: 0 | AF59: 0
B60: Asesor Financiero | C60: USD/ha | D60: Octubre | E60: 0 | F60: 0 | H60: 0 | J60: 0 | K60: 0 | M60: 0 | N60: 0 | Q60: 0 | S60: 0 | T60: 0 | U60: 0 | V60: 0 | Y60: 0 | Z60: 0 | AB60: 0 | AC60: 0 | AD60: 0 | AE60: 0 | AF60: 0
B61: Seguro Climatico | C61: USD/ha | D61: Octubre | E61: 0 | F61: 0 | H61: 0 | J61: 0 | K61: 0 | M61: 0 | N61: 0 | Q61: 0 | S61: 0 | T61: 0 | U61: 0 | V61: 0 | Y61: 0 | Z61: 0 | AB61: 0 | AC61: 0 | AD61: 0 | AE61: 0 | AF61: 0
B62: Conservaciones y Mejoras | C62: USD/ha | D62: Octubre | E62: 3 | F62: 3 | H62: 3 | J62: 3 | K62: 3 | M62: 3 | N62: 3 | Q62: 3 | S62: 3 | T62: 3 | U62: 3 | V62: 3 | Y62: 3 | Z62: 3 | AB62: 3 | AC62: 3 | AD62: 3 | AE62: 3 | AF62: 3
B63: Gastos imprevistos/Otros | C63: USD/ha | D63: Octubre | E63: 0 | F63: 0 | H63: 0 | J63: 0 | K63: 0 | M63: 0 | N63: 0 | Q63: 0 | S63: 0 | T63: 0 | U63: 0 | V63: 0 | Y63: 0 | Z63: 0 | AB63: 0 | AC63: 0 | AD63: 0 | AE63: 0 | AF63: 0
B64: Total Costos Indirectos | F64: =+SUM(F53:F63) -> 261.5694504 | H64: =+SUM(H53:H63) -> 277.6819821 | J64: 243.0094937 | K64: 279.9343605 | M64: 270.0354615 | N64: 416.0571082 | Q64: 262.5942442 | S64: 248.9598891 | T64: 253.4767369 | U64: 229.3976125 | V64: 278.1059736 | Y64: 283.7070403 | Z64: 282.5777223 | AB64: 273.8063389 | AC64: 259.007466 | AD64: 225.7016692 | AE64: 347.395927 | AF64: =+SUM(AF53:AF63) -> 285.9804759
B66: Impuestos (Por Ha) | C66: =C51 -> Unidad de medida | D66: =D51 -> Mes de actualiz. | E66: Porcentaje | F66: =F$2 -> Calamuchita | G66: Capital | H66: Colón | I66: Cruz del Eje | J66: Gral. Roca | K66: Gral. San Martín | L66: Ischilin | M66: Juárez Celman | N66: Marcos Juárez | O66: Minas | P66: Pocho | Q66: Pte. R. Sáenz Peña | R66: Punilla | S66: Río Cuarto | T66: Río Primero | U66: Río Seco | V66: Río Segundo | W66: San Alberto | X66: San Javier | Y66: San Justo | Z66: Santa María | AA66: Sobremonte | AB66: Tercero Arriba | AC66: Totoral | AD66: Tulumba | AE66: Unión | AF66: PROVINCIA
B67: Impuesto a las ganancias | C67: % s. Resultado Positivo | D67: - | E67: 0.35 | F67: =IF(F99<0,0,$E$67*F99) -> 0 | H67: 0 | J67: 0 | K67: 0 | M67: 0 | N67: 0 | Q67: 0 | S67: 0 | T67: 0 | U67: 0 | V67: 0 | Y67: 0 | Z67: 0 | AB67: 0 | AC67: 0 | AD67: 0 | AE67: =IF(AE99<0,0,$E$67*AE99) -> 0 | AF67: =IF(AF99<0,0,$E$67*AF99) -> 0
B68: Impuesto a la ganancia mínima presunta | C68: - | D68: - | E68: -
B69: Impuestos a los combustibles | C69: - | D69: - | E69: -
B70: Impuesto al cheque | C70: % s. Ingresos Totales | D70: - | E70: 0.012 | F70: =$E$70/2*(F93+F94+F95+F98)*0.4 -> 4.514191365 | H70: =$E$70/2*(H93+H94+H95+H98)*0.4 -> 4.558573472 | J70: =$E$70/2*(J93+J94+J95+J98)*0.4 -> 4.471513323 | K70: =$E$70/2*(K93+K94+K95+K98)*0.4 -> 4.427107924 | M70: =$E$70/2*(M93+M94+M95+M98)*0.4 -> 4.423760489 | N70: =$E$70/2*(N93+N94+N95+N98)*0.4 -> 4.639893856 | Q70: =$E$70/2*(Q93+Q94+Q95+Q98)*0.4 -> 4.44950684 | S70: =$E$70/2*(S93+S94+S95+S98)*0.4 -> 4.470978095 | T70: =$E$70/2*(T93+T94+T95+T98)*0.4 -> 4.494585701 | U70: =$E$70/2*(U93+U94+U95+U98)*0.4 -> 4.482327979 | V70: =$E$70/2*(V93+V94+V95+V98)*0.4 -> 4.51534475 | Y70: =$E$70/2*(Y93+Y94+Y95+Y98)*0.4 -> 4.438344909 | Z70: =$E$70/2*(Z93+Z94+Z95+Z98)*0.4 -> 4.563954925 | AB70: =$E$70/2*(AB93+AB94+AB95+AB98)*0.4 -> 4.461416539 | AC70: =$E$70/2*(AC93+AC94+AC95+AC98)*0.4 -> 4.522084202 | AD70: =$E$70/2*(AD93+AD94+AD95+AD98)*0.4 -> 4.443745232 | AE70: =$E$70/2*(AE93+AE94+AE95+AE98)*0.4 -> 4.53136118 | AF70: =$E$70/2*(AF93+AF94+AF95+AF98)*0.4 -> 4.4727734
B71: Impuesto a los sellos | C71: % s. Ingresos Totales | D71: - | E71: 0.012 | F71: =$E71*F93 -> 11.04094736 | H71: =$E71*H93 -> 11.04094736 | J71: =$E71*J93 -> 11.04094736 | K71: =$E71*K93 -> 11.04094736 | M71: =$E71*M93 -> 11.04094736 | N71: =$E71*N93 -> 11.04094736 | Q71: =$E71*Q93 -> 11.04094736 | S71: =$E71*S93 -> 11.04094736 | T71: =$E71*T93 -> 11.04094736 | U71: =$E71*U93 -> 11.04094736 | V71: =$E71*V93 -> 11.04094736 | Y71: =$E71*Y93 -> 11.04094736 | Z71: =$E71*Z93 -> 11.04094736 | AB71: =$E71*AB93 -> 11.04094736 | AC71: =$E71*AC93 -> 11.04094736 | AD71: =$E71*AD93 -> 11.04094736 | AE71: =$E71*AE93 -> 11.04094736 | AF71: =$E71*AF93 -> 11.04094736
B72: Impuesto inmobiliario | C72: - | D72: - | E72: -
B73: Impuesto a los automotores (rentas) | C73: - | D73: - | E73: -
B74: Impuesto a la renta financiera | C74: - | D74: - | E74: -
B75: Impuesto a utilidades y dividendos | C75: - | D75: - | E75: -
B76: IVA crédito | C76: - | D76: - | E76: -
B77: IVA Débito | C77: - | D77: - | E77: -
B78: Total impuestos | F78: =+SUM(F67:F77) -> 15.55513873 | H78: =+SUM(H67:H77) -> 15.59952084 | J78: 15.51246069 | K78: 15.46805529 | M78: 15.46470785 | N78: 15.68084122 | Q78: 15.4904542 | S78: 15.51192546 | T78: 15.53553307 | U78: 15.52327534 | V78: 15.55629211 | Y78: 15.47929227 | Z78: 15.60490229 | AB78: 15.5023639 | AC78: 15.56303157 | AD78: 15.4846926 | AE78: 15.57230854 | AF78: =+SUM(AF67:AF77) -> 15.51372076
B80: Precio maíz cosecha USD/tn | D80: 2019-08-29 | E80: ='Calculadora BCCBA'!C14-'Calculadora BCCBA'!C14*'Calculadora BCCBA'!C23-9.4 -> 122.5285
B81: Precio soja cosecha USD/tn | D81: 2019-06-04 | E81: =+'Soja 1ª'!E85 -> 204.95875
B82: Dólar siembra | D82: 2019-05-13 | E82: 71.15
B83: Dólar Cosecha | D83: 2019-08-29 | E83: =+'Calculadora BCCBA'!C19 -> 86.15
B84: Dólar Promedio | D84: - | E84: =+AVERAGE(E82:E83) -> 78.65
B85: Inflación esperada hasta dato FACMA de esta campaña | D85: Febrero | E85: 0.8
B86: Inflación esp. desde FECOTAC hasta agosto | D86: Septiembre | E86: 0.6
B87: Tasa de interes del costo de oportunidad | D87: Noviembre | E87: 0.0175
B88: Precio combustible | D88: - | E88: -
B90: RENTABILIDAD EN DÓLARES | F90: =F$2 -> Calamuchita | G90: Capital | H90: Colón | I90: Cruz del Eje | J90: Gral. Roca | K90: Gral. San Martín | L90: Ischilin | M90: Juárez Celman | N90: Marcos Juárez | O90: Minas | P90: Pocho | Q90: Pte. R. Sáenz Peña | R90: Punilla | S90: Río Cuarto | T90: Río Primero | U90: Río Seco | V90: Río Segundo | W90: San Alberto | X90: San Javier | Y90: San Justo | Z90: Santa María | AA90: Sobremonte | AB90: Tercero Arriba | AC90: Totoral | AD90: Tulumba | AE90: Unión | AF90: PROVINCIA
B91: Rendimientos Maíz temprano | D91: qq/ha | F91: =F3 -> 75.09101531 | G91: 75.09101531 | H91: 75.09101531 | I91: 75.09101531 | J91: 75.09101531 | K91: 75.09101531 | L91: 75.09101531 | M91: 75.09101531 | N91: 75.09101531 | O91: 75.09101531 | P91: 75.09101531 | Q91: 75.09101531 | R91: 75.09101531 | S91: 75.09101531 | T91: 75.09101531 | U91: 75.09101531 | V91: 75.09101531 | W91: 75.09101531 | X91: 75.09101531 | Y91: 75.09101531 | Z91: 75.09101531 | AA91: 75.09101531 | AB91: 75.09101531 | AC91: 75.09101531 | AD91: 75.09101531 | AE91: 75.09101531 | AF91: 75.09101531
B92: Precio Maíz temprano | D92: USD/qq | F92: =IF(F91=0,"",$E$80) -> 122.5285 | G92: 122.5285 | H92: 122.5285 | I92: 122.5285 | J92: 122.5285 | K92: 122.5285 | L92: 122.5285 | M92: 122.5285 | N92: 122.5285 | O92: 122.5285 | P92: 122.5285 | Q92: 122.5285 | R92: 122.5285 | S92: 122.5285 | T92: 122.5285 | U92: 122.5285 | V92: 122.5285 | W92: 122.5285 | X92: 122.5285 | Y92: 122.5285 | Z92: 122.5285 | AA92: 122.5285 | AB92: 122.5285 | AC92: 122.5285 | AD92: 122.5285 | AE92: 122.5285 | AF92: =IF(AF91=0,"",$E$80) -> 122.5285
B93: Ingresos Totales | D93: USD/ha | F93: =IF(F91=0,"",F92*F91/10) -> 920.078947 | G93: 920.078947 | H93: 920.078947 | I93: 920.078947 | J93: 920.078947 | K93: 920.078947 | L93: 920.078947 | M93: 920.078947 | N93: 920.078947 | O93: 920.078947 | P93: 920.078947 | Q93: 920.078947 | R93: 920.078947 | S93: 920.078947 | T93: 920.078947 | U93: 920.078947 | V93: 920.078947 | W93: 920.078947 | X93: 920.078947 | Y93: 920.078947 | Z93: 920.078947 | AA93: 920.078947 | AB93: 920.078947 | AC93: 920.078947 | AD93: 920.078947 | AE93: 920.078947 | AF93: =IF(AF91=0,"",AF92*AF91/10) -> 920.078947
B94: Costos Directos | D94: USD/ha | F94: =IF(F91=0,"",F40) -> 371.7328192 | G94: 0 | H94: 371.7328192 | I94: 0 | J94: 371.7328192 | K94: 371.7328192 | L94: 0 | M94: 371.7328192 | N94: 371.7328192 | O94: 0 | P94: 0 | Q94: 371.7328192 | R94: 0 | S94: 371.7328192 | T94: 371.7328192 | U94: 371.7328192 | V94: 371.7328192 | W94: 0 | X94: 0 | Y94: 371.7328192 | Z94: 371.7328192 | AA94: 0 | AB94: 371.7328192 | AC94: 371.7328192 | AD94: 371.7328192 | AE94: 371.7328192 | AF94: 371.7328192
B95: Gastos Comerciales | D95: USD/ha | F95: =IF(F91=0,"",F49*F91/10) -> 327.5318521 | G95: 0 | H95: 329.9118651 | I95: 0 | J95: 328.3092912 | K95: 272.8821749 | L95: 0 | M95: 281.3863095 | N95: 225.4202323 | O95: 0 | P95: 0 | Q95: 299.5551729 | R95: 0 | S95: 322.1358841 | T95: 327.4555391 | U95: 346.4272793 | V95: 311.4759061 | W95: 0 | X95: 0 | Y95: 273.791572 | Z95: 327.2583971 | AA95: 0 | AB95: 293.3054528 | AC95: 333.3825187 | AD95: 334.0470781 | AE95: 248.8594652 | AF95: 285.8633413
B96: Margen Bruto | D96: USD/ha | F96: =IF(F91=0,"",F93-F94-F95) -> 220.8142756 | G96: 920.078947 | H96: 218.4342626 | I96: 920.078947 | J96: 220.0368365 | K96: 275.4639529 | L96: 920.078947 | M96: 266.9598182 | N96: 322.9258955 | O96: 920.078947 | P96: 920.078947 | Q96: 248.7909548 | R96: 920.078947 | S96: 226.2102436 | T96: 220.8905887 | U96: 201.9188484 | V96: 236.8702217 | W96: 920.078947 | X96: 920.078947 | Y96: 274.5545558 | Z96: 221.0877307 | AA96: 920.078947 | AB96: 255.040675 | AC96: 214.9636091 | AD96: 214.2990497 | AE96: 299.4866626 | AF96: =IF(AF91=0,"",AF93-AF94-AF95) -> 262.4827864
B97: Rendimiento de Indiferencia | D97: USD/ha | F97: =IF(F91=0,"",(F95+F94)*10/F92) -> 57.06955291 | G97: 0 | H97: 57.2637945 | I97: 0 | J97: 57.13300257 | K97: 52.60939244 | L97: 0 | M97: 53.30344604 | N97: 48.73584934 | O97: 0 | P97: 0 | Q97: 54.78627358 | R97: 0 | S97: 56.62916818 | T97: 57.06332472 | U97: 58.61167798 | V97: 55.7591683 | W97: 0 | X97: 0 | Y97: 52.68361167 | Z97: 57.04723524 | AA97: 0 | AB97: 54.27621101 | AC97: 57.54704725 | AD97: 57.60128438 | AE97: 50.64881105 | AF97: =IF(AF91=0,"",(AF95+AF94)*10/AF92) -> 53.66883301
B98: Costos Indirectos | D98: USD/ha | F98: =IF(F91=0,"",F64) -> 261.5694504 | G98: 0 | H98: 277.6819821 | I98: 0 | J98: 243.0094937 | K98: 279.9343605 | L98: 0 | M98: 270.0354615 | N98: 416.0571082 | O98: 0 | P98: 0 | Q98: 262.5942442 | R98: 0 | S98: 248.9598891 | T98: 253.4767369 | U98: 229.3976125 | V98: 278.1059736 | W98: 0 | X98: 0 | Y98: 283.7070403 | Z98: 282.5777223 | AA98: 0 | AB98: 273.8063389 | AC98: 259.007466 | AD98: 225.7016692 | AE98: 347.395927 | AF98: 285.9804759
B99: Resultado Operativo | D99: USD/ha | F99: =IF(F91=0,"",F96-F98) -> -40.75517479 | G99: 920.078947 | H99: -59.24771951 | I99: 920.078947 | J99: -22.97265724 | K99: -4.470407594 | L99: 920.078947 | M99: -3.075643253 | N99: -93.13121277 | O99: 920.078947 | P99: 920.078947 | Q99: -13.80328935 | R99: 920.078947 | S99: -22.74964547 | T99: -32.58614824 | U99: -27.4787641 | V99: -41.23575188 | W99: 920.078947 | X99: 920.078947 | Y99: -9.152484561 | Z99: -61.4899916 | AA99: 920.078947 | AB99: -18.7656639 | AC99: -44.04385697 | AD99: -11.4026195 | AE99: -47.90926441 | AF99: =IF(AF91=0,"",AF96-AF98) -> -23.49768949
B100: Impuesto a las Ganancias | D100: USD/ha | F100: =IF(F91=0,"",F78) -> 15.55513873 | G100: 0 | H100: 15.59952084 | I100: 0 | J100: 15.51246069 | K100: 15.46805529 | L100: 0 | M100: 15.46470785 | N100: 15.68084122 | O100: 0 | P100: 0 | Q100: 15.4904542 | R100: 0 | S100: 15.51192546 | T100: 15.53553307 | U100: 15.52327534 | V100: 15.55629211 | W100: 0 | X100: 0 | Y100: 15.47929227 | Z100: 15.60490229 | AA100: 0 | AB100: 15.5023639 | AC100: 15.56303157 | AD100: 15.4846926 | AE100: 15.57230854 | AF100: 15.51372076
B101: Margen Neto | D101: USD/ha | F101: =IF(F91=0,"",F99-F100) -> -56.31031352 | G101: 920.078947 | H101: -74.84724034 | I101: 920.078947 | J101: -38.48511793 | K101: -19.93846288 | L101: 920.078947 | M101: -18.54035111 | N101: -108.812054 | O101: 920.078947 | P101: 920.078947 | Q101: -29.29374355 | R101: 920.078947 | S101: -38.26157092 | T101: -48.1216813 | U101: -43.00203944 | V101: -56.792044 | W101: 920.078947 | X101: 920.078947 | Y101: -24.63177683 | Z101: -77.09489389 | AA101: 920.078947 | AB101: -34.2680278 | AC101: -59.60688854 | AD101: -26.8873121 | AE101: -63.48157296 | AF101: =IF(AF91=0,"",AF99-AF100) -> -39.01141026
B102: Intereses sobre el Capital Invertido | D102: USD/ha | F102: =IF(F91=0,"",F104*$E$87*8/12) -> 6.438943588 | G102: 0 | H102: 6.626923125 | I102: 0 | J102: 6.22241076 | K102: 6.653200872 | L102: 0 | M102: 6.537713717 | N102: 8.241299596 | O102: 0 | P102: 0 | Q102: 6.450899515 | R102: 0 | S102: 6.291832039 | T102: 6.344528597 | U102: 6.06360548 | V102: 6.631869692 | W102: 0 | X102: 0 | Y102: 6.697215471 | Z102: 6.684040093 | AA102: 0 | AB102: 6.581707287 | AC102: 6.40905377 | AD102: 6.02048614 | AE102: 7.440252481 | AF102: 6.723738886
B103: Resultado Económico | D103: USD/ha | F103: =IF(F91=0,"",F101-F102) -> -62.74925711 | G103: 920.078947 | H103: -81.47416347 | I103: 920.078947 | J103: -44.70752869 | K103: -26.59166375 | L103: 920.078947 | M103: -25.07806482 | N103: -117.0533536 | O103: 920.078947 | P103: 920.078947 | Q103: -35.74464307 | R103: 920.078947 | S103: -44.55340296 | T103: -54.4662099 | U103: -49.06564492 | V103: -63.42391369 | W103: 920.078947 | X103: 920.078947 | Y103: -31.3289923 | Z103: -83.77893398 | AA103: 920.078947 | AB103: -40.84973509 | AC103: -66.01594231 | AD103: -32.90779824 | AE103: -70.92182544 | AF103: =IF(AF91=0,"",AF101-AF102) -> -45.73514914
B104: Inversión Inicial | D104: USD/ha | F104: =IF(F91=0,"",F40-F39+F64) -> 551.9094504 | G104: 0 | H104: 568.0219821 | I104: 0 | J104: 533.3494937 | K104: 570.2743605 | L104: 0 | M104: 560.3754615 | N104: 706.3971082 | O104: 0 | P104: 0 | Q104: 552.9342442 | R104: 0 | S104: 539.2998891 | T104: 543.8167369 | U104: 519.7376125 | V104: 568.4459736 | W104: 0 | X104: 0 | Y104: 574.0470403 | Z104: 572.9177223 | AA104: 0 | AB104: 564.1463389 | AC104: 549.347466 | AD104: 516.0416692 | AE104: 637.735927 | AF104: 576.3204759
B105: Rentabilidad de la Actividad | D105: % | F105: =IF(F91=0,"",F103/F104) -> -0.1136948408 | H105: -0.1434348776 | J105: -0.08382407635 | K105: -0.04662959726 | M105: -0.04475225371 | N105: -0.1657047463 | Q105: -0.06464537772 | S105: -0.08261341021 | T105: -0.1001554498 | U105: -0.09440464523 | V105: -0.1115742157 | Y105: -0.05457565339 | Z105: -0.1462320517 | AB105: -0.07240982041 | AC105: -0.1201715606 | AD105: -0.06376965312 | AE105: -0.1112087659 | AF105: =IF(AF91=0,"",AF103/AF104) -> -0.07935714772 | AG105: 59.1 | AH105: 67.1 | AI105: 75.1 | AJ105: 83.1 | AK105: 91.1
AF106: 142.1 | AG106: -0.3061490503 | AH106: -0.1924962987 | AI106: -0.07923015626 | AJ106: 0.007482041098 | AK106: 0.07972376885
AF107: 149.1 | AG107: -0.3061490503 | AH107: -0.1924962987 | AI107: -0.07923015626 | AJ107: 0.007482041098 | AK107: 0.07972376885
AF108: 156.1 | AG108: -0.3061490503 | AH108: -0.1924962987 | AI108: -0.07923015626 | AJ108: 0.007482041098 | AK108: 0.07972376885
F109: =H$2 -> Colón | G109: -0.178430506 | AF109: 163.1 | AG109: -0.3061490503 | AH109: -0.1924962987 | AI109: -0.07923015626 | AJ109: 0.007482041098 | AK109: 0.07972376885
F110: =T$2 -> Río Primero | G110: -0.150113825 | AF110: 170.1 | AG110: -0.3061490503 | AH110: -0.1924962987 | AI110: -0.07923015626 | AJ110: 0.007482041098 | AK110: 0.07972376885
F111: =S$2 -> Río Cuarto | G111: -0.1347825025
F112: =AC$2 -> Totoral | G112: -0.1315351502
F113: =U$2 -> Río Seco | G113: -0.1276834789
F114: =Y$2 -> San Justo | G114: -0.08525938322
F115: =J$2 -> Gral. Roca | G115: -0.07951240703
F116: =F$2 -> Calamuchita | G116: -0.07897082942
F117: =AD$2 -> Tulumba | G117: -0.07543255271
F118: =AE$2 -> Unión | G118: -0.05273636211
F119: =Q$2 -> Pte. R. Sáenz Peña | G119: -0.04201779682
F120: =V$2 -> Río Segundo | G120: -0.0411317623
F121: =N$2 -> Marcos Juárez | G121: -0.03640090758
F122: =Z$2 -> Santa María | G122: -0.03453926009
F123: =K$2 -> Gral. San Martín | G123: -0.02005910866
F124: =AB$2 -> Tercero Arriba | G124: -0.004231171655
F125: =M$2 -> Juárez Celman | G125: -0.0005598374882
